{"text_format":"1","workbook":"xlsx","n_sheets":4,"sheets":["Title page","LCA","LCA_Stat","LCA_Lit"],"not_rendered":{"charts":19,"images":46,"macros":1,"external_links":0,"defined_names":55,"comments":2,"pivot_tables":0},"unopened":[],"bounds":{"document_bytes":16777216,"sheet_cells":100000,"rows_first":2000,"rows_last":500,"rows_between":2000,"halvings":0,"cell_chars":16384,"cell_head_chars":4096},"cells_cut":0,"cells_raw":0,"read":"whole","date_system":"1900"}

{"sheet":"Title page","index":0,"n_rows":47,"n_cols":2,"rows_kept":47,"cut":false,"hidden":false,"merged":[]}
[]
[]
[]
[]
[]
[]
[]
[]
[null,"LCA-AD"]
[null,"Life Cycle Assessment in Conceptual Aircraft Design"]
[null,"Version 1.01 - March 2016"]
[]
[null,"LCA allows the user to conduct a life cycle assessment in conceptual aircraft design."]
[null,"From simple input parameters, such as \"number of passengers\", the user can calculate the environmental impact of an aircraft."]
[]
[]
[]
[]
[null,"LCA AD is a project by the Aircraft Design and Systems Group (AERO) at Hamburg University of Applied Sciences (HAW Hamburg)."]
[null,"This project is being supported by the German Federal Environmental Foundation through a doctoral scholarship."]
[]
[]
[]
[]
[]
[]
[]
[]
[]
[null,"Copyright © 2016"]
[null,"Andreas Johanning, Dieter Scholz"]
[]
[]
[]
[]
[]
[]
[null,"LCA AD is free software: you can redistribute it and/or modify"]
[null,"it under the terms of the GNU General Public License as published by"]
[null,"the Free Software Foundation, License Version 3."]
[]
[null,"LCA AD is distributed in the hope that it will be useful,"]
[null,"but WITHOUT ANY WARRANTY; without even the implied warranty of"]
[null,"MERCHANTABILITY or FITNESS FOR A PARTICULAR PURPOSE."]
[null,"See the GNU General Public License for more details."]
[]
[null,"http://www.gnu.org/licenses/ "]

{"sheet":"LCA","index":1,"n_rows":1914,"n_cols":91,"rows_kept":1914,"cut":false,"hidden":false,"merged":[[1757,32,1757,35],[1757,36,1757,39],[1697,32,1697,35],[1697,36,1697,39],[1715,32,1715,35],[1715,36,1715,39],[1735,32,1735,35],[1735,36,1735,39],[1750,32,1750,35],[1750,36,1750,39],[175,9,175,10],[596,7,597,7],[89,3,89,5],[91,3,91,7],[93,3,93,8],[458,2,458,6],[169,3,169,4],[99,3,99,4],[103,3,103,4],[150,3,150,4],[142,3,142,4],[138,3,138,4],[146,3,146,4],[156,3,156,4],[109,3,109,5],[1690,32,1690,35],[1690,36,1690,39],[171,9,171,10],[171,3,171,5],[1164,34,1164,39],[460,33,460,39],[501,30,501,31],[1158,38,1160,38],[1161,38,1162,38],[173,3,173,5],[175,3,175,5],[1149,3,1149,4],[1143,3,1143,4],[1141,3,1141,5],[596,6,597,6],[173,9,173,10]]}
["Life Cycle Assessment in Conceptual Aircraft Design"]
[]
[null,"Quick start guide"]
[]
[null,"The tool consists of four sections covering the four phases of a Life Cycle Assessment (LCA). The pluses and minuses on the left side can be used to navigate within the sections of the tool."]
[null,"The entire required input data has to be entered in Section 2.1.1. Whenever a cell has a white background color, it is an input cell and the user can enter a value. "]
[null,"Cells with a grey background should normally not be changed. However, advanced users are invited to also play around with these cells."]
[null,"To protect the user from unwanted modifications of the tool, the sheets and the workbook are protected (with the exception of the white input cells). "]
[null,"In case a user wants to make changes in protected areas, he simply has to unprotect the respective sheets or the workbook."]
[null,"The final results of the LCA are presented in Section 3.3. The Single Score calculated in Seciton 3.3 represents the total Environmental Impact (EI) of an aircraft expressed in one score."]
[null,"The sheet \"LCA_Stat\" provides statistics that have been used to determine several required parameters. Whenever such a statistical value is used, there is also a link to the respective statistic."]
[null,"The sheet \"LCA_Lit\" provides the references used to determine several parameters. Whenever such a reference value is used, there is also a link to the respective reference."]
[null,"The tool is based on several publications:"]
[null,"\"A First Step Towards The Integration Of Life Cycle Assessment Into Conceptual Aircraft Design\" from DLRK 2013"]
[null,"\"Adapting Life Cycle Impact Assessment Methods for Application in Aircraft Design\" from DLRK 2014"]
[null,"\"Comparison of the Potential Environmental Impact Improvements of Future Aircraft Concepts Using Life Cycle Assessment\" from CEAS 2015"]
[null,"Equations from these publications are also displayed in the tool to make it more easily understandable for readers of the paper."]
[null,"In order to properly run the tool, macros have to be activated. When the tool is opened, a pop-up will appear asking the user to enable macros."]
[]
[]
[1,"Goal and Scope Definition"]
[]
[null,"The product system considered within this LCA is a passenger aircraft."]
[]
[null,"The presented LCA has several goals:"]
[null,"1) Finding the driving emissions, processes and life cycle phases for the environmental impact of passenger aircraft"]
[null,"2) Identifiying the most important environmental impact categories of passenger aircraft"]
[null,"3) Calculating the environmental impact of nowadays passenger aircraft"]
[null,"4) Using the environmental impact within aircraft design optimization to investigate the improvement potential of future aircraft concepts concerning environmental impact"]
[null,"5) Providing a simple but comprehensive LCA methodology for aircraft that can easily be integrated into any conceptual aircraft design tool"]
[]
[null,"Passenger-kilometer (PKM) is chosen as functional unit. This means that all results of the presented calculations will refer to the transport of one passenger over one kilometer."]
[null,"In this tool, PKM always refers to the actually transported number of passengers and their kilometers travelled."]
[]
[null,"System boundaries: Cradle to grave"]
[null,"A top-down approach is used to break down the life cycle phases into their sub-processes."]
[null,"The considered sub-processes are shown in the following picture:"]
[]
[]
[]
[]
[]
[]
[]
[]
[]
[]
[]
[]
[]
[]
[]
[]
[]
[null,"A further breakdown of these sub-processes leads to processes where most of the data is secret, not publicly available or simply still unknown in the considered early design phase."]
[null,"Therefore the presented LCA is limited to an analysis of the aforementioned higher-level processes."]
[]
[null,"A passenger aircraft does not only transport passengers but also freight. Therefore only a part of the EI is considered to be caused by the transport of passengers."]
[null,"A physical allocation is chosen. Roughly 82 % of the transported payload mass comes from the transport of passengers."]
[null,"As default value, 82 % of the emissions caused over the life-cycle are therefore allocated to the transport of passengers. This value can be adapted by the user."]
[]
[null,"For the impact assessment, the ReCiPe endpoint method in the Hierarchist version, with World normalization and average weighting set is used: ReCiPe Endpoint (H), World ReCiPe H/A"]
[]
[{"$f":"A21+1","v":2},"Life Cycle Inventory Analysis"]
[]
[{"$f":"$A$64 & \".1\"","v":"2.1"},"General Input and parameters"]
[]
[{"$f":"$A$66 & \".1\"","v":"2.1.1"},"General input data"]
[]
[null,"Input data from previous design phases"]
[]
[null,"Maximum number of seats","nseat,max",180,"[-]"]
[]
[null,"Maximum range @ maximum payload","RMPL",1510,"[NM]"]
[]
[null,"Operating empty mass","mOE",41244,"[kg]"]
[]
[null,"Type of energy carrier",null,"Kerosene"]
[]
[null,{"$f":"\"Burned \" & IF(D78=\"Kerosene\",\"kerosene\",IF(D78=\"Hydrogen\",\"hydrogen\",IF(D78=\"Alternative fuel\",\"alternative fuel\",\"?\"))) & \" mass @ average flight distance\"","v":"Burned kerosene mass @ average flight distance"},"mF,trip",4557,"[kg]"]
[]
[null,"Battery mass needed","mbat",23387,"kg"]
[]
[null,"Specific energy (batteries)","ebat",6.7320000000000002,"MJ/kg"]
[]
[null,"Battery cycles","ncycle,bat",3000,"[-]"]
[]
[null,"Electric energy consumption @ average distance traveled","Ebat,trip",15582.415277300281,"[kWh]"]
[]
[null,"Method of electric energy production",null,"European Electricity Mix"]
[]
[null,"Method of hydrogen production",null,"Natural gas steam reforming / European Electricity Mix"]
[]
[null,"Method of alternative fuel production",null,"Hydrogenated Vegetable Oil / European Electricity Mix"]
[]
[null,"Flight time @ average distance traveled","tf,av",1.7,"[h]"]
[]
[null,"Flight level","FL",390,"[-]"]
[]
[null,"Taxi time",null,"Own value",null,null,">>>>>",null,"Taxi time (suggested value)","ttaxi",0.25,"[h]"]
[]
[null,"Taxi time","ttaxi",0.25,"[h]"]
[]
[null,"Turnaround time",null,"Own value",null,null,">>>>>",null,"Turnaround time (suggested value)","tTA",0.5,"[h]"]
[]
[null,"Turnaround time","tTA",0.5,"[h]"]
[]
[null,"Select aircraft with similar engine emission characteristics",null,"A320-200"]
[]
[null,"Select way of calculating the material distribution",null,"Use suggested values"]
[]
[null,"Wing mass","mW",7402,"[kg]",null,null,null,"Percentage of aluminum","pm,Al",72,"[%]"]
[]
[null,"Main landing gear mass","mMLG",2561,"[kg]",null,null,null,"Percentage of steel","pm,St",7,"[%]"]
[]
[null,"Nose landing gear mass","mNLG",431,"[kg]",null,null,null,"Percentage of composites","pm,Co",12,"[%]"]
[]
[null,"Fuselage mass","mF",7224,"[kg]",null,null,null,"Percentage of titanium","pm,Ti",6,"[%]"]
[]
[null,"Vertical Stabilizer mass","mV",833,"[kg]",null,null,null,"Percentage of misc.","pm,Mi",{"$f":"100-SUM(K112+K114+K116+K118)","v":3},"[%]"]
[]
[null,"Horizontal Stabilizer mass","mH",1648,"[kg]"]
[]
[null,"Engines mass","mE",8634,"[kg]"]
[]
[null,"Choose aircraft with similar material distribution",null,"A330",null,null,null,null,"Suggested percentage of aluminum","pm,Al",{"$f":"VLOOKUP($D$126,LCA_Stat!$B$59:$G$60,2,FALSE)","v":72},"[%]"]
[]
[null,null,null,null,null,null,null,null,"Suggested percentage of steel","pm,St",{"$f":"VLOOKUP($D$126,LCA_Stat!$B$59:$G$60,3,FALSE)","v":7},"[%]"]
[]
[null,null,null,null,null,null,null,null,"Suggested percentage of composites","pm,Co",{"$f":"VLOOKUP($D$126,LCA_Stat!$B$59:$G$60,4,FALSE)","v":12},"[%]"]
[]
[null,null,null,null,null,null,null,null,"Suggested percentage of titanium","pm,Ti",{"$f":"VLOOKUP($D$126,LCA_Stat!$B$59:$G$60,5,FALSE)","v":6},"[%]"]
[]
[null,null,null,null,null,null,null,null,"Suggested percentage of misc.","pm,Mi",{"$f":"VLOOKUP($D$126,LCA_Stat!$B$59:$G$60,6,FALSE)","v":3},"[%]"]
[]
[]
[null,"Other inputs"]
[]
[null,"Average load factor",null,"Own value",null,null,">>>>>",null,"Average load factor (suggested value)","plf",{"$f":"LCA_Stat!C227/100","v":0.81}]
[]
[null,"Average load factor","plf",0.8]
[]
[null,"Percentage of average distance traveled compared to RMPL",null,"Use suggested value",null,null,">>>>>",null,"Average distance traveled compared to RMPL (suggested value)","pd",0.39]
[]
[null,"Average distance traveled compared to RMPL","pd",0.39]
[]
[null,"Number of years in the operational phase",null,"Use suggested value",null,null,">>>>>",null,"Number of years in the operational phase (suggested value)","na,o",{"$f":"LCA_Stat!F199","v":25},"[-]"]
[]
[null,"Number of years in the operational phase","na,o",30,"[-]",null,null,null,null,"Source: Flight International, 22.01.2008, \"Airbus begins tests to extend service life of A320 family\""]
[]
[null,"Total number of aircraft built",null,"Own value"]
[]
[null,"Choose similar aircraft family",null,"A380-family",null,null,">>>>>",null,"Total number of aircraft built (suggested value)","na/c,b",{"$f":"ROUND(VLOOKUP(D153,LCA_Stat!B48:E50,4,FALSE),-3)","v":2000},"[-]"]
[]
[null,"Total number of aircraft built","na/c,b",20000,"[-]"]
[]
[null,"Development costs",null,"Own value"]
[]
[null,"Choose aircraft with similar expected development costs",null,"Cseries",null,null,">>>>>",null,"Development costs (suggested value)","cdev",{"$f":"VLOOKUP(D159,LCA_Stat!B100:C105,2,FALSE)","v":3.9},"[bn USD]"]
[]
[null,"Development costs","cdev",12,"[bn USD]"]
[]
[null,"Exchange rate: USD to Euro","cUSD,EUR",0.75,"[EUR]"]
[]
[]
[]
[]
[null,"Inputs for impact assessment"]
[]
[null,"Use of suggested settings for impact assessment?",null,"Own Settings"]
[]
[null,"Choose perspective and region",null,"Hierarchist, World",null,null,null,null,"Perspective and region","Hierarchist, World"]
[]
[null,"Choose weighting",null,"Average",null,null,null,null,"Weighting","Average"]
[]
[null,"Adaption due to contrails and NOx emissions?",null,"Yes",null,null,null,null,"Adaption due to contrails and NOx emissions?","Yes"]
[]
[]
[{"$f":"LEFT(A68,4) & RIGHT(A68,1) + 1","v":"2.1.2"},"General parameters"]
[]
[null,"General parameters"]
[]
[null,"Ratio of sold seats to max. number of seats","pseat",{"$f":"LCA_Stat!C40","v":0.83561678273265394}]
[]
[null,"Average number of sold seats","nseat",{"$f":"ROUND(D72*D183,0)","v":150},"[-]"]
[]
[null,"Average number of PAX per flight","nPAX",{"$f":"ROUND(D72*D183*IF(D139=\"Own value\",D141,IF(D139=\"Use suggested value\",K139,\"?\")),0)","v":120},"[-]"]
[]
[null,"Average distance traveled per flight [NM]","df",{"$f":"D74*IF(D143=\"Own value\",D145,IF(D143=\"Use suggested value\",K143,\"?\"))","v":588.9},"[NM]"]
[]
[null,"Average distance traveled per flight [km]","df",{"$f":"D189*NM_to_m/1000","v":1090.6428000000001},"[km]",null,null,null,"Source: Redesign A320 (because average flight time = 1.82 h from Reference: 2) - \"D:\\Sonstiges\\Kongresse\\DLRK 2013\\Paper\\Sonstiges\\Redesign_A320_200_PrOPerA_13_04_19 - updated 13-10-09.xlsm\""]
[]
[null,"Percentage of passenger mass on total payload mass of passenger aircraft","palo,PAX",{"$f":"1-ROUND(LCA_Stat!M253,2)","v":0.82000000000000006}]
[]
[null,"Percentage of passengers mass on total payload mass at airports","palo,PAX,FH",{"$f":"ROUND(LCA_Stat!M257,2)","v":0.7}]
[]
[]
[null,"Number of flights per year"]
[]
[null,"Aircraft utilization factor","kU1",{"$f":"IF(D189<1000,3994,IF(AND(D189<=1000,D189<=2000),5158,6566))","v":3994},"[h]"]
[]
[null,"Aircraft utilization factor","kU2",{"$f":"IF(D189<1000,IF(D104=\"Own value\",D106,IF(D104=\"Use suggested value\",K104,\"?\"))+IF(D100=\"Own value\",D102,IF(D100=\"Use suggested value\",K100,\"?\")),IF(AND(D189>=1000,D189<=2000),1.65,3.302))","v":0.75},"[h]"]
[]
[null,"Utilization","Ua,f",{"$f":"D96*D200/(D96+D202)","v":2771.3469387755099},"[h]"]
[]
[null,"Number of flights per year (on average distance traveled)","nf,a",{"$f":"D204/D96","v":1630.204081632653},"[-]"]
[]
[]
[null,"Number of passenger kilometers"]
[]
[null,"Average number of passenger-kilometers per flight","PKMf",{"$f":"D187*D191","v":130877.13600000001},"[PKM/flight]"]
[]
[null,"Average number of PAX per year","nPAX,a",{"$f":"D187*D206","v":195624.48979591837},"[-]"]
[]
[null,"Average distance travelled per year","da",{"$f":"D206*D191","v":1777970.3441632653},"[km]"]
[]
[null,"Average number of passenger-kilometers per year","PKMa",{"$f":"D187*D215","v":213356441.29959184},"[PKM/year]"]
[]
[null,"Number of flight-cycles in the operational life","nf,l",{"$f":"IF(D147=\"Own value\",D149,IF(D147=\"Use suggested value\",K147,\"?\"))*D206","v":40755.102040816324},"[-]"]
[]
[null,"Average number of PAX in the operational life","nPAX,l",{"$f":"D213*IF(D147=\"Own value\",D149,IF(D147=\"Use suggested value\",K147,\"?\"))","v":4890612.2448979598},"[-]"]
[]
[null,"Average distance traveled in the operational life","dl",{"$f":"IF(D147=\"Own value\",D149,IF(D147=\"Use suggested value\",K147,\"?\"))*D215","v":44449258.604081631},"[km]"]
[]
[null,"Average number of passenger-kilometers in the operational life","PKMl",{"$f":"D187*D223","v":5333911032.4897957},"[PKM/aircraft]"]
[]
[null,"Average distance traveled per aircraft fleet","dfam",{"$f":"IF(D151=\"Own value\",D155,IF(D151=\"Use suggested value\",K153,\"?\"))*D223","v":888985172081.63257},"[PKM/aircraft]"]
[]
[null,"Average number of passenger-kilometers per aircraft fleet","PKMfam",{"$f":"D187*D227","v":106678220649795.91},"[PKM/fleet]"]
[]
[]
[{"$f":"$A$64 & \".\" & RIGHT(A66,1)+1","v":"2.2"},"Design and Development"]
[]
[{"$f":"$A$232 & \".1\"","v":"2.2.1"},"Computer use during aircraft design "]
[]
[null,"Inputs"]
[]
[null,"Development costs","cew",{"$f":"D163*IF(D157=\"Own value\",D161,IF(D157=\"Use suggested value\",K159,\"?\"))*10^9","v":9000000000},"[Euro]"]
[]
[null,"Estimated share of engineering costs from total costs","ping",75,"[%]"]
[]
[null,"Average monthly engineering salary","cing,m",{"$f":"50000/12","v":4166.666666666667},"[Euro]"]
[]
[null,"Average monthly working days","dm",21.75,"[d]"]
[]
[null,"Average monthly working hours","hm",176,"[h]"]
[]
[]
[null,"Calculation of the electric energy consumption"]
[]
[null,"Average engineering salary per hour","cing,h",{"$f":"D242/D246","v":23.674242424242426},"[Euro]"]
[]
[null,"Average engineering salary per hour","cing,h",{"$f":"D251/D163","v":31.565656565656568},"[USD]"]
[]
[null,"Engineering Development Hours","nh",{"$f":"IF(D157=\"Own value\",D161,IF(D157=\"Use suggested value\",K159,\"?\"))*10^9*D240/100/D253","v":285120000},"[h]"]
[]
[null,"Engineering Development Days","nd",{"$f":"D255/8","v":35640000},"[d]"]
[]
[null,"Electric energy consumption of an office computer in 4 years","E4a",305,"[kWh]",null,null,null,"Source: Reference 6"]
[]
[null,"Average working days per year","da",250,"[-]"]
[]
[null,"Electric energy consumption of an office computer per day","Ed",{"$f":"D259/4/D261","v":0.30499999999999999},"[kWh]"]
[]
[null,"Computer Energy Consumption per Aircraft Development","E",{"$f":"D263*D257","v":10870200},"[kWh]"]
[]
[null,"Elec. Energy Consumption due to comp. use during a/c design per PKM","EPKM",{"$f":"D193*D265/IF(D151=\"Own value\",D155,IF(D151=\"Use suggested value\",K153,\"?\"))/D225","v":8.3555611873781774E-8},"[kWh/PKM]"]
[]
[]
[null,"Emissions per kWh (Source: Reference 9)"]
[]
[null,"Emission factor CO2","IOFCO2",0.56000000000000005,"[kg/kWh]",null,null,null,"CO2 due to computer use","xCO2",{"$f":"$D$265*D272","v":6087312.0000000009},"[kg]"]
[]
[null,"Emission factor Hard coal; 26.3 MJ/kg","IOFhard_coal",8.1000000000000003E-2,"[kg/kWh]",null,null,null,"Hard coal; 26.3 MJ/kg due to computer use","xhard_coal",{"$f":"$D$265*D274","v":880486.20000000007},"[kg]"]
[]
[null,"Emission factor Natural gas; 44.1 MJ/kg","IOFnatural_gas",4.1000000000000002E-2,"[kg/kWh]",null,null,null,"Natural gas; 44.1 MJ/kg due to computer use","xnatural_gas",{"$f":"$D$265*D276","v":445678.2},"[kg]"]
[]
[null,"Emission factor Brown coal; 11.9 MJ/kg","IOFbrown_coal",0.12,"[kg/kWh]",null,null,null,"Brown coal; 11.9 MJ/kg due to computer use","xbrown_coal",{"$f":"$D$265*D278","v":1304424},"[kg]"]
[]
[null,"Emission factor Crude oil; 42.3 MJ/kg","IOFcrude_oil",1.7000000000000001E-2,"[kg/kWh]",null,null,null,"Crude oil; 42.3 MJ/kg due to computer use","xcrude_oil",{"$f":"$D$265*D280","v":184793.40000000002},"[kg]"]
[]
[null,"Emission factor SO2","IOFSO2",3.3E-3,"[kg/kWh]",null,null,null,"SO2 due to computer use","xSO2",{"$f":"$D$265*D282","v":35871.659999999996},"[kg]"]
[]
[]
[null,"Emissions per PKM due to computer use during aircraft design"]
[]
[null,"CO2 per PKM","xPKM,CO2",{"$f":"K272*10^3/$D$229*$D$193","v":4.6791142649317807E-5},"[g/PKM]"]
[]
[null,"Hard coal; 26.3 MJ/kg per PKM","xPKM,hard_coal",{"$f":"K274*10^3/$D$229*$D$193","v":6.7680045617763262E-6},"[g/PKM]"]
[]
[null,"Natural gas; 44.1 MJ/kg per PKM","xPKM,natural_gas",{"$f":"K276*10^3/$D$229*$D$193","v":3.4257800868250536E-6},"[g/PKM]"]
[]
[null,"Brown coal; 11.9 MJ/kg per PKM","xPKM,brown_coal",{"$f":"K278*10^3/$D$229*$D$193","v":1.0026673424853815E-5},"[g/PKM]"]
[]
[null,"Crude oil; 42.3 MJ/kg per PKM","xPKM,crude_oil",{"$f":"K280*10^3/$D$229*$D$193","v":1.4204454018542906E-6},"[g/PKM]"]
[]
[null,"SO2 per PKM","xPKM,SO2",{"$f":"K282*10^3/$D$229*$D$193","v":2.7573351918347983E-7},"[g/PKM]"]
[]
[]
[{"$f":"LEFT(A234,4) & RIGHT(A234,1) + 1","v":"2.2.2"},"Wind tunnel tests"]
[]
[null,"Inputs"]
[]
[null,"Number of wind tunnel test days","nWT,d",{"$f":"LCA_Stat!D189","v":1670.6666666666667},"[-]"]
[]
[null,"Carbon footprint per wind tunnel test year","IOFCO2eq",18600,"[t CO2 eq/year]"]
[]
[]
[null,"Calculation of the CO2 emissions"]
[]
[null,"Number of wind tunnel test years","nWT,a",{"$f":"D304/365.25","v":4.574036048368697},"[-]"]
[]
[null,"Carbon footprint per aircraft development","xCO2",{"$f":"D311*D306","v":85077.07049965777},"[t CO2 eq/development]"]
[]
[null,"Carbon footprint per aircraft","xCO2",{"$f":"D313/IF(D151=\"Own value\",D155,IF(D151=\"Use suggested value\",K153,\"?\"))","v":4.2538535249828886},"[t CO2 eq/aircraft]"]
[]
[]
[null,"Emissions per PKM due to wind tunnel test"]
[]
[null,"CO2 per PKM","xPKM,CO2",{"$f":"D313*10^6/$D$229*$D$193","v":6.5395914353257305E-4},"[g/PKM]"]
[]
[]
[{"$f":"LEFT(A300,4) & RIGHT(A300,1) + 1","v":"2.2.3"},"Test flight campaign"]
[]
[null,"Inputs"]
[]
[null,"Number of test aircraft","na/c,test",{"$f":"LCA_Stat!C211","v":5},"[-]"]
[]
[null,"Number of total flight test hours","nh,z",{"$f":"LCA_Stat!C222","v":3700},"[h]"]
[]
[null,"Specific fuel consumption","mF,h",{"$f":"ROUND(D80/D96,-2)","v":2700},"[kg/h]"]
[]
[]
[null,"Results"]
[]
[null,"Total mass of fuel burned","mF",{"$f":"D329*D331","v":9990000},"[kg]"]
[]
[]
[]
[null,"Emissions due to fuel consumption during the flight test campaign"]
[]
[null,"O2","xO2",{"$f":"$D$336*D$578*10^3","v":33966000000},"[g]"]
[]
[null,"CO2","xCO2",{"$f":"$D$336*D$576*10^3","v":31468500000},"[g]"]
[]
[null,"H20","xH2O",{"$f":"$D$336*D$580*10^3","v":12287700000},"[g]"]
[]
[null,"SO2","xSO2",{"$f":"$D$336*D$586","v":8391600},"[g]"]
[]
[null,"NOx","xNOx",{"$f":"$D$336*D$582","v":160612588.46536124},"[g]"]
[]
[null,"CO","xCO",{"$f":"$D$336*D$588","v":17023441.299893335},"[g]"]
[]
[null,"HC","xHC",{"$f":"$D$336*D$584","v":719335.91113921313},"[g]"]
[]
[]
[null,"Emissions due to the production of the flight test aircraft fleet:"]
[]
[null,"Crude oil;\n42.3 MJ/kg","xcrude_oil",{"$f":"SUM(K479,K500)*D327","v":77646531.816},"[g]"]
[]
[null,"CO2","xCO2",{"$f":"SUM(K477,K492,K511)*D327","v":2235899435.9520001},"[g]"]
[]
[null,"Natural gas; 44.1 MJ/kg","xnatural_gas",{"$f":"SUM(K475,K494,K515)*D327","v":241954956.43200004},"[g]"]
[]
[null,"Hard coal; 26.3 MJ/kg","xhard_coal",{"$f":"SUM(K481,K496,K507)*D327","v":289978562.66399997},"[g]"]
[]
[null,"Brown coal; 11.9 MJ/kg","xbrown_coal",{"$f":"SUM(K483,K498)*D327","v":386606325.67199999},"[g]"]
[]
[null,"SO2","xSO2",{"$f":"SUM(K485,K502)*D327","v":11092722.2784},"[g]"]
[]
[null,"PM10","xPM10",{"$f":"SUM(K487,K517)*D327","v":240436.02240000002},"[g]"]
[]
[null,"Fe","xFe",{"$f":"K509*D327","v":3093217.5120000001},"[g]"]
[]
[null,"Mn","xMn",{"$f":"K513*D327","v":29217.249599999996},"[g]"]
[]
[]
[null,"Total emissions per PKM due to the flight test campaign"]
[]
[null,"O2 per PKM","xPKM,O2",{"$f":"D342/$D$229*$D$193","v":2.6108534460312342E-4},"[g/PKM]"]
[]
[null,"CO2 per PKM","xPKM,CO2",{"$f":"(D344+D361)/$D$229*$D$193","v":2.5907450807798526E-4},"[g/PKM]"]
[]
[null,"H20 per PKM","xPKM,H2O",{"$f":"D346/$D$229*$D$193","v":9.4451462900541704E-5},"[g/PKM]"]
[]
[null,"NOx per PKM","xPKM,NOx",{"$f":"D350/$D$229*$D$193","v":1.2345755463427688E-6},"[g/PKM]"]
[]
[null,"CO per PKM","xPKM,CO",{"$f":"D352/$D$229*$D$193","v":1.3085353112270197E-7},"[g/PKM]"]
[]
[null,"HC per PKM","xPKM,HC",{"$f":"D354/$D$229*$D$193","v":5.5292958913379039E-9},"[g/PKM]"]
[]
[null,"SO2 per PKM","xPKM,SO2",{"$f":"(D348+D369)/$D$229*$D$193","v":1.4976950469335158E-7},"[g/PKM]"]
[]
[null,"Crude oil; \n42.3 MJ/kg per PKM","xPKM,crude_oil",{"$f":"D359/$D$229*$D$193","v":5.9684306413524542E-7},"[g/PKM]"]
[]
[null,"PM10 per PKM","xPKM,PM10",{"$f":"D371/$D$229*$D$193","v":1.8481517330067806E-9},"[g/PKM]"]
[]
[null,"Hard coal; 26.3 MJ/kg per PKM","xPKM,hard_coal",{"$f":"D365/$D$229*$D$193","v":2.2289687617219823E-6},"[g/PKM]"]
[]
[null,"Natural gas; 44.1 MJ/kg per PKM","xPKM,natural_gas",{"$f":"D363/$D$229*$D$193","v":1.859827273699654E-6},"[g/PKM]"]
[]
[null,"Brown coal; 11.9 MJ/kg per PKM","xPKM,brown_coal",{"$f":"D367/$D$229*$D$193","v":2.9717142367020398E-6},"[g/PKM]"]
[]
[null,"Fe per PKM","xPKM,Fe",{"$f":"D373/$D$229*$D$193","v":2.3776534182798566E-8},"[g/PKM]"]
[]
[null,"Mn per PKM","xPKM,Mn",{"$f":"D375/$D$229*$D$193","v":2.2458327975538682E-10},"[g/PKM]"]
[]
[]
[{"$f":"$A$64 & \".\" & RIGHT(A232,1)+1","v":"2.3"},"Production"]
[]
[{"$f":"$A$409 & \".1\"","v":"2.3.1"},"Use of Production Facilities"]
[]
[null,"Inputs/Outputs per sold seat due to the use of production facilities",null,null,"Reference"]
[]
[null,"Year of data collection","yPF",2007,"[-]"]
[]
[null,"Emission factor Natural gas","IOFnatural_gas",1337,"[kg/sold seat]",null,">>>>>",null,"Natural gas; 44.1 MJ/kg per aircraft","xnatural_gas",{"$f":"ROUND($D$72*$D$183,0)*D417","v":200550},"[kg]"]
[]
[null,"Emission factor CO2","IOFCO2",5728,"[kg/sold seat]",null,">>>>>",null,"CO2 per aircraft","xCO2",{"$f":"ROUND($D$72*$D$183,0)*D419","v":859200},"[kg]"]
[]
[null,"Emission factor Crude oil; 42.3 MJ/kg","IOFcrude_oil",1053,"[kg/sold seat]",null,">>>>>",null,"Crude oil; 42.3 MJ/kg per aircraft","xcrude_oil",{"$f":"ROUND($D$72*$D$183,0)*D421","v":157950},"[kg]"]
[]
[null,"Emission factor Brown coal; 11.9 MJ/kg","IOFbrown_coal",1829,"[kg/sold seat]",null,">>>>>",null,"Brown coal; 11.9 MJ/kg per aircraft","xbrown_coal",{"$f":"ROUND($D$72*$D$183,0)*D423","v":274350},"[kg]"]
[]
[null,"Emission factor Hard coal; 26.3 MJ/kg","IOFhard_coal",491,"[kg/sold seat]",null,">>>>>",null,"Hard coal; 26.3 MJ/kg per aircraft","xhard_coal",{"$f":"ROUND($D$72*$D$183,0)*D425","v":73650},"[kg]"]
[]
[null,"Emission factor SO2","IOFSO2",68,"[kg/sold seat]",null,">>>>>",null,"SO2 per aircraft","xSO2",{"$f":"ROUND($D$72*$D$183,0)*D427","v":10200},"[kg]"]
[]
[]
[null,"Inputs/Outputs per PKM due to the use of production facilities"]
[]
[null,"Natural gas; 44.1 MJ/kg per PKM","xPKM,natural_gas",{"$f":"K417*10^3/$D$225*$D$193","v":3.083122290535029E-2},"[g/PKM]"]
[]
[null,"CO2 per PKM","xPKM,CO2",{"$f":"K419*10^3/$D$225*$D$193","v":0.13208769244715518},"[g/PKM]"]
[]
[null,"Crude oil; 42.3 MJ/kg per PKM","xPKM,crude_oil",{"$f":"K421*10^3/$D$225*$D$193","v":2.4282182288207822E-2},"[g/PKM]"]
[]
[null,"Brown coal; 11.9 MJ/kg per PKM","xPKM,brown_coal",{"$f":"K423*10^3/$D$225*$D$193","v":4.2176743974484433E-2},"[g/PKM]"]
[]
[null,"Hard coal; 26.3 MJ/kg per PKM","xPKM,hard_coal",{"$f":"K425*10^3/$D$225*$D$193","v":1.1322461066961102E-2},"[g/PKM]"]
[]
[null,"SO2 per PKM","xPKM,SO2",{"$f":"K427*10^3/$D$225*$D$193","v":1.5680801477665071E-3},"[g/PKM]"]
[]
[]
[{"$f":"LEFT(A411,4) & RIGHT(A411,1) + 1","v":"2.3.2"},"Material production"]
[]
[null,"Inputs",null,null,null,null,null,null,null,null,null,null,null,null,null,null,null,null,null,null,null,null,null,null,null,null,null,null,null,null,null,null,"Sum of component masses",null,null,{"$f":"SUM(D112:D124)","v":28733},"[kg]"]
[]
[null,"Percentage of aluminum","pm,Al",{"$f":"IF(D110=\"Enter material distribution\",K112,IF(D110=\"Use suggested values\",K126,AH471))","v":72},"[%]",null,">>>>>",null,"Actual aluminum mass","mm,Al",{"$f":"IF(D110=\"Enter component masses\",AH473,IF(OR(D110=\"Enter material distribution\",D110=\"Use suggested values\"),D449/100*$D$76,\"?\"))","v":29695.68},"[kg]",null,null,null,null,null,null,null,null,null,null,null,null,null,null,null,null,null,null,null,null,"Remaining mass",null,null,{"$f":"D76-AJ447","v":12511},"[kg]"]
[]
[null,"Percentage of steel","pm,St",{"$f":"IF(D110=\"Enter material distribution\",K114,IF(D110=\"Use suggested values\",K128,AI471))","v":7},"[%]",null,">>>>>",null,"Actual steel mass","mm,St",{"$f":"IF(D110=\"Enter component masses\",AI473,IF(OR(D110=\"Enter material distribution\",D110=\"Use suggested values\"),D451/100*$D$76,\"?\"))","v":2887.0800000000004},"[kg]",null,null,null,null,null,null,null,null,null,null,null,null,null,null,null,null,null,null,null,null,null,"Share of"]
[null,null,null,null,null,null,null,null,null,null,null,null,null,null,null,null,null,null,null,null,null,null,null,null,null,null,null,null,null,null,null,null,null,"Aluminum","Steel","CFRP","Titanium","GFRP","Nickel","Misc."]
[null,"Percentage of composites","pm,Co",{"$f":"IF(D110=\"Enter material distribution\",K116,IF(D110=\"Use suggested values\",K130,AJ471+AL471))","v":12},"[%]",null,">>>>>",null,"Actual composites mass","mm,Co",{"$f":"IF(D110=\"Enter component masses\",AJ473+AL473,IF(OR(D110=\"Enter material distribution\",D110=\"Use suggested values\"),D453/100*$D$76,\"?\"))","v":4949.28},"[kg]",null,null,null,null,null,null,null,null,null,null,null,null,null,null,null,null,null,null,null,null,"Wing",{"$f":"LCA_Stat!C68","v":0.84136132839302868},{"$f":"LCA_Stat!D68","v":2.8292392845706966E-2},{"$f":"LCA_Stat!E68","v":7.6803439915831842E-2},{"$f":"LCA_Stat!F68","v":5.3542838845432504E-2}]
[null,null,null,null,null,null,null,null,null,null,null,null,null,null,null,null,null,null,null,null,null,null,null,null,null,null,null,null,null,null,null,null,"Main landing gear",{"$f":"LCA_Stat!C72","v":4.8881659211061405E-2},{"$f":"LCA_Stat!D72","v":0.89410329402196009},{"$f":"LCA_Stat!E72","v":8.1333875559170387E-3},{"$f":"LCA_Stat!F72","v":4.8881659211061405E-2}]
[null,"Percentage of titanium","pm,Ti",{"$f":"IF(D110=\"Enter material distribution\",K118,IF(D110=\"Use suggested values\",K132,AK471))","v":6},"[%]",null,">>>>>",null,"Actual titanium mass","mm,Ti",{"$f":"IF(D110=\"Enter component masses\",AK473,IF(OR(D110=\"Enter material distribution\",D110=\"Use suggested values\"),D455/100*$D$76,\"?\"))","v":2474.64},"[kg]",null,null,null,null,null,null,null,null,null,null,null,null,null,null,null,null,null,null,null,null,"Nose landing gear",{"$f":"LCA_Stat!C76","v":4.5379537953795381E-2},{"$f":"LCA_Stat!D76","v":0.84158415841584155},{"$f":"LCA_Stat!E76","v":6.7656765676567657E-2},{"$f":"LCA_Stat!F76","v":4.5379537953795381E-2}]
[null,null,null,null,null,null,null,null,null,null,null,null,null,null,null,null,null,null,null,null,null,null,null,null,null,null,null,null,null,null,null,null,"Fuselage",{"$f":"LCA_Stat!C80","v":0.85070012729587197},{"$f":"LCA_Stat!D80","v":6.873977086743044E-3},{"$f":"LCA_Stat!E80","v":6.401163847972359E-2},{"$f":"LCA_Stat!F80","v":4.546281142025823E-2},{"$f":"LCA_Stat!G80","v":4.5462811420258226E-3},{"$f":"LCA_Stat!H80","v":0},{"$f":"LCA_Stat!I80","v":2.840516457537734E-2}]
[null,"Percentage of misc.","pm,Mi",{"$f":"IF(D110=\"Enter material distribution\",K120,IF(D110=\"Use suggested values\",K134,AM471+AN471))","v":3},"[%]",null,">>>>>",null,"Actual misc. mass","mm,Mi",{"$f":"IF(D110=\"Enter component masses\",SUM(AM473:AN473),IF(OR(D110=\"Enter material distribution\",D110=\"Use suggested values\"),D457/100*$D$76))","v":1237.32},"[kg]",null,null,null,null,null,null,null,null,null,null,null,null,null,null,null,null,null,null,null,null,"Vertical Stabilizer",{"$f":"LCA_Stat!C84","v":3.4395973154362415E-2},{"$f":"LCA_Stat!D84","v":0},{"$f":"LCA_Stat!E84","v":0.55033557046979864},{"$f":"LCA_Stat!F84","v":0},{"$f":"LCA_Stat!G84","v":0.41526845637583892}]
[null,null,null,null,null,null,null,null,null,null,null,null,null,null,null,null,null,null,null,null,null,null,null,null,null,null,null,null,null,null,null,null,"Horizontal Stabilizer",{"$f":"LCA_Stat!C88","v":5.3809270111880664E-2},{"$f":"LCA_Stat!D88","v":0},{"$f":"LCA_Stat!E88","v":0.91742141715503467},{"$f":"LCA_Stat!F88","v":0},{"$f":"LCA_Stat!G88","v":2.8769312733084709E-2}]
[null,null,null,null,null,null,null,null,null,null,null,null,null,null,null,null,null,null,null,null,null,null,null,null,null,null,null,null,null,null,null,null,"Engines",{"$f":"LCA_Stat!C92","v":5.042609781251696E-2},{"$f":"LCA_Stat!D92","v":0.37719155403571625},{"$f":"LCA_Stat!E92","v":0.11208815068121369},{"$f":"LCA_Stat!F92","v":2.0843510828855237E-2},{"$f":"LCA_Stat!G92","v":0.21245182652119632},{"$f":"LCA_Stat!H92","v":0.16001736959235738},{"$f":"LCA_Stat!I92","v":6.6981490528144172E-2}]
[null,"Required material production considering reuse"]
[null,null,null,null,null,null,null,null,null,null,null,null,null,null,null,null,null,null,null,null,null,null,null,null,null,null,null,null,null,null,null,null,null,"Mass [kg]"]
[null,"Aluminum","mn,Al",{"$f":"K449*(1-$D$828)","v":29101.7664},"[kg]",null,null,null,null,null,null,null,null,null,null,null,null,null,null,null,null,null,null,null,null,null,null,null,null,null,null,null,null,"Aluminum","Steel","CFRP","Titanium","GFRP","Nickel","Misc."]
[null,null,null,null,null,null,null,null,null,null,null,null,null,null,null,null,null,null,null,null,null,null,null,null,null,null,null,null,null,null,null,null,"Wing",{"$f":"$D112*AH453","v":6227.7565527651986},{"$f":"$D112*AI453","v":209.42029184392297},{"$f":"$D112*AJ453","v":568.49906225698726},{"$f":"$D112*AK453","v":396.32409313389138}]
[null,"Steel","mn,St",{"$f":"K451*(1-$D$837)","v":1270.3152},"[kg]",null,null,null,null,null,null,null,null,null,null,null,null,null,null,null,null,null,null,null,null,null,null,null,null,null,null,null,"Main landing gear",{"$f":"$D114*AH454","v":125.18592923952826},{"$f":"$D114*AI454","v":2289.79853599024},{"$f":"$D114*AJ454","v":20.829605530703535},{"$f":"$D114*AK454","v":125.18592923952826}]
[null,null,null,null,null,null,null,null,null,null,null,null,null,null,null,null,null,null,null,null,null,null,null,null,null,null,null,null,null,null,null,null,"Nose landing gear",{"$f":"$D116*AH455","v":19.558580858085808},{"$f":"$D116*AI455","v":362.7227722772277},{"$f":"$D116*AJ455","v":29.160066006600658},{"$f":"$D116*AK455","v":19.558580858085808}]
[null,"Composites","mn,Co",{"$f":"K453*(1-$D$846)","v":4701.8159999999998},"[kg]",null,null,null,null,null,null,null,null,null,null,null,null,null,null,null,null,null,null,null,null,null,null,null,null,null,null,null,"Fuselage",{"$f":"$D118*AH456","v":6145.457719585379},49.657610474631753,462.42007637752323,328.42334969994545,32.842334969994546,0,205.19890889252591]
[null,null,null,null,null,null,null,null,null,null,null,null,null,null,null,null,null,null,null,null,null,null,null,null,null,null,null,null,null,null,null,null,"Vertical Stabilizer",{"$f":"$D120*AH457","v":28.651845637583893},{"$f":"$D120*AI457","v":0},{"$f":"$D120*AJ457","v":458.42953020134229},{"$f":"$D120*AK457","v":0},{"$f":"$D120*AL457","v":345.91862416107381}]
[null,"Titanium","mn,Ti",{"$f":"K455*(1-$D$828)","v":2425.1471999999999},"[kg]",null,null,null,null,null,null,null,null,null,null,null,null,null,null,null,null,null,null,null,null,null,null,null,null,null,null,null,"Horizontal Stabilizer",{"$f":"$D122*AH458","v":88.677677144379331},{"$f":"$D122*AI458","v":0},{"$f":"$D122*AJ458","v":1511.9104954714971},{"$f":"$D122*AK458","v":0},{"$f":"$D122*AL458","v":47.411827384123598}]
[null,null,null,null,null,null,null,null,null,null,null,null,null,null,null,null,null,null,null,null,null,null,null,null,null,null,null,null,null,null,null,null,"Engines",{"$f":"$D124*AH459","v":435.37892851327143},3256.6718775443742,967.76909298159899,179.9628724963361,1834.309070184009,1381.5899690604135,578.31818921999673]
[null,"Misc.","mn,Mi",{"$f":"K457*(1-$D$828)","v":1212.5735999999999},"[kg]",null,null,null,null,null,null,null,null,null,null,null,null,null,null,null,null,null,null,null,null,null,null,null,null,null,null,null,"Sum [kg]",{"$f":"SUM(AH463:AH469)","v":13070.667233743427},6168.2710881303965,4019.0179288262534,1049.454825427787,2260.4818566992008,1381.5899690604135,783.5170981125226]
[null,null,null,null,null,null,null,null,null,null,null,null,null,null,null,null,null,null,null,null,null,null,null,null,null,null,null,null,null,null,null,null,"Share [%]",{"$f":"AH470/$AJ$447*100","v":45.490088865567216},21.467549814256763,13.987463643985151,3.6524373557504854,7.8671974966039073,4.8083735393464426,2.7268892844900376]
[null,null,null,null,null,null,null,null,null,null,null,null,null,null,null,null,null,null,null,null,null,null,null,null,null,null,null,null,null,null,null,null,"Remaining mass distribution [kg]",{"$f":"AH471/100*$AJ$449","v":5691.2650179711145},2685.8051572616637,1749.9715764989824,456.95643757794323,984.26507880011491,601.57561350763342,341.16111838254858]
[null,"Inputs/Outputs due to aluminum production:",null,"(ELCD: 50 % aluminum sheets, 50 % aluminum extrusion profiles)",null,null,"Reference",null,null,null,null,null,null,null,null,null,null,null,null,null,null,null,null,null,null,null,null,null,null,null,null,null,"Total sum [kg]",{"$f":"AH470+AH472","v":18761.932251714541},8854.0762453920597,5768.9895053252358,1506.4112630057302,3244.7469354993154,1983.1655825680468,1124.6782164950712]
[]
[null,"Emission factor Natural gas; 44.1 MJ/kg per produced ton","IOFnatural_gas",327,"[kg/t]",null,">>>>>",null,"Natural gas; 44.1 MJ/kg per aircraft","xnatural_gas",{"$f":"($D$462/1000)*D475*10^3","v":9516277.6128000002},"[g]"]
[]
[null,"Emission factor CO2 per produced ton","IOFCO2",2539,"[kg/t]",null,">>>>>",null,"CO2 per aircraft","xCO2",{"$f":"($D$462/1000)*D477*10^3","v":73889384.889599994},"[g]",null,null,null,null,null,null,null,null,null,null,null,null,null,null,null,null,null,null,"Additional calculations for outputs from the production of 1 t steel sections:"]
[]
[null,"Emission factor Crude oil; 42.3 MJ/kg per produced ton","IOFcrude_oil",168,"[kg/t]",null,">>>>>",null,"Crude oil; 42.3 MJ/kg per aircraft","xcrude_oil",{"$f":"($D$462/1000)*D479*10^3","v":4889096.7552000005},"[g]",null,null,null,null,null,null,null,null,null,null,null,null,null,null,null,null,null,null,"Mercury","air / unspecified",8.1799999999999996E-5,"kg"]
[null,null,null,null,null,null,null,null,null,null,null,null,null,null,null,null,null,null,null,null,null,null,null,null,null,null,null,null,null,null,"Mercury","Water / ocean",5.0600000000000003E-8,"kg"]
[null,"Emission factor Hard coal; 26.3 MJ/kg per produced ton","IOFhard_coal",247,"[kg/t]",null,">>>>>",null,"Hard coal; 26.3 MJ/kg per aircraft","xhard_coal",{"$f":"($D$462/1000)*D481*10^3","v":7188136.3007999994},"[g]",null,null,null,null,null,null,null,null,null,null,null,null,null,null,null,null,null,null,null,null,{"$f":"SUM(AG479:AG480)","v":8.1850599999999999E-5},"kg"]
[]
[null,"Emission factor Brown coal; 11.9 MJ/kg per produced ton","IOFbrown_coal",211,"[kg/t]",null,">>>>>",null,"Brown coal; 11.9 MJ/kg per aircraft","xbrown_coal",{"$f":"($D$462/1000)*D483*10^3","v":6140472.7103999993},"[g]",null,null,null,null,null,null,null,null,null,null,null,null,null,null,null,null,null,null,"Lead","air / unspecified",1.9E-3,"kg"]
[null,null,null,null,null,null,null,null,null,null,null,null,null,null,null,null,null,null,null,null,null,null,null,null,null,null,null,null,null,null,"Lead","Water / fresh water",2.3799999999999999E-5,"kg"]
[null,"Emission factor SO2 per produced ton","IOFSO2",8.6999999999999993,"[kg/t]",null,">>>>>",null,"SO2 per aircraft","xSO2",{"$f":"($D$462/1000)*D485*10^3","v":253185.36767999997},"[g]",null,null,null,null,null,null,null,null,null,null,null,null,null,null,null,null,null,null,"Lead","Water / ocean",1.9800000000000001E-6,"kg"]
[null,null,null,null,null,null,null,null,null,null,null,null,null,null,null,null,null,null,null,null,null,null,null,null,null,null,null,null,null,null,null,null,{"$f":"SUM(AG483:AG485)","v":1.92578E-3},"kg"]
[null,"Emission factor PM10 per produced ton","IOFPM10",1.6,"[kg/t]",null,">>>>>",null,"PM10 per aircraft","xPM10",{"$f":"($D$462/1000)*D487*10^3","v":46562.826240000002},"[g]"]
[]
[null,null,null,null,null,null,null,null,null,null,null,null,null,null,null,null,null,null,null,null,null,null,null,null,null,null,null,null,null,null,"Inputs/Outputs for 1 kg CFRP production (from Lopes)"]
[null,"Inputs/Outputs due to composite production:"]
[null,null,null,null,null,null,null,null,null,null,null,null,null,null,null,null,null,null,null,null,null,null,null,null,null,null,null,null,null,null,"Nitrogen, liquid, at plant/RER U",6.33,"kg"]
[null,"Emission factor CO2 per produced ton","IOFCO2",79000,"[kg/t]",null,">>>>>",null,"CO2 per aircraft","xCO2",{"$f":"($D$466/1000)*D492*10^3","v":371443464},"[g]",null,null,null,null,null,null,null,null,null,null,null,null,null,null,null,null,null,null,"Polyacrylonitrile fibers (PAN",0.93,"kg"]
[null,null,null,null,null,null,null,null,null,null,null,null,null,null,null,null,null,null,null,null,null,null,null,null,null,null,null,null,null,null,"Epoxy resin, liquid, at plant/RER U",0.39800000000000002,"kg"]
[null,"Emission factor Natural gas; 44.1 MJ/kg","IOFnatural_gas",8251,"[kg/t]",null,">>>>>",null,"Natural gas; 44.1 MJ/kg per aircraft","xnatural_gas",{"$f":"($D$466/1000)*D494*10^3","v":38794683.816},"[g]",null,null,null,null,null,null,null,null,null,null,null,null,null,null,null,null,null,null,"Heat, natural gas",105.3,"MJ"]
[null,null,null,null,null,null,null,null,null,null,null,null,null,null,null,null,null,null,null,null,null,null,null,null,null,null,null,null,null,null,"Electricity, production mix JP/JP U",{"$f":"135850*3.6/1000","v":489.06},"MJ"]
[null,"Emission factor Hard coal; 26.3 MJ/kg","IOFhard_coal",10656,"[kg/t]",null,">>>>>",null,"Hard coal; 26.3 MJ/kg per aircraft","xhard_coal",{"$f":"($D$466/1000)*D496*10^3","v":50102551.295999996},"[g]"]
[null,null,null,null,null,null,null,null,null,null,null,null,null,null,null,null,null,null,null,null,null,null,null,null,null,null,null,null,null,null,"Further outputs from CFRP production calculated based on the inputs/outputs from Lopes"]
[null,"Emission factor Brown coal; 11.9 MJ/kg","IOFbrown_coal",15139,"[kg/t]",null,">>>>>",null,"Brown coal; 11.9 MJ/kg per aircraft","xbrown_coal",{"$f":"($D$466/1000)*D498*10^3","v":71180792.423999995},"[g]",null,null,null,null,null,null,null,null,null,null,null,null,null,null,null,null,null,null,null,null,"Outputs for 1 kg CFRP","Outputs for 1 t CFRP"]
[null,null,null,null,null,null,null,null,null,null,null,null,null,null,null,null,null,null,null,null,null,null,null,null,null,null,null,null,null,null,"SO2",null,0.45,{"$f":"AG499*1000","v":450}]
[null,"Emission factor Crude oil; 42.3 MJ/kg per produced ton","IOFcrude_oil",2263,"[kg/t]",null,">>>>>",null,"Crude oil; 42.3 MJ/kg per aircraft","xcrude_oil",{"$f":"($D$466/1000)*D500*10^3","v":10640209.607999999},"[g]",null,null,null,null,null,null,null,null,null,null,null,null,null,null,null,null,null,null,"Particulates <2.5 μm",null,1.2999999999999999E-2,{"$f":"AG500*1000","v":13}]
[null,null,null,null,null,null,null,null,null,null,null,null,null,null,null,null,null,null,null,null,null,null,null,null,null,null,null,null,null,null,"Particulates >2.5 μm, <10 μm",null,6.4999999999999997E-3,{"$f":"AG501*1000","v":6.5}]
[null,"Emission factor SO2 per produced ton","IOFSO2",418,"[kg/t]",null,">>>>>",null,"SO2 per aircraft","xSO2",{"$f":"($D$466/1000)*D502*10^3","v":1965359.088},"[g]"]
[]
[]
[null,"Inputs/Outputs due to steel production:",null,"(ELCD: \"Steel sections (ILCD)\")",null,null,"Reference"]
[]
[null,"Emission factor Hard coal; 26.3 MJ/kg","IOFhard_coal",555,"[kg/t]",null,">>>>>",null,"Hard coal; 26.3 MJ/kg per aircraft","xhard_coal",{"$f":"($D$464/1000)*D507*10^3","v":705024.93599999999},"[g]"]
[]
[null,"Emission factor Fe","IOFFe",487,"[kg/t]",null,">>>>>",null,"Fe per aircraft","xFe",{"$f":"($D$464/1000)*D509*10^3","v":618643.5024},"[g]"]
[]
[null,"Emission factor CO2 per produced ton","IOFCO2",1454,"[kg/t]",null,">>>>>",null,"CO2 per aircraft","xCO2",{"$f":"($D$464/1000)*D511*10^3","v":1847038.3007999999},"[g]"]
[]
[null,"Emission factor Mn","IOFMn",4.5999999999999996,"[kg/t]",null,">>>>>",null,"Mn per aircraft","xMn",{"$f":"($D$464/1000)*D513*10^3","v":5843.4499199999991},"[g]"]
[]
[null,"Emission factor Natural gas; 44.1 MJ/kg","IOFnatural_gas",63,"[kg/t]",null,">>>>>",null,"Natural gas; 44.1 MJ/kg per aircraft","xnatural_gas",{"$f":"($D$464/1000)*D515*10^3","v":80029.857600000003},"[g]"]
[]
[null,"Emission factor PM10 per produced ton","IOFPM10",1.2,"[kg/t]",null,">>>>>",null,"PM10 per aircraft","xPM10",{"$f":"($D$464/1000)*D517*10^3","v":1524.3782399999998},"[g]"]
[]
[]
[null,"Total inputs/outputs per PKM due to material production"]
[]
[null,"Crude oil; 42.3 MJ/kg per PKM","xPKM,crude_oil",{"$f":"SUM(K479+K500)/$D$225*$D$193","v":2.3873722565409816E-3},"[g/PKM]"]
[]
[null,"CO2 per PKM","xPKM,CO2",{"$f":"SUM(K477+K492+K511)/$D$225*$D$193","v":6.8746461135660034E-2},"[g/PKM]"]
[]
[null,"Hard coal; 26.3 MJ/kg per PKM","xPKM,hard_coal",{"$f":"(K481+K496+K507)/$D$225*$D$193","v":8.9158750468879295E-3},"[g/PKM]"]
[]
[null,"Natural gas; 44.1 MJ/kg per PKM","xPKM,natural_gas",{"$f":"(K475+K494+K515)/$D$225*$D$193","v":7.439309094798615E-3},"[g/PKM]"]
[]
[null,"Brown coal; 11.9 MJ/kg per PKM","xPKM,brown_coal",{"$f":"(K483+K498)/$D$225*$D$193","v":1.1886856946808157E-2},"[g/PKM]"]
[]
[null,"SO2 per PKM","xPKM,SO2",{"$f":"SUM(K485+K502)/$D$225*$D$193","v":3.4106426645973131E-4},"[g/PKM]"]
[]
[null,"PM10 per PKM","xPKM,PM10",{"$f":"SUM(K487+K517)/$D$225*$D$193","v":7.3926069320271215E-6},"[g/PKM]"]
[]
[null,"Fe per PKM","xPKM,Fe",{"$f":"K509/$D$225*$D$193","v":9.5106136731194259E-5},"[g/PKM]"]
[]
[null,"Mn per PKM","xPKM,Mn",{"$f":"K513/$D$225*$D$193","v":8.9833311902154736E-7},"[g/PKM]"]
[]
[]
[]
[{"$f":"LEFT(A445,4) & RIGHT(A445,1) + 1","v":"2.3.3"},{"$f":"IF($D$78<>\"Electric battery\",\"Only applicable for electric battery powered aircraft\",\"Battery Production\")","v":"Only applicable for electric battery powered aircraft"}]
[]
[null,"Inputs/Outputs due to battery production:"]
[]
[null,"Total battery energy","Ebat,tot",{"$f":"D82*D84/3.6","v":43733.69},"[kWh]"]
[]
[null,"Copper Ore","IOFcopper_ore",1.0300000000000002,"[kg/kWh]"]
[]
[null,"Hard coal; 26,3 MJ/kg","IOFhard_coal",1.6806083650190116,"[kg/kWh]"]
[]
[null,"Natural gas; 44.1 MJ/kg","IOFnatural_gas",1.0997732426303857,"[kg/kWh]"]
[]
[null,"Crude oil; 42.3 MJ/kg","IOFcrude_oil",0.77777777777777801,"[kg/kWh]"]
[]
[]
[null,"Total inputs/outputs per PKM due to battery production"]
[]
[null,"Copper Ore per PKM","xPKM,copper_ore",{"$f":"IF($D$78<>\"Electric battery\",0,$D$546*D548*1000/($D$86*$D$211)*$D$193)","v":0},"[g/PKM]"]
[]
[null,"Hard coal; 26,3 MJ/kg per PKM","xPKM,hard_coal",{"$f":"IF($D$78<>\"Electric battery\",0,$D$546*D550*1000/($D$86*$D$211)*$D$193)","v":0},"[g/PKM]"]
[]
[null,"Natural gas; 44.1 MJ/kg per PKM","xPKM,natural_gas",{"$f":"IF($D$78<>\"Electric battery\",0,$D$546*D552*1000/($D$86*$D$211)*$D$193)","v":0},"[g/PKM]"]
[]
[null,"Crude oil; 42.3 MJ/kg per PKM","xPKM,crude_oil",{"$f":"IF($D$78<>\"Electric battery\",0,$D$546*D554*1000/($D$86*$D$211)*$D$193)","v":0},"[g/PKM]"]
[]
[]
[{"$f":"$A$64 & \".\" & RIGHT(A409,1)+1","v":"2.4"},"Operation"]
[]
[{"$f":"$A$568 & \".1\"","v":"2.4.1"},{"$f":"IF($D$78=\"Electric battery\",\"n/a for electric battery powered aircraft\",\"Cruise flight\")","v":"Cruise flight"}]
[]
[null,"Inputs",null,null,null,null,null,null,null,null,null,null,null,null,null,null,null,null,null,null,null,null,null,null,null,null,null,null,null,null,"Flight distance",{"$f":"D189","v":588.9},"[NM]"]
[]
[null,{"$f":"IF($D$78=\"Electric battery\",\"Electric battery\",IF($D$78=\"Kerosene\",\"Burned kerosene\",IF($D$78=\"Hydrogen\",\"Burned hydrogen\",IF($D$78=\"Alternative fuel\",\"Burned alternative fuel\")))) & \" mass for cruise flight\"","v":"Burned kerosene mass for cruise flight"},"mf",{"$f":"IF(D78=\"Electric battery\",0,D80-SUM(D616,D637,D658,D679))","v":4228.0860000000002},"[kg]",null,null,null,null,null,null,null,null,null,null,null,1,null,"Kerosene",null,"Hydrogen",null,"Alternative fuel",null,"Electric battery"]
[null,null,null,null,null,null,null,null,null,null,null,null,null,null,null,null,2,null,null,null,null,null,null,null,null,null,null,null,null,null,"Source"]
[null,"Emission factor CO2 emissions (Source: Reference: 9)","IOFCO2",{"$f":"HLOOKUP($D$78,$S$574:$AB$588,Q576,FALSE)","v":3.15},"[kg/kg fuel]",null,">>>>>",null,"CO2 emissions per flight","xCO2",{"$f":"$D$574*D576","v":13318.4709},"[kg]",null,null,null,null,3,"IOFCO2",3.15,"[kg/kg fuel]",0,null,3.15,"[kg/kg fuel]",0,null,null,null,null,null,"Climb/cruise/descent"]
[null,null,null,null,null,null,null,null,null,null,null,null,null,null,null,null,4,null,null,null,null,null,null,null,null,null,null,null,null,null,null,"For interpolation",null,"Stage length",null,null,null,null,null,null,null,null,null,null,null,null,null,null,null,null,null,null,"For interpolation",null,"Stage length",null,null,null,null,null,null,null,null,null,null,null,null,null,null,null,null,null,null,"For interpolation",null,"Stage length"]
[null,"Emission factor O2 emissions (Source: Reference: 9)","IOFO2",{"$f":"HLOOKUP($D$78,$S$574:$AB$588,Q578,FALSE)","v":3.4},"[kg/kg fuel]",null,">>>>>",null,"O2 emissions per flight","xO2",{"$f":"$D$574*D578","v":14375.492400000001},"[kg]",null,null,null,null,5,"IOFO2",3.4,"[kg/kg fuel]",7.94,null,3.4,"[kg/kg fuel]",0,null,null,null,null,null,"EINOx (g/kg fuel)",{"$f":"INDEX(AH578:AW578,,MATCH($AF$572,AH578:AW578,1))","v":500},{"$f":"INDEX(AH578:AW578,,MATCH($AF$572,AH578:AW578,1)+1)","v":750},125,250,500,750,1000,1500,2000,2500,3000,3500,4000,4500,5000,5500,6000,6500,null,null,"EICO (g/kg fuel)",{"$f":"INDEX(BC578:BR578,,MATCH($AF$572,BC578:BR578,1))","v":500},{"$f":"INDEX(BC578:BR578,,MATCH($AF$572,BC578:BR578,1)+1)","v":750},125,250,500,750,1000,1500,2000,2500,3000,3500,4000,4500,5000,5500,6000,6500,null,null,"EIHC (g/kg fuel)",{"$f":"INDEX(BX578:CM578,,MATCH($AF$572,BX578:CM578,1))","v":500},{"$f":"INDEX(BX578:CM578,,MATCH($AF$572,BX578:CM578,1)+1)","v":750},125,250,500,750,1000,1500,2000,2500,3000,3500,4000,4500,5000,5500,6000,6500]
[null,null,null,null,null,null,null,null,null,null,null,null,null,null,null,null,6,null,null,null,null,null,null,null,null,null,null,null,null,"A320-200",{"$f":"TREND(AF579:AG579,$AF$578:$AG$578,$AF$572,TRUE)","v":16.077336182718842},{"$f":"INDEX(AH579:AP579,,MATCH($AF$572,AH578:AP578,1))","v":16.541300255515832},{"$f":"INDEX(AH579:AP579,,MATCH($AF$572,AH578:AP578,1)+1)","v":15.236564392757144},22.022534224033915,19.247108291310656,16.541300255515832,15.236564392757144,14.549194394425164,13.789588021258737,13.435441717831278,13.325324237380704,13.206925173130013,null,null,null,null,null,null,null,null,"A320-200",{"$f":"TREND(BA579:BB579,$AF$578:$AG$578,$AF$572,TRUE)","v":1.704048178167501},{"$f":"INDEX(BC579:BK579,,MATCH($AF$572,BC578:BK578,1))","v":1.7160417559525427},{"$f":"INDEX(BC579:BK579,,MATCH($AF$572,BC578:BK578,1)+1)","v":1.6823140343973069},1.7963289892810828,1.5802478992849494,1.7160417559525427,1.6823140343973069,1.6575007896651857,1.641195622671151,1.6203694324923392,1.5727186383665248,1.5586698351432315,null,null,null,null,null,null,null,null,"A320-200",{"$f":"TREND(BV579:BW579,$AF$578:$AG$578,$AF$572,TRUE)","v":7.2005596710631947E-2},{"$f":"INDEX(BX579:CF579,,MATCH($AF$572,BX578:CF578,1))","v":7.1010141971323631E-2},{"$f":"INDEX(BX579:CF579,,MATCH($AF$572,BX578:CF578,1)+1)","v":7.3809508504811577E-2},5.6616574405317331E-2,5.959435853987511E-2,7.1010141971323631E-2,7.3809508504811577E-2,7.5275500302076803E-2,7.6757879779807692E-2,7.7653924790222872E-2,7.4577715318346796E-2,7.4767302574222608E-2]
[null,"Emission factor H2O emissions (Source: Reference: 9)","IOFH2O",{"$f":"HLOOKUP($D$78,$S$574:$AB$588,Q580,FALSE)","v":1.23},"[kg/kg fuel]",null,">>>>>",null,"H20 emissions per flight","xH2O",{"$f":"$D$574*D580","v":5200.5457800000004},"[kg]",null,null,null,null,7,"IOFH2O",1.23,"[kg/kg fuel]",8.94,null,1.23,"[kg/kg fuel]",0,null,null,null,null,"A310-200",{"$f":"TREND(AF580:AG580,$AF$578:$AG$578,$AF$572,TRUE)","v":16.238500710070443},{"$f":"INDEX(AH580:AQ580,,MATCH($AF$572,AH578:AQ578,1))","v":16.775480511291349},{"$f":"INDEX(AH580:AQ580,,MATCH($AF$572,AH578:AQ578,1)+1)","v":15.26541357872412},23.388147249615425,19.228749715719573,16.775480511291349,15.26541357872412,14.478665936798187,13.596423075834144,13.174263189190208,12.907951750582543,12.732470416100364,12.636898621314897,null,null,null,null,null,null,null,"A310-200",{"$f":"TREND(BA580:BB580,$AF$578:$AG$578,$AF$572,TRUE)","v":3.7459111954128961},{"$f":"INDEX(BC580:BL580,,MATCH($AF$572,BC578:BL578,1))","v":4.02590726647077},{"$f":"INDEX(BC580:BL580,,MATCH($AF$572,BC578:BL578,1)+1)","v":3.2385167404362551},6.3754210414756018,4.3242233033734401,4.02590726647077,3.2385167404362551,2.8176549259781178,2.389143023784595,2.1142500785096381,1.9745752350683772,1.869393609300311,1.7833579952598992,null,null,null,null,null,null,null,"A310-200",{"$f":"TREND(BV580:BW580,$AF$578:$AG$578,$AF$572,TRUE)","v":0.80203193236327719},{"$f":"INDEX(BX580:CG580,,MATCH($AF$572,BX578:CG578,1))","v":0.86850247866414487},{"$f":"INDEX(BX580:CG580,,MATCH($AF$572,BX578:CG578,1)+1)","v":0.68157743282368455},1.4685634432116046,0.96930469790669405,0.86850247866414487,0.68157743282368455,0.58198961886162182,0.47780317292333091,0.41507209158256553,0.38199491021370457,0.35705615881715758,0.33678041483016175]
[null,null,null,null,null,null,null,null,null,null,null,null,null,null,null,null,null,null,null,null,null,null,null,null,null,null,null,null,null,"A330-200",17.269504333778006,{"$f":"INDEX(AH581:AV581,,MATCH($AF$572,AH578:AV578,1))","v":17.773072851787525},{"$f":"INDEX(AH581:AV581,,MATCH($AF$572,AH578:AV578,1)+1)","v":16.356963408566155},23.453182381295026,20.658684887887048,17.773072851787525,16.356963408566155,15.54062804177194,14.639061904896545,14.200656443111216,13.919341704808094,13.73216347537158,13.627025768735681,13.628596037476793,13.559291349382297,13.483060105380334,13.460197468214051,13.386543619290469,null,null,"A330-200",1.4235220241419857,{"$f":"INDEX(BC581:BQ581,,MATCH($AF$572,BC578:BQ578,1))","v":1.5312493055190037},{"$f":"INDEX(BC581:BQ581,,MATCH($AF$572,BC578:BQ578,1)+1)","v":1.2283041947849827},2.4749437862710484,1.876774176100052,1.5312493055190037,1.2283041947849827,1.044784590771652,0.87546650567169126,0.74079354336361403,0.68011325551404189,0.63534333445539071,0.59234649899509306,0.61622028747841961,0.60274820742678803,0.57767529256316397,0.56608889783636651,0.54070920610675199,null,null,"A330-200",8.9160820388416939E-2,{"$f":"INDEX(BX581:CL581,,MATCH($AF$572,BX578:CL578,1))","v":9.8476315712522869E-2},{"$f":"INDEX(BX581:CL581,,MATCH($AF$572,BX578:CL578,1)+1)","v":7.2279759682978589E-2},0.18439650072296296,0.13324762398625645,9.8476315712522869E-2,7.2279759682978589E-2,5.6066211285362211E-2,4.0766984720445869E-2,2.9221848476230387E-2,2.3848801689604505E-2,1.9907336430801299E-2,1.6186188499349347E-2,1.8118539397587573E-2,1.6949049227614001E-2,1.4763485230667159E-2,1.3807206708307493E-2,1.1596206195506092E-2]
[null,"Emission factor NOx emissions (Source: Reference: 9)","IOFNOx",{"$f":"IF(OR(D78=\"Kerosene\",D78=\"Alternative fuel\"),VLOOKUP($D$108,AD579:AE586,2,FALSE),IF(D78=\"Hydrogen\",4.3,0))","v":16.077336182718842},"[g/kg fuel]",null,">>>>>",null,"NOx emissions per flight","xNOx",{"$f":"D582*$D$574/1000","v":67.976360031446987},"[kg]",null,null,null,null,null,null,null,null,null,null,null,null,null,null,null,null,null,"B777-200",{"$f":"TREND(AF582:AG582,$AF$578:$AG$578,$AF$572,TRUE)","v":27.421037200199784},{"$f":"INDEX(AH582:AW582,,MATCH($AF$572,AH578:AW578,1))","v":28.034492378919367},{"$f":"INDEX(AH582:AW582,,MATCH($AF$572,AH578:AW578,1)+1)","v":26.309365329651694},34.742455819187953,30.887571768520964,28.034492378919367,26.309365329651694,25.347079464249589,24.287500594755723,23.834610232883186,23.409702370133918,23.316812843909002,23.129664787824744,23.137481068307075,23.048946896376282,23.009594865911016,23.062359281842888,22.880444769512533,22.87352394765264,null,"B777-200",{"$f":"TREND(BA582:BB582,$AF$578:$AG$578,$AF$572,TRUE)","v":1.2749750069572843},{"$f":"INDEX(BC582:BR582,,MATCH($AF$572,BC578:BR578,1))","v":1.3618878037347264},{"$f":"INDEX(BC582:BR582,,MATCH($AF$572,BC578:BR578,1)+1)","v":1.117476114259355},2.3927676210863154,1.7435454454516583,1.3618878037347264,1.117476114259355,0.98339763384928536,0.85504927648645113,0.75092672278985295,0.7092518454358665,0.67149769406997284,0.64429017455055582,0.64741369571433927,0.63324589833425959,0.61804514448504433,0.60898498165818515,0.58995982642389566,0.56052791426172721,null,"B777-200",{"$f":"TREND(BV582:BW582,$AF$578:$AG$578,$AF$572,TRUE)","v":9.3360349684375593E-2},{"$f":"INDEX(BX582:CM582,,MATCH($AF$572,BX578:CM578,1))","v":9.4411980734105963E-2},{"$f":"INDEX(BX582:CM582,,MATCH($AF$572,BX578:CM578,1)+1)","v":9.145463807457177E-2},0.11444802726255637,9.7402330931931264E-2,9.4411980734105963E-2,9.145463807457177E-2,8.8669193435066213E-2,8.6007229867146567E-2,8.3725030897949415E-2,8.3038385474451248E-2,8.2014095342748852E-2,8.1455691312169218E-2,8.1394480339976802E-2,8.1135598934685096E-2,8.0763417084923059E-2,8.0455066591693394E-2,8.0142713440238794E-2,7.9415309032037529E-2]
[null,null,null,null,null,null,null,null,null,null,null,null,null,null,null,null,null,null,null,null,null,null,null,null,null,null,null,null,null,"B737-700",{"$f":"TREND(AF583:AG583,$AF$578:$AG$578,$AF$572,TRUE)","v":15.875641768823735},{"$f":"INDEX(AH583:AR583,,MATCH($AF$572,AH578:AR578,1))","v":16.331850909534165},{"$f":"INDEX(AH583:AR583,,MATCH($AF$572,AH578:AR578,1)+1)","v":15.04892306726636},21.44916281898049,18.502431507370243,16.331850909534165,15.04892306726636,14.371731859061345,13.618865047923633,13.260875639047612,13.029526031930004,12.878300318022701,12.771629506901276,12.776136082092634,null,null,null,null,null,null,"B737-700",{"$f":"TREND(BA583:BB583,$AF$578:$AG$578,$AF$572,TRUE)","v":1.9714516563315301},{"$f":"INDEX(BC583:BM583,,MATCH($AF$572,BC578:BM578,1))","v":2.0612880201302999},{"$f":"INDEX(BC583:BM583,,MATCH($AF$572,BC578:BM578,1)+1)","v":1.8086548260955138},2.8286298987687717,2.3145058936532101,2.0612880201302999,1.8086548260955138,1.6640251873629308,1.5228293561808335,1.4218959044013439,1.378325215770879,1.340816032715008,1.3083342607896549,1.3228541777154679,null,null,null,null,null,null,"B737-700",{"$f":"TREND(BV583:BW583,$AF$578:$AG$578,$AF$572,TRUE)","v":0.2764268083746052},{"$f":"INDEX(BX583:CH583,,MATCH($AF$572,BX578:CH578,1))","v":0.28533429468154131},{"$f":"INDEX(BX583:CH583,,MATCH($AF$572,BX578:CH578,1)+1)","v":0.26028512059004494},0.34628841994882192,0.29121240945342797,0.28533429468154131,0.26028512059004494,0.24591085746482014,0.23057699225965145,0.2217218855374872,0.21742707580926721,0.21366511224647286,0.21035218639840716,0.21153708765376697]
[null,"Emission factor HC emissions (Source: Reference: 9)","IOFHC",{"$f":"IF(OR(D78=\"Kerosene\",D78=\"Alternative fuel\"),VLOOKUP($D$108,BT579:BU586,2,FALSE),IF(D78=\"Hydrogen\",0,0))","v":7.2005596710631947E-2},"[g/kg fuel]",null,">>>>>",null,"HC emissions per flight","xHC",{"$f":"D584*$D$574/1000","v":0.30444585537386898},"[kg]",null,null,null,null,null,null,null,null,null,null,null,null,null,null,null,null,null,"CRJ900",{"$f":"TREND(AF584:AG584,$AF$578:$AG$578,$AF$572,TRUE)","v":10.993605367411488},{"$f":"INDEX(AH584:AL584,,MATCH($AF$572,AH578:AL578,1))","v":11.113969885018033},{"$f":"INDEX(AH584:AL584,,MATCH($AF$572,AH578:AL578,1)+1)","v":10.775486989611551},12.893084743933713,12.084241171734728,11.113969885018033,10.775486989611551,10.602379801948373,null,null,null,null,null,null,null,null,null,null,null,null,"CRJ900",{"$f":"TREND(BA584:BB584,$AF$578:$AG$578,$AF$572,TRUE)","v":2.3530126991245957},{"$f":"INDEX(BC584:BG584,,MATCH($AF$572,BC578:BG578,1))","v":2.4080282298377313},{"$f":"INDEX(BC584:BG584,,MATCH($AF$572,BC578:BG578,1)+1)","v":2.2533163886871805},2.9871383065717398,2.5917211538137632,2.4080282298377313,2.2533163886871805,2.1653562434051516,null,null,null,null,null,null,null,null,null,null,null,null,"CRJ900",{"$f":"TREND(BV584:BW584,$AF$578:$AG$578,$AF$572,TRUE)","v":4.67841234547084E-2},{"$f":"INDEX(BX584:CB584,,MATCH($AF$572,BX578:CB578,1))","v":4.6402598580620479E-2},{"$f":"INDEX(BX584:CB584,,MATCH($AF$572,BX578:CB578,1)+1)","v":4.7475503175918345E-2},4.1082853173694936E-2,4.194070248838673E-2,4.6402598580620479E-2,4.7475503175918345E-2,4.7986602016887044E-2]
[null,null,null,null,null,null,null,null,null,null,null,null,null,null,null,null,null,null,null,null,null,null,null,null,null,null,null,null,null,"ATR72-500",15.974963333097049,{"$f":"INDEX(AH585:AM585,,MATCH($AF$572,AH578:AM578,1))","v":15.955430489234868},{"$f":"INDEX(AH585:AM585,,MATCH($AF$572,AH578:AM578,1)+1)","v":16.010359746440102},15.921870935802364,15.925630456519729,15.955430489234868,16.010359746440102,16.051554161203899,16.361042859635752,null,null,null,null,null,null,null,null,null,null,null,"ATR72-500",2.7422368076809471,{"$f":"INDEX(BC585:BH585,,MATCH($AF$572,BC578:BH578,1))","v":2.7551660891035068},{"$f":"INDEX(BC585:BH585,,MATCH($AF$572,BC578:BH578,1)+1)","v":2.7188070299849492},2.8427359891688662,2.8377103950890712,2.7551660891035068,2.7188070299849492,2.696789949326162,2.6408051771431396,null,null,null,null,null,null,null,null,null,null,null,"ATR72-500",0,{"$f":"INDEX(BX585:CC585,,MATCH($AF$572,BX578:CC578,1))","v":0},{"$f":"INDEX(BX585:CC585,,MATCH($AF$572,BX578:CC578,1)+1)","v":0},0,0,0,0,0,0]
[null,"Emission factor SO2 emissions (Source: Reference: 9)","IOFSO2",{"$f":"IF(OR(D78=\"Kerosene\",D78=\"Alternative fuel\"),0.84,IF(D78=\"Hydrogen\",0,0))","v":0.84},"[g/kg fuel]",null,">>>>>",null,"SO2 emissions per flight","xSO2",{"$f":"D586*$D$574/1000","v":3.5515922399999997},"[kg]",null,null,null,null,null,null,null,null,null,null,null,null,null,null,null,null,null,"B747-400",15.895986307771391,{"$f":"INDEX(AH586:AW586,,MATCH($AF$572,AH578:AW578,1))","v":16.238351680320495},{"$f":"INDEX(AH586:AW586,,MATCH($AF$572,AH578:AW578,1)+1)","v":15.275569417808956},20.641655685449585,18.419029423729011,16.238351680320495,15.275569417808956,14.779019267603429,14.089459458282695,13.962612858952207,13.794643470173179,13.699115775319139,13.61213230641863,13.588739648303696,13.5221664657837,13.490966756671098,13.463870104617683,13.443111910444685,13.523559343198702,null,"B747-400",1.3366371527158969,{"$f":"INDEX(BC586:BR586,,MATCH($AF$572,BC578:BR578,1))","v":1.4308134336810263},{"$f":"INDEX(BC586:BR586,,MATCH($AF$572,BC578:BR578,1)+1)","v":1.1659757481772883},2.4873909937900716,1.7510614787890475,1.4308134336810263,1.1659757481772883,1.0147727961300717,0.819021134571979,0.77556838924461324,0.7284827558624416,0.6905882676183871,0.65840854851187036,0.67406629697527842,0.65646793543294946,0.63966266382150283,0.62829915233603495,0.61035285459648614,0.56428611686683983,null,"B747-400",0.15974461028528505,{"$f":"INDEX(BX586:CM586,,MATCH($AF$572,BX578:CM578,1))","v":0.16742072524822285},{"$f":"INDEX(BX586:CM586,,MATCH($AF$572,BX578:CM578,1)+1)","v":0.14583435021183985},0.24326138621242707,0.18676505493076961,0.16742072524822285,0.14583435021183985,0.13373667101293932,0.13111240866936627,0.11445924620914023,0.1106317052755998,0.10769925896336308,0.10521601902143249,0.10624808874080383,0.10489260333249105,0.10359001454661289,0.10268828297128876,0.10136273789979805,9.8831562764409492E-2]
[]
[null,"Emission factor CO emissions (Source: Reference: 9)","IOFCO",{"$f":"IF(OR(D78=\"Kerosene\",D78=\"Alternative fuel\"),VLOOKUP($D$108,AY579:AZ586,2,FALSE),IF(D78=\"Hydrogen\",0,0))","v":1.704048178167501},"[g/kg fuel]",null,">>>>>",null,"CO emissions per flight","xCO",{"$f":"D588*$D$574/1000","v":7.2048622454355176},"[kg]"]
[]
[]
[null,"Inputs/Outputs per PKM due to cruise flight"]
[]
[null,"CO2 emissions per PKM","xPKM,CO2",{"$f":"K576*10^3/$D$211*$D$193","v":83.445791005084345},"[g/PKM]"]
[]
[null,"O2 emissions per PKM","xPKM,O2",{"$f":"K578*10^3/$D$211*$D$193","v":90.068472830884687},"[g/PKM]"]
[]
[null,"H2O emissions per PKM","xPKM,H2O",{"$f":"K580*10^3/$D$211*$D$193","v":32.5835945829377},"[g/PKM]"]
[]
[null,"NOx emissions per PKM","xPKM,NOx",{"$f":"K582*10^3/$D$211*$D$193","v":0.42590032857829746},"[g/PKM]"]
[]
[null,"HC emissions per PKM","xPKM,HC",{"$f":"K584*10^3/$D$211*$D$193","v":1.9074806267656448E-3},"[g/PKM]"]
[]
[null,"SO2 emissions per PKM","xPKM,SO2",{"$f":"K586*10^3/$D$211*$D$193","v":2.2252210934689157E-2},"[g/PKM]"]
[]
[null,"CO emissions per PKM","xPKM,CO",{"$f":"K588*10^3/$D$211*$D$193","v":4.5141475599352388E-2},"[g/PKM]"]
[]
[]
[{"$f":"LEFT(A570,4) & RIGHT(A570,1) + 1","v":"2.4.2"},{"$f":"IF($D$78=\"Electric battery\",\"n/a for electric battery powered aircraft\",\"LTO cycle\")","v":"LTO cycle"}]
[]
[null,"Inputs/Outputs during approach"]
[]
[null,"Time in mode","tmode,app",4.4000000000000004,"[min]"]
[]
[null,"Fuel flow","FFapp",0.27600000000000002,"[kg/s]"]
[]
[null,"Fuel mass","mf,app",{"$f":"D612*60*D614","v":72.864000000000004},"[kg]"]
[null,null,null,null,null,null,null,null,null,null,null,null,null,null,null,null,null,null,null,null,null,null,null,null,null,null,null,null,null,null,"Source"]
[null,"Emission factor NOx","IOFNOx",{"$f":"IF(OR(D78=\"Kerosene\",D78=\"Alternative fuel\"),VLOOKUP($D$108,AE621:AF628,2,FALSE),IF(D78=\"Hydrogen\",4.3,0))","v":8.94},"[g/kg]",null,null,null,"NOx emissions during approach","xNOx",{"$f":"$D$616*D618","v":651.40416000000005},"[g]",null,null,null,null,null,null,null,null,null,null,null,null,null,null,null,null,null,null,"Approach"]
[]
[null,"Emission factor CO","IOFCO",{"$f":"IF(OR(D78=\"Kerosene\",D78=\"Alternative fuel\"),VLOOKUP($D$108,AH621:AI628,2,FALSE),IF(D78=\"Hydrogen\",0,0))","v":2.8},"[g/kg]",null,null,null,"CO emissions during approach","xCO",0,"[g]",null,null,null,null,null,null,null,null,null,null,null,null,null,null,null,null,null,null,null,"EINOx (g/kg fuel)",null,null,"EICO (g/kg fuel)",null,null,"EIHC (g/kg fuel)"]
[null,null,null,null,null,null,null,null,null,null,null,null,null,null,null,null,null,null,null,null,null,null,null,null,null,null,null,null,null,null,"A320-200",8.94,null,"A320-200",2.8,null,"A320-200",0.45]
[null,"Emission factor HC","IOFHC",{"$f":"IF(OR(D78=\"Kerosene\",D78=\"Alternative fuel\"),VLOOKUP($D$108,AK621:AL628,2,FALSE),IF(D78=\"Hydrogen\",0,0))","v":0.45},"[g/kg]",null,null,null,"HC emissions during approach","xHC",0,"[g]",null,null,null,null,null,null,null,null,null,null,null,null,null,null,null,null,null,null,"A310-200",9.5200000000000014,null,"A310-200",3.04,null,"A310-200",0.25]
[null,null,null,null,null,null,null,null,null,null,null,null,null,null,null,null,null,null,null,null,null,null,null,null,null,null,null,null,null,null,"A330-200",10.3,null,"A330-200",0.8899999999999999,null,"A330-200",0.01]
[null,null,null,null,null,null,null,null,"CO2 emissions during approach","xCO2",{"$f":"$D$576*10^3*$D$616","v":229521.6},"[g]",null,null,null,null,null,null,null,null,null,null,null,null,null,null,null,null,null,null,"B777-200",16.940015186028852,null,"B777-200",1.1599999999999999,null,"B777-200",0.05]
[null,null,null,null,null,null,null,null,null,null,null,null,null,null,null,null,null,null,null,null,null,null,null,null,null,null,null,null,null,null,"B737-700",10,null,"B737-700",2.5,null,"B737-700",0.1]
[null,null,null,null,null,null,null,null,"O2 emissions during approach","xO2",{"$f":"$D$578*10^3*$D$616","v":247737.60000000001},"[g]",null,null,null,null,null,null,null,null,null,null,null,null,null,null,null,null,null,null,"CRJ900",10.750000000000002,null,"CRJ900",4.2400000000000011,null,"CRJ900",6.0000000000000012E-2]
[null,null,null,null,null,null,null,null,null,null,null,null,null,null,null,null,null,null,null,null,null,null,null,null,null,null,null,null,null,null,"ATR72-500",10.403422982885086,null,"ATR72-500",3.3985330073349638,null,"ATR72-500",0]
[null,null,null,null,null,null,null,null,"H2O emissions during approach","xH2O",{"$f":"$D$580*10^3*$D$616","v":89622.720000000001},"[g]",null,null,null,null,null,null,null,null,null,null,null,null,null,null,null,null,null,null,"B747-400",12.47,null,"B747-400",2.13,null,"B747-400",0.11]
[]
[]
[null,"Inputs/Outputs during idle"]
[]
[null,"Time in mode","tmode,idl",23.6,"[min]"]
[]
[null,"Fuel flow","FFIdl",9.8000000000000004E-2,"[kg/s]"]
[]
[null,"Fuel mass","mf,Idl",{"$f":"D633*60*D635","v":138.768},"[kg]"]
[null,null,null,null,null,null,null,null,null,null,null,null,null,null,null,null,null,null,null,null,null,null,null,null,null,null,null,null,null,null,"Source"]
[null,"Emission factor NOx","IOFNOx",{"$f":"IF(OR(D78=\"Kerosene\",D78=\"Alternative fuel\"),VLOOKUP($D$108,AE642:AF649,2,FALSE),IF(D78=\"Hydrogen\",4.3,0))","v":4.29},"[g/kg]",null,null,null,"NOx emissions during idle","xNOx",{"$f":"$D$637*D639","v":595.31471999999997},"[g]",null,null,null,null,null,null,null,null,null,null,null,null,null,null,null,null,null,null,"Taxi out"]
[]
[null,"Emission factor CO","IOFCO",{"$f":"IF(OR(D78=\"Kerosene\",D78=\"Alternative fuel\"),VLOOKUP($D$108,AH642:AI649,2,FALSE),IF(D78=\"Hydrogen\",0,0))","v":18.5},"[g/kg]",null,null,null,"CO emissions during idle","xCO",{"$f":"$D$637*D641","v":2567.2080000000001},"[g]",null,null,null,null,null,null,null,null,null,null,null,null,null,null,null,null,null,null,null,"EINOx (g/kg fuel)",null,null,"EICO (g/kg fuel)",null,null,"EIHC (g/kg fuel)"]
[null,null,null,null,null,null,null,null,null,null,null,null,null,null,null,null,null,null,null,null,null,null,null,null,null,null,null,null,null,null,"A320-200",4.29,null,"A320-200",18.5,null,"A320-200",1.53]
[null,"Emission factor HC","IOFHC",{"$f":"IF(OR(D78=\"Kerosene\",D78=\"Alternative fuel\"),VLOOKUP($D$108,AK642:AL649,2,FALSE),IF(D78=\"Hydrogen\",0,0))","v":1.53},"[g/kg]",null,null,null,"HC emissions during idle","xHC",{"$f":"$D$637*D643","v":212.31504000000001},"[g]",null,null,null,null,null,null,null,null,null,null,null,null,null,null,null,null,null,null,"A310-200",3.9100064977257962,null,"A310-200",46.649958228905597,null,"A310-200",10.739998143506915]
[null,null,null,null,null,null,null,null,null,null,null,null,null,null,null,null,null,null,null,null,null,null,null,null,null,null,null,null,null,null,"A330-200",4.7099937343358391,null,"A330-200",17.940006265664159,null,"A330-200",1.4600000000000002]
[null,null,null,null,null,null,null,null,"CO2 emissions during idle","xCO2",{"$f":"$D$576*10^3*$D$637","v":437119.2},"[g]",null,null,null,null,null,null,null,null,null,null,null,null,null,null,null,null,null,null,"B777-200",6,null,"B777-200",13.209998794236451,null,"B777-200",0.4299993971182251]
[null,null,null,null,null,null,null,null,null,null,null,null,null,null,null,null,null,null,null,null,null,null,null,null,null,null,null,null,null,null,"B737-700",4.5,null,"B737-700",22.799999999999997,null,"B737-700",2.5]
[null,null,null,null,null,null,null,null,"O2 emissions during idle","xO2",{"$f":"$D$578*10^3*$D$637","v":471811.2},"[g]",null,null,null,null,null,null,null,null,null,null,null,null,null,null,null,null,null,null,"CRJ900",4.6000000000000005,null,"CRJ900",18.250000000000004,null,"CRJ900",0.13]
[null,null,null,null,null,null,null,null,null,null,null,null,null,null,null,null,null,null,null,null,null,null,null,null,null,null,null,null,null,null,"ATR72-500",4.9170788478324123,null,"ATR72-500",19.581029967995342,null,"ATR72-500",2.7058481233633982]
[null,null,null,null,null,null,null,null,"H2O emissions during idle","xH2O",{"$f":"$D$580*10^3*$D$637","v":170684.64},"[g]",null,null,null,null,null,null,null,null,null,null,null,null,null,null,null,null,null,null,"B747-400",4.7299986775985179,null,"B747-400",19.230031737635546,null,"B747-400",1.540002644802962]
[]
[]
[null,"Inputs/Outputs during take-off"]
[]
[null,"Time in mode","tmode,TO",1.6,"[min]"]
[]
[null,"Fuel flow","FFTO",0.97199999999999998,"[kg/s]"]
[]
[null,"Fuel mass","mf,TO",{"$f":"D654*60*D656","v":93.311999999999998},"[kg]"]
[null,null,null,null,null,null,null,null,null,null,null,null,null,null,null,null,null,null,null,null,null,null,null,null,null,null,null,null,null,null,"Source"]
[null,"Emission factor NOx","IOFNOx",{"$f":"IF(OR(D78=\"Kerosene\",D78=\"Alternative fuel\"),VLOOKUP($D$108,AE663:AF670,2,FALSE),IF(D78=\"Hydrogen\",4.3,0))","v":24.79},"[g/kg]",null,null,null,"NOx emissions during take-off","xNOx",{"$f":"$D$658*D660","v":2313.2044799999999},"[g]",null,null,null,null,null,null,null,null,null,null,null,null,null,null,null,null,null,null,"Take-off"]
[]
[null,"Emission factor CO","IOFCO",{"$f":"IF(OR(D78=\"Kerosene\",D78=\"Alternative fuel\"),VLOOKUP($D$108,AH663:AI670,2,FALSE),IF(D78=\"Hydrogen\",0,0))","v":1.1000000000000001},"[g/kg]",null,null,null,"CO emissions during take-off","xCO",{"$f":"$D$658*D662","v":102.64320000000001},"[g]",null,null,null,null,null,null,null,null,null,null,null,null,null,null,null,null,null,null,null,"EINOx (g/kg fuel)",null,null,"EICO (g/kg fuel)",null,null,"EIHC (g/kg fuel)"]
[null,null,null,null,null,null,null,null,null,null,null,null,null,null,null,null,null,null,null,null,null,null,null,null,null,null,null,null,null,null,"A320-200",24.79,null,"A320-200",1.1000000000000001,null,"A320-200",0.23]
[null,"Emission factor HC","IOFHC",{"$f":"IF(OR(D78=\"Kerosene\",D78=\"Alternative fuel\"),VLOOKUP($D$108,AK663:AL670,2,FALSE),IF(D78=\"Hydrogen\",0,0))","v":0.23},"[g/kg]",null,null,null,"HC emissions during take-off","xHC",{"$f":"$D$658*D664","v":21.461760000000002},"[g]",null,null,null,null,null,null,null,null,null,null,null,null,null,null,null,null,null,null,"A310-200",27.899993251906338,null,"A310-200",0.5799986503812673,null,"A310-200",0.13999988753177228]
[null,null,null,null,null,null,null,null,null,null,null,null,null,null,null,null,null,null,null,null,null,null,null,null,null,null,null,null,null,null,"A330-200",34.37998511904761,null,"A330-200",0.2,null,"A330-200",0]
[null,null,null,null,null,null,null,null,"CO2 emissions during take-off","xCO2",{"$f":"$D$576*10^3*$D$658","v":293932.79999999999},"[g]",null,null,null,null,null,null,null,null,null,null,null,null,null,null,null,null,null,null,"B777-200",52.480158730158728,null,"B777-200",0.11999985776867496,null,"B777-200",4.0000071115662506E-2]
[null,null,null,null,null,null,null,null,null,null,null,null,null,null,null,null,null,null,null,null,null,null,null,null,null,null,null,null,null,null,"B737-700",23.100018655846277,null,"B737-700",0.50000000000000011,null,"B737-700",0.1]
[null,null,null,null,null,null,null,null,"O2 emissions during take-off","xO2",{"$f":"$D$578*10^3*$D$658","v":317260.79999999999},"[g]",null,null,null,null,null,null,null,null,null,null,null,null,null,null,null,null,null,null,"CRJ900",14.689998530276307,null,"CRJ900",0.64000036743092303,null,"CRJ900",0.02]
[null,null,null,null,null,null,null,null,null,null,null,null,null,null,null,null,null,null,null,null,null,null,null,null,null,null,null,null,null,null,"ATR72-500",19.098557692307693,null,"ATR72-500",2.0012019230769229,null,"ATR72-500",0]
[null,null,null,null,null,null,null,null,"H2O emissions during take-off","xH2O",{"$f":"$D$580*10^3*$D$658","v":114773.75999999999},"[g]",null,null,null,null,null,null,null,null,null,null,null,null,null,null,null,null,null,null,"B747-400",24.940033816995005,null,"B747-400",3.9999901694781959E-2,null,"B747-400",4.9999999999999996E-2]
[]
[]
[null,"Inputs/Outputs during climb out"]
[]
[null,"Time in mode","tmode,CO",0.5,"[min]"]
[]
[null,"Fuel flow","FFCO",0.79900000000000004,"[kg/s]"]
[]
[null,"Fuel mass","mf,CO",{"$f":"D675*60*D677","v":23.970000000000002},"[kg]"]
[null,null,null,null,null,null,null,null,null,null,null,null,null,null,null,null,null,null,null,null,null,null,null,null,null,null,null,null,null,null,"Source"]
[null,"Emission factor NOx","IOFNOx",{"$f":"IF(OR(D78=\"Kerosene\",D78=\"Alternative fuel\"),VLOOKUP($D$108,AE684:AF691,2,FALSE),IF(D78=\"Hydrogen\",4.3,0))","v":19.98},"[g/kg]",null,null,null,"NOx emissions during climb out","xNOx",{"$f":"$D$679*D681","v":478.92060000000004},"[g]",null,null,null,null,null,null,null,null,null,null,null,null,null,null,null,null,null,null,"Climb out"]
[]
[null,"Emission factor CO","IOFCO",{"$f":"IF(OR(D78=\"Kerosene\",D78=\"Alternative fuel\"),VLOOKUP($D$108,AH684:AI691,2,FALSE),IF(D78=\"Hydrogen\",0,0))","v":1.1000000000000001},"[g/kg]",null,null,null,"CO emissions during climb out","xCO",{"$f":"$D$679*D683","v":26.367000000000004},"[g]",null,null,null,null,null,null,null,null,null,null,null,null,null,null,null,null,null,null,null,"EINOx (g/kg fuel)",null,null,"EICO (g/kg fuel)",null,null,"EIHC (g/kg fuel)"]
[null,null,null,null,null,null,null,null,null,null,null,null,null,null,null,null,null,null,null,null,null,null,null,null,null,null,null,null,null,null,"A320-200",19.98,null,"A320-200",1.1000000000000001,null,"A320-200",0.23]
[null,"Emission factor HC","IOFHC",{"$f":"IF(OR(D78=\"Kerosene\",D78=\"Alternative fuel\"),VLOOKUP($D$108,AK684:AL691,2,FALSE),IF(D78=\"Hydrogen\",0,0))","v":0.23},"[g/kg]",null,null,null,"HC emissions during climb out","xHC",{"$f":"$D$679*D685","v":5.5131000000000006},"[g]",null,null,null,null,null,null,null,null,null,null,null,null,null,null,null,null,null,null,"A310-200",20.709993922028307,null,"A310-200",0.56000043414083533,null,"A310-200",0.10999999999999999]
[null,null,null,null,null,null,null,null,null,null,null,null,null,null,null,null,null,null,null,null,null,null,null,null,null,null,null,null,null,null,"A330-200",26.43998120742307,null,"A330-200",0.15999970636598546,null,"A330-200",0]
[null,null,null,null,null,null,null,null,"CO2 emissions during climb out","xCO2",{"$f":"$D$576*10^3*$D$679","v":75505.500000000015},"[g]",null,null,null,null,null,null,null,null,null,null,null,null,null,null,null,null,null,null,"B777-200",39.49996673651998,null,"B777-200",0.1300000554391334,null,"B777-200",4.0000027719566691E-2]
[null,null,null,null,null,null,null,null,null,null,null,null,null,null,null,null,null,null,null,null,null,null,null,null,null,null,null,null,null,null,"B737-700",18.99998204796783,null,"B737-700",0.60000179520321706,null,"B737-700",9.9999999999999992E-2]
[null,null,null,null,null,null,null,null,"O2 emissions during climb out","xO2",{"$f":"$D$578*10^3*$D$679","v":81498.000000000015},"[g]",null,null,null,null,null,null,null,null,null,null,null,null,null,null,null,null,null,null,"CRJ900",12.599985706117783,null,"CRJ900",0.57000000000000006,null,"CRJ900",0.02]
[null,null,null,null,null,null,null,null,null,null,null,null,null,null,null,null,null,null,null,null,null,null,null,null,null,null,null,null,null,null,"ATR72-500",16.898550724637676,null,"ATR72-500",1.8985507246376809,null,"ATR72-500",0]
[null,null,null,null,null,null,null,null,"H20 emissions during climb out","xH2O",{"$f":"$D$580*10^3*$D$679","v":29483.100000000002},"[g]",null,null,null,null,null,null,null,null,null,null,null,null,null,null,null,null,null,null,"B747-400",19.720062654008522,null,"B747-400",4.0000191018318657E-2,null,"B747-400",5.0000191018318658E-2]
[]
[]
[null,"Total inputs/outputs per PKM due to the LTO-Cycle"]
[]
[null,"CO2 per PKM","xPKM,CO2",{"$f":"(K624+K645+K666+K687)/$D$211*$D$193","v":6.4914689300658299},"[g/PKM]"]
[]
[null,"O2 per PKM","xPKM,O2",{"$f":"(K626+K647+K668+K689)/$D$211*$D$193","v":7.0066648768964503},"[g/PKM]"]
[]
[null,"H2O per PKM","xPKM,H2O",{"$f":"(K628+K649+K670+K691)/$D$211*$D$193","v":2.5347640584066569},"[g/PKM]"]
[]
[null,"NOx per PKM","xPKM,NOx",{"$f":"(K618+K639+K660+K681)/$D$211*$D$193","v":2.5305046766915803E-2},"[g/PKM]"]
[]
[null,"CO per PKM","xPKM,CO",{"$f":"(K620+K641+K662+K683)/$D$211*$D$193","v":1.6892934790382334E-2},"[g/PKM]"]
[]
[null,"HC per PKM","xPKM,HC",{"$f":"(K622+K643+K664+K685)/$D$211*$D$193","v":1.4992513130788559E-3},"[g/PKM]"]
[]
[]
[{"$f":"LEFT(A608,4) & RIGHT(A608,1) + 1","v":"2.4.3"},{"$f":"IF($D$78=\"Electric battery\",\"Generation of electricity\",IF($D$78=\"Kerosene\",\"Kerosene production\",IF($D$78=\"Hydrogen\",\"Hydrogen production\",IF($D$78=\"Alternative fuel\",\"Alternative fuel production\"))))","v":"Kerosene production"}]
[]
[null,"Inputs"]
[]
[null,{"$f":"IF($D$78=\"Electric battery\",\"Consumed electricity\",\"Burned \" & $D$78 & \" mass\") & \" (cruise flight+LTO-cycle)\"","v":"Burned Kerosene mass (cruise flight+LTO-cycle)"},{"$f":"IF($D$78=\"Electric battery\",\"E_trip\",\"m_F,trip\")","v":"m_F,trip"},{"$f":"IF(D78=\"Electric battery\",D88,D80)","v":4557},{"$f":"IF($D$78=\"Electric battery\",\"[kWh]\",\"[kg]\")","v":"[kg]"}]
[]
[]
[null,{"$f":"\"Inputs/Outputs per \" & IF($D$78=\"Electric battery\",\"kWh electricity\",\"kg \"& D78)","v":"Inputs/Outputs per kg Kerosene"},null,null,null,null,null,null,null,null,null,null,null,null,null,null,null,null,null,null,null,null,1,null,"Kerosene",null,"Hydrogen",null,"Alternative fuel",null,"Electric battery",null,"EU electricity mix",null,"Electricity from hydropower",null,"Fuel from algae (EU electricity mix)",null,"Fuel from algae (hydropower)",null,"Hydrogen (steam reforming, EU electricity mix)",null,"Hydrogen (electrolysis, hydropower)"]
[null,null,null,null,null,null,null,null,null,null,null,null,null,null,null,null,null,null,null,null,null,null,2]
[null,"Emission factor Crude oil; 42.3 MJ/kg","IOFcrude_oil",{"$f":"HLOOKUP($D$78,$Y$716:$AH$730,W718,FALSE)","v":1110},{"$f":"IF($D$78=\"Electric battery\",\"[kg/kWh]\",\"[g/kg]\")","v":"[g/kg]"},null,null,null,"Crude oil; 42.3 MJ/kg","xcrude_oil",{"$f":"$D$713*D718","v":5058270},{"$f":"IF($D$78=\"Electric battery\",\"[kg]\",\"[g]\")","v":"[g]"},null,null,null,null,null,null,null,null,null,null,3,"IOFcrude_oil",1110,"[g/kg]",{"$f":"IF($D$92=\"Natural gas steam reforming / European Electricity Mix\",AO718,IF($D$92=\"Electrolysis / Electr. from renewable energy\",AQ718,\"?\"))","v":210},"[g/kg]",{"$f":"IF($D$94=\"Hydrogenated Vegetable Oil / European Electricity Mix\",AK718,IF($D$94=\"Hydrogenated Vegetable Oil / European Electricity Mix\",AM718,\"?\"))","v":741},"[g/kg]",{"$f":"IF($D$90=\"European Electricity Mix\",AG718,IF($D$90=\"Electr. from renewable energy\",AI718,\"?\"))","v":1.7000000000000001E-2},"[kg/kWh]",1.7000000000000001E-2,{"$f":"IF($D$78=\"Electric battery\",\"[kg/kWh]\",\"[g/kg]\")","v":"[g/kg]"},2.3999999999999998E-3,{"$f":"IF($D$78=\"Electric Battery\",\"[kg/kWh]\",\"[g/kg]\")","v":"[g/kg]"},741,"[g/kg]",0,"[g/kg]",210,"[g/kg]",10.4,"[g/kg]"]
[null,null,null,null,null,null,null,null,null,null,null,null,null,null,null,null,null,null,null,null,null,null,4]
[null,"Emission factor Natural gas; 44.1 MJ/kg","IOFnatural_gas",{"$f":"HLOOKUP($D$78,$Y$716:$AH$730,W720,FALSE)","v":57.9},{"$f":"IF($D$78=\"Electric battery\",\"[kg/kWh]\",\"[g/kg]\")","v":"[g/kg]"},null,null,null,"Natural gas; 44.1 MJ/kg","xnatural_gas",{"$f":"$D$713*D720","v":263850.3},{"$f":"IF($D$78=\"Electric battery\",\"[kg]\",\"[g]\")","v":"[g]"},null,null,null,null,null,null,null,null,null,null,5,"IOFnatural_gas",57.9,"[g/kg]",{"$f":"IF($D$92=\"Natural gas steam reforming / European Electricity Mix\",AO720,IF($D$92=\"Electrolysis / Electr. from renewable energy\",AQ720,\"?\"))","v":510},"[g/kg]",{"$f":"IF($D$94=\"Hydrogenated Vegetable Oil / European Electricity Mix\",AK720,IF($D$94=\"Hydrogenated Vegetable Oil / European Electricity Mix\",AM720,\"?\"))","v":1800},"[g/kg]",{"$f":"IF($D$90=\"European Electricity Mix\",AG720,IF($D$90=\"Electr. from renewable energy\",AI720,\"?\"))","v":4.1000000000000002E-2},"[kg/kWh]",4.1000000000000002E-2,{"$f":"IF($D$78=\"Electric battery\",\"[kg/kWh]\",\"[g/kg]\")","v":"[g/kg]"},1.8E-3,{"$f":"IF($D$78=\"Electric Battery\",\"[kg/kWh]\",\"[g/kg]\")","v":"[g/kg]"},1800,"[g/kg]",0,"[g/kg]",510,"[g/kg]",0,"[g/kg]"]
[null,null,null,null,null,null,null,null,null,null,null,null,null,null,null,null,null,null,null,null,null,null,6]
[null,"Emission factor CO2","IOFCO2",{"$f":"HLOOKUP($D$78,$Y$716:$AH$730,W722,FALSE)","v":259},{"$f":"IF($D$78=\"Electric battery\",\"[kg/kWh]\",\"[g/kg]\")","v":"[g/kg]"},null,null,null,"CO2","xCO2",{"$f":"$D$713*D722","v":1180263},{"$f":"IF($D$78=\"Electric battery\",\"[kg]\",\"[g]\")","v":"[g]"},null,null,null,null,null,null,null,null,null,null,7,"IOFCO2",259,"[g/kg]",{"$f":"IF($D$92=\"Natural gas steam reforming / European Electricity Mix\",AO722,IF($D$92=\"Electrolysis / Electr. from renewable energy\",AQ722,\"?\"))","v":17534},"[g/kg]",{"$f":"IF($D$94=\"Hydrogenated Vegetable Oil / European Electricity Mix\",AK722,IF($D$94=\"Hydrogenated Vegetable Oil / European Electricity Mix\",AM722,\"?\"))","v":13475},"[g/kg]",{"$f":"IF($D$90=\"European Electricity Mix\",AG722,IF($D$90=\"Electr. from renewable energy\",AI722,\"?\"))","v":0.56000000000000005},"[kg/kWh]",0.56000000000000005,{"$f":"IF($D$78=\"Electric battery\",\"[kg/kWh]\",\"[g/kg]\")","v":"[g/kg]"},2.9000000000000001E-2,{"$f":"IF($D$78=\"Electric Battery\",\"[kg/kWh]\",\"[g/kg]\")","v":"[g/kg]"},13475,"[g/kg]",-9743,"[g/kg]",17534,"[g/kg]",1524,"[g/kg]"]
[null,null,null,null,null,null,null,null,null,null,null,null,null,null,null,null,null,null,null,null,null,null,8]
[null,"Emission factor CH4","IOFCH4",{"$f":"HLOOKUP($D$78,$Y$716:$AH$730,W724,FALSE)","v":3.3},{"$f":"IF($D$78=\"Electric battery\",\"[kg/kWh]\",\"[g/kg]\")","v":"[g/kg]"},null,null,null,"CH4","xCH4",{"$f":"$D$713*D724","v":15038.099999999999},{"$f":"IF($D$78=\"Electric battery\",\"[kg]\",\"[g]\")","v":"[g]"},null,null,null,null,null,null,null,null,null,null,9,"IOFCH4",3.3,"[g/kg]",{"$f":"IF($D$92=\"Natural gas steam reforming / European Electricity Mix\",AO724,IF($D$92=\"Electrolysis / Electr. from renewable energy\",AQ724,\"?\"))","v":160},"[g/kg]",{"$f":"IF($D$94=\"Hydrogenated Vegetable Oil / European Electricity Mix\",AK724,IF($D$94=\"Hydrogenated Vegetable Oil / European Electricity Mix\",AM724,\"?\"))","v":0},"[g/kg]",{"$f":"IF($D$90=\"European Electricity Mix\",AG724,IF($D$90=\"Electr. from renewable energy\",AI724,\"?\"))","v":0},"[kg/kWh]",0,{"$f":"IF($D$78=\"Electric battery\",\"[kg/kWh]\",\"[g/kg]\")","v":"[g/kg]"},4.8000000000000001E-5,{"$f":"IF($D$78=\"Electric Battery\",\"[kg/kWh]\",\"[g/kg]\")","v":"[g/kg]"},0,"[g/kg]",0,"[g/kg]",160,"[g/kg]",0,"[g/kg]"]
[null,null,null,null,null,null,null,null,null,null,null,null,null,null,null,null,null,null,null,null,null,null,10]
[null,"Emission factor SO2","IOFSO2",{"$f":"HLOOKUP($D$78,$Y$716:$AH$730,W726,FALSE)","v":1.58},{"$f":"IF($D$78=\"Electric battery\",\"[kg/kWh]\",\"[g/kg]\")","v":"[g/kg]"},null,null,null,"SO2","xSO2",{"$f":"$D$713*D726","v":7200.06},{"$f":"IF($D$78=\"Electric battery\",\"[kg]\",\"[g]\")","v":"[g]"},null,null,null,null,null,null,null,null,null,null,11,"IOFSO2",1.58,"[g/kg]",{"$f":"IF($D$92=\"Natural gas steam reforming / European Electricity Mix\",AO726,IF($D$92=\"Electrolysis / Electr. from renewable energy\",AQ726,\"?\"))","v":50},"[g/kg]",{"$f":"IF($D$94=\"Hydrogenated Vegetable Oil / European Electricity Mix\",AK726,IF($D$94=\"Hydrogenated Vegetable Oil / European Electricity Mix\",AM726,\"?\"))","v":143},"[g/kg]",{"$f":"IF($D$90=\"European Electricity Mix\",AG726,IF($D$90=\"Electr. from renewable energy\",AI726,\"?\"))","v":3.3E-3},"[kg/kWh]",3.3E-3,{"$f":"IF($D$78=\"Electric battery\",\"[kg/kWh]\",\"[g/kg]\")","v":"[g/kg]"},0,{"$f":"IF($D$78=\"Electric Battery\",\"[kg/kWh]\",\"[g/kg]\")","v":"[g/kg]"},143,"[g/kg]",0,"[g/kg]",50,"[g/kg]",0,"[g/kg]"]
[null,null,null,null,null,null,null,null,null,null,null,null,null,null,null,null,null,null,null,null,null,null,12]
[null,"Emission factor Hard coal; 26.3 MJ/kg","IOFhard_coal",{"$f":"HLOOKUP($D$78,$Y$716:$AH$730,W728,FALSE)","v":0},{"$f":"IF($D$78=\"Electric battery\",\"[kg/kWh]\",\"[g/kg]\")","v":"[g/kg]"},null,null,null,"Hard coal; 26.3 MJ/kg","xhard_coal",{"$f":"$D$713*D728","v":0},{"$f":"IF($D$78=\"Electric battery\",\"[kg]\",\"[g]\")","v":"[g]"},null,null,null,null,null,null,null,null,null,null,13,"IOFhard_coal",0,"[g/kg]",{"$f":"IF($D$92=\"Natural gas steam reforming / European Electricity Mix\",AO728,IF($D$92=\"Electrolysis / Electr. from renewable energy\",AQ728,\"?\"))","v":1003},"[g/kg]",{"$f":"IF($D$94=\"Hydrogenated Vegetable Oil / European Electricity Mix\",AK728,IF($D$94=\"Hydrogenated Vegetable Oil / European Electricity Mix\",AM728,\"?\"))","v":3543},"[g/kg]",{"$f":"IF($D$90=\"European Electricity Mix\",AG728,IF($D$90=\"Electr. from renewable energy\",AI728,\"?\"))","v":8.1000000000000003E-2},"[kg/kWh]",8.1000000000000003E-2,{"$f":"IF($D$78=\"Electric battery\",\"[kg/kWh]\",\"[g/kg]\")","v":"[g/kg]"},5.5000000000000003E-4,{"$f":"IF($D$78=\"Electric Battery\",\"[kg/kWh]\",\"[g/kg]\")","v":"[g/kg]"},3543,"[g/kg]",0,"[g/kg]",1003,"[g/kg]",11.3,"[g/kg]"]
[null,null,null,null,null,null,null,null,null,null,null,null,null,null,null,null,null,null,null,null,null,null,14]
[null,"Emission factor Brown coal; 11.9 MJ/kg","IOFbrown_coal",{"$f":"HLOOKUP($D$78,$Y$716:$AH$730,W730,FALSE)","v":0},{"$f":"IF($D$78=\"Electric battery\",\"[kg/kWh]\",\"[g/kg]\")","v":"[g/kg]"},null,null,null,"Brown coal; 11.9 MJ/kg","xbrown_coal",{"$f":"$D$713*D730","v":0},{"$f":"IF($D$78=\"Electric battery\",\"[kg]\",\"[g]\")","v":"[g]"},null,null,null,null,null,null,null,null,null,null,15,"IOFbrown_coal",0,"[g/kg]",{"$f":"IF($D$92=\"Natural gas steam reforming / European Electricity Mix\",AO730,IF($D$92=\"Electrolysis / Electr. from renewable energy\",AQ730,\"?\"))","v":1443},"[g/kg]",{"$f":"IF($D$94=\"Hydrogenated Vegetable Oil / European Electricity Mix\",AK730,IF($D$94=\"Hydrogenated Vegetable Oil / European Electricity Mix\",AM730,\"?\"))","v":5097},"[g/kg]",{"$f":"IF($D$90=\"European Electricity Mix\",AG730,IF($D$90=\"Electr. from renewable energy\",AI730,\"?\"))","v":0.12},"[kg/kWh]",0.12,{"$f":"IF($D$78=\"Electric battery\",\"[kg/kWh]\",\"[g/kg]\")","v":"[g/kg]"},4.4999999999999999E-4,{"$f":"IF($D$78=\"Electric Battery\",\"[kg/kWh]\",\"[g/kg]\")","v":"[g/kg]"},5097,"[g/kg]",0,"[g/kg]",1443,"[g/kg]",28.1,"[g/kg]"]
[]
[]
[null,{"$f":"\"Inputs/Outputs per PKM due \" & $B$709","v":"Inputs/Outputs per PKM due Kerosene production"}]
[]
[null,"Crude oil; 42.3 MJ/kg per PKM","xPKM,crude_oil",{"$f":"K718/$D$211*$D$193*IF($D$78=\"Electric Battery\",10^3,1)","v":31.692177310481483},"[g/PKM]"]
[]
[null,"Natural gas; 44.1 MJ/kg per PKM","xPKM,natural_gas",{"$f":"K720/$D$211*$D$193*IF($D$78=\"Electric Battery\",10^3,1)","v":1.6531324921413315},"[g/PKM]"]
[]
[null,"CO2 per PKM","xPKM,CO2",{"$f":"K722/$D$211*$D$193*IF($D$78=\"Electric Battery\",10^3,1)","v":7.3948413724456801},"[g/PKM]"]
[]
[null,"CH4 per PKM","xPKM,CH4",{"$f":"K724/$D$211*$D$193*IF($D$78=\"Electric Battery\",10^3,1)","v":9.4219986598728739E-2},"[g/PKM]"]
[]
[null,"SO2 per PKM","xPKM,SO2",{"$f":"K726/$D$211*$D$193*IF($D$78=\"Electric Battery\",10^3,1)","v":4.5111387523027707E-2},"[g/PKM]"]
[]
[null,"Hard coal; 26.3 MJ/kg per PKM","xPKM,hard_coal",{"$f":"K728/$D$211*$D$193*IF($D$78=\"Electric Battery\",10^3,1)","v":0},"[g/PKM]"]
[]
[null,"Brown coal; 11.9 MJ/kg per PKM","xPKM,brown_coal",{"$f":"K730/$D$211*$D$193*IF($D$78=\"Electric Battery\",10^3,1)","v":0},"[g/PKM]"]
[]
[]
[{"$f":"LEFT(A709,4) & RIGHT(A709,1) + 1","v":"2.4.4"},"Airports"]
[{"$f":"A750 & \".1\"","v":"2.4.4.1"},"Energy generation and consumption at airports"]
[]
[null,"Hamburg Airport 2010 (used as representative airport) (Source:  \"Umwelterklärung 2011 - 2014, Flughafen Hamburg\")"]
[]
[null,"Passengers","nPAX,AP",{"$f":"ROUND(12962917,-5)","v":13000000},"[-]"]
[]
[null,"Employees","nemp",1619,"[-]"]
[]
[null,"CO2 emissions per employee (including vehicles)","IOFCO2",25,"[t/employee]"]
[]
[null,"CO2 emissions due to the use of vehicles","xCO2",{"$f":"63+1486+1947+8+7+744+380","v":4635},"[t]","Reference"]
[]
[null,"CO2 emissions per employee (excluding vehicles)","IOFCO2",{"$f":"D759-D761/D757","v":22.137121680049415},"[t/employee]"]
[]
[null,"Total freight mass","mcargo,tot",71702,"[t]"]
[]
[null,"Mass per passenger","mPAX",95.25,"[kg]"]
[]
[null,"Total Passenger mass","mPAX,tot",{"$f":"D755*D767/1000","v":1238250},"[t]"]
[]
[null,"Total","mPL,tot",{"$f":"D769+D765","v":1309952},"[t]"]
[]
[]
[null,"Inputs/Outputs per employee due to energy generation and consumption at airports",null,null,null,null,"Reference"]
[]
[null,"Emission factor CO2","IOFCO2",{"$f":"ROUND(D763*1000,-2)","v":22100},"[kg/employee] "]
[]
[null,"Emission factor PM10","IOFPM10",49,"[kg/employee] "]
[]
[null,"Emission factor SO2","IOFSO2",122,"[kg/employee] "]
[]
[null,"Emission factor NOx","IOFNOx",14.7,"[kg/employee] "]
[]
[]
[null,"Inputs/Outputs per PKM due to energy generation and consumption at airports (excluding vehicles)"]
[]
[null,"CO2 per PKM","xPKM,CO2",{"$f":"2*(D776*10^3*$D$757/$D$755/(0.5*$D$191)*$D$195)","v":7.065961467860971},"[g/PKM]"]
[]
[null,"PM10 per PKM","xPKM,PM10",{"$f":"2*(D778*10^3*$D$757/$D$755/(0.5*$D$191)*$D$195)","v":1.5666611399329754E-2},"[g/PKM]"]
[]
[null,"SO2 per PKM","xPKM,SO2",{"$f":"2*(D780*10^3*$D$757/$D$755/(0.5*$D$191)*$D$195)","v":3.900666511669857E-2},"[g/PKM]"]
[]
[null,"NOx per PKM","xPKM,NOx",{"$f":"2*(D782*10^3*$D$757/$D$755/(0.5*$D$191)*$D$195)","v":4.6999834197989261E-3},"[g/PKM]"]
[]
[]
[{"$f":"LEFT(A751,6) & RIGHT(A751,1)+1","v":"2.4.4.2"},"Ground handling at airports"]
[]
[null,"Inputs/Outputs per employee due to ground handling"]
[]
[null,"Emission factor Crude oil; 42.3 MJ/kg","IOFcrude_oil",1131,"[kg/employee] "]
[]
[null,"Emission factor Natural gas; 44.1 MJ/kg","IOFnatural_gas",307,"[kg/employee] "]
[]
[null,"Emission factor CO2","IOFCO2",510,"[kg/employee] "]
[]
[null,"Emission factor CH4","IOFCH4",4.9000000000000004,"[kg/employee] "]
[]
[null,"Emission factor SO2","IOFSO2",2.5,"[kg/employee] "]
[]
[]
[null,"Total emissions per PKM due to the ground handling"]
[]
[null,"Crude oil; 42.3 MJ/kg per PKM","xPKM,crude_oil",{"$f":"2*(D800*10^3*$D$757/$D$755/(0.5*$D$191)*$D$195)","v":0.36161096923759084},"[g/PKM]"]
[]
[null,"Natural gas; 44.1 MJ/kg per PKM","xPKM,natural_gas",{"$f":"2*(D802*10^3*$D$757/$D$755/(0.5*$D$191)*$D$195)","v":9.8156116318249678E-2},"[g/PKM]"]
[]
[null,"CO2 emissions per PKM","xPKM,CO2",{"$f":"2*(D804*10^3*$D$757/$D$755/(0.5*$D$191)*$D$195)","v":0.16306064925833008},"[g/PKM]"]
[]
[null,"CH4 per PKM","xPKM,CH4",{"$f":"2*(D806*10^3*$D$757/$D$755/(0.5*$D$191)*$D$195)","v":1.5666611399329754E-3},"[g/PKM]"]
[]
[null,"SO2 per PKM","xPKM,SO2",{"$f":"2*(D808*10^3*$D$757/$D$755/(0.5*$D$191)*$D$195)","v":7.9931690812906902E-4},"[g/PKM]"]
[]
[]
[{"$f":"$A$64 & \".\" & RIGHT(A568,1)+1","v":"2.5"},"End-of-life"]
[]
[null,"Inputs"]
[]
[null,"Percentage of reused aluminum","pwv",0.02]
[]
[null,"Percentage of recycled aluminum","prec",0.74]
[]
[null,"Percentage of incinerated aluminum","pinc",0]
[]
[null,"Percentage of landfill aluminum","pldf",0.24]
[]
[]
[null,"Percentage of reused steel","pwv",0.56000000000000005]
[]
[null,"Percentage of recycled steel","prec",0.23]
[]
[null,"Percentage of incinerated steel","pinc",0]
[]
[null,"Percentage of landfill steel","pldf",0.21]
[]
[]
[null,"Percentage of reused composites","pwv",0.05]
[]
[null,"Percentage of recycled composites","prec",0]
[]
[null,"Percentage of incinerated composites","pinc",0.47]
[]
[null,"Percentage of landfill composites","pldf",0.48]
[]
[]
[null,"Masses of reused, recycled, incinerated and landfill materials"]
[]
[null,"Reusd aluminum","mwv,Al",{"$f":"$D828*K$449","v":593.91359999999997},"[kg]",null,null,null,"Incinerated aluminum","minc,Al",{"$f":"$D832*K$449","v":0},"[kg]"]
[]
[null,"Reused steel","mwv,St",{"$f":"$D837*K$451","v":1616.7648000000004},"[kg]",null,null,null,"Incinerated steel","minc,St",{"$f":"$D841*K$451","v":0},"[kg]"]
[]
[null,"Reused composites","mwv,Co",{"$f":"$D846*K$453","v":247.464},"[kg]",null,null,null,"Incinerated composites","minc,Co",{"$f":"$D850*K$453","v":2326.1615999999999},"[kg]"]
[]
[]
[]
[null,"Recycled aluminum","mrec,Al",{"$f":"$D830*K$449","v":21974.803199999998},"[kg]",null,null,null,"Landfill aluminum","mldf,Al",{"$f":"$D834*K$449","v":7126.9632000000001},"[kg]"]
[]
[null,"Recycled steel","mrec,St",{"$f":"$D839*K$451","v":664.02840000000015},"[kg]",null,null,null,"Landfill steel","mldf,St",{"$f":"$D843*K$451","v":606.28680000000008},"[kg]"]
[]
[null,"Recycled composites","mrec,Co",{"$f":"$D848*K$453","v":0},"[kg]",null,null,null,"Landfill composites","mldf,Co",{"$f":"$D852*K$453","v":2375.6543999999999},"[kg]"]
[]
[]
[{"$f":"$A$64 & \".\" & RIGHT(A824,1)+1","v":"2.6"},"Results of Inventory Analysis"]
[]
[null,"Summary of the inventory analysis of all in- and outputs"]
[]
[null,"Crude oil"]
[]
[null,"Electric energy due to computer use during aircraft design","xPKM,crude_oil",{"$f":"D295","v":1.4204454018542906E-6},"[g/PKM]",null,">>>>>",null,"Percentage of Electric energy due to computer use during aircraft design","pPKM,crude_oil",{"$f":"IF($D$892=0,0,D878/$D$892)","v":4.4277588551635391E-8}]
[]
[null,"Flight test campaign","xPKM,crude_oil",{"$f":"D394","v":5.9684306413524542E-7},"[g/PKM]",null,">>>>>",null,"Percentage of Flight test campaign","pPKM,crude_oil",{"$f":"IF($D$892=0,0,D880/$D$892)","v":1.8604566982426397E-8}]
[]
[null,"Use of production facilities","xPKM,crude_oil",{"$f":"D436","v":2.4282182288207822E-2},"[g/PKM]",null,">>>>>",null,"Percentage of Use of production facilities","pPKM,crude_oil",{"$f":"IF($D$892=0,0,D882/$D$892)","v":7.5691503178477255E-4}]
[]
[null,"Battery production","xPKM,crude_oil",{"$f":"D565","v":0},"[g/PKM]",null,">>>>>",null,"Percentage of battery production","pPKM,crude_oil",{"$f":"IF($D$892=0,0,D884/$D$892)","v":0}]
[]
[null,"Material production","xPKM,crude_oil",{"$f":"D522","v":2.3873722565409816E-3},"[g/PKM]",null,">>>>>",null,"Percentage of Material production","pPKM,crude_oil",{"$f":"IF($D$892=0,0,D886/$D$892)","v":7.4418267929705594E-5}]
[]
[null,"Ground handling","xPKM,crude_oil",{"$f":"D813","v":0.36161096923759084},"[g/PKM]",null,">>>>>",null,"Percentage of Ground handling","pPKM,crude_oil",{"$f":"IF($D$892=0,0,D888/$D$892)","v":1.1272000803944006E-2}]
[]
[null,{"$f":"$B$709","v":"Kerosene production"},"xPKM,crude_oil",{"$f":"D735","v":31.692177310481483},"[g/PKM]",null,">>>>>",null,{"$f":"\"Percentage of \" & $B$709","v":"Percentage of Kerosene production"},"pPKM,crude_oil",{"$f":"IF($D$892=0,0,D890/$D$892)","v":0.98789660301418591}]
[]
[null,"SUM","xPKM,crude_oil",{"$f":"SUM(D878:D890)","v":32.080459851552291},"[g/PKM]"]
[]
[null,"CO2"]
[]
[null,"Electric energy due to computer use during aircraft design","xPKM,CO2",{"$f":"D287","v":4.6791142649317807E-5},"[g/PKM]",null,">>>>>",null,"Percentage of Electric energy due to computer use during aircraft design","pPKM,CO2",{"$f":"IF($D$916=0,0,D896/$D$916)","v":4.466384080283039E-7}]
[]
[null,"Wind tunnel tests","xPKM,CO2",{"$f":"D320","v":6.5395914353257305E-4},"[g/PKM]",null,">>>>>",null,"Percentage of Wind tunnel tests","pPKM,CO2",{"$f":"IF($D$916=0,0,D898/$D$916)","v":6.2422769405739217E-6}]
[]
[null,"Flight test campaign","xPKM,CO2",{"$f":"D382","v":2.5907450807798526E-4},"[g/PKM]",null,">>>>>",null,"Percentage of Flight test campaign","pPKM,CO2",{"$f":"IF($D$916=0,0,D900/$D$916)","v":2.4729600368148806E-6}]
[]
[null,"Material production","xPKM,CO2",{"$f":"D524","v":6.8746461135660034E-2},"[g/PKM]",null,">>>>>",null,"Percentage of Material production","pPKM,CO2",{"$f":"IF($D$916=0,0,D902/$D$916)","v":6.5620987692760534E-4}]
[]
[null,"Use of production facilities","xPKM,CO2",{"$f":"D434","v":0.13208769244715518},"[g/PKM]",null,">>>>>",null,"Percentage of Use of production facilities","pPKM,CO2",{"$f":"IF($D$916=0,0,D904/$D$916)","v":1.2608248769832027E-3}]
[]
[null,"Cruise flight","xPKM,CO2",{"$f":"D593","v":83.445791005084345},"[g/PKM]",null,">>>>>",null,"Percentage of Cruise flight","pPKM,CO2",{"$f":"IF($D$916=0,0,D906/$D$916)","v":0.79652030578733501}]
[]
[null,"LTO-cycle","xPKM,CO2",{"$f":"D696","v":6.4914689300658299},"[g/PKM]",null,">>>>>",null,"Percentage of LTO-cycle","pPKM,CO2",{"$f":"IF($D$916=0,0,D908/$D$916)","v":6.1963422659268408E-2}]
[]
[null,"Energy generation and consumption at airports","xPKM,CO2",{"$f":"D787","v":7.065961467860971},"[g/PKM]",null,">>>>>",null,"Percentage of Energy generation and consumption at airports","pPKM,CO2",{"$f":"IF($D$916=0,0,D910/$D$916)","v":6.744716205900933E-2}]
[]
[null,"Ground handling","xPKM,CO2",{"$f":"D817","v":0.16306064925833008},"[g/PKM]",null,">>>>>",null,"Percentage of Ground handling","pPKM,CO2",{"$f":"IF($D$916=0,0,D912/$D$916)","v":1.556472970592523E-3}]
[]
[null,{"$f":"$B$709","v":"Kerosene production"},"xPKM,CO2",{"$f":"D739","v":7.3948413724456801},"[g/PKM]",null,">>>>>",null,{"$f":"\"Percentage of \" & $B$709","v":"Percentage of Kerosene production"},"pPKM,CO2",{"$f":"IF($D$916=0,0,D914/$D$916)","v":7.058643989449849E-2}]
[]
[null,"SUM","xPKM,CO2",{"$f":"SUM(D896:D914)","v":104.76291740309223},"[g/PKM]"]
[]
[null,"NOx"]
[]
[null,"Flight test campaign","xPKM,NOx",{"$f":"D386","v":1.2345755463427688E-6},"[g/PKM]",null,">>>>>",null,"Percentage of Flight test campaign","pPKM,NOx",{"$f":"IF($D$928=0,0,D920/$D$928)","v":2.7079572096044481E-6},null,null,{"$f":"IF(($D$922+$D$920)=0,0,D920/($D$922+$D$920))","v":2.8987344803353459E-6}]
[]
[null,"Cruise flight","xPKM,NOx",{"$f":"D599","v":0.42590032857829746},"[g/PKM]",null,">>>>>",null,"Percentage of Cruise flight","pPKM,NOx",{"$f":"IF($D$928=0,0,D922/$D$928)","v":0.93418330596538079},null,null,{"$f":"IF(($D$922+$D$920)=0,0,D922/($D$922+$D$920))","v":0.99999710126551966}]
[]
[null,"LTO-cycle","xPKM,NOx",{"$f":"D702","v":2.5305046766915803E-2},"[g/PKM]",null,">>>>>",null,"Percentage of LTO-cycle","pPKM,NOx",{"$f":"IF($D$928=0,0,D924/$D$928)","v":5.550489318765596E-2}]
[]
[null,"Energy generation and consumption at airports","xPKM,NOx",{"$f":"D793","v":4.6999834197989261E-3},"[g/PKM]",null,">>>>>",null,"Percentage of Energy generation and consumption at airports","pPKM,NOx",{"$f":"IF($D$928=0,0,D926/$D$928)","v":1.0309092889753574E-2}]
[]
[null,"SUM","xPKM,NOx",{"$f":"SUM(D920:D926)","v":0.45590659334055855},"[g/PKM]"]
[]
[null,"Hard coal"]
[]
[null,"Electric energy due to computer use during aircraft design","xPKM,hard_coal",{"$f":"D289","v":6.7680045617763262E-6},"[g/PKM]",null,">>>>>",null,"Percentage of Electric energy due to computer use during aircraft design","pPKM,hard_coal",{"$f":"IF($D$944=0,0,D932/$D$944)","v":3.3426647018831922E-4}]
[]
[null,"Flight test campaign","xPKM,hard_coal",{"$f":"D398","v":2.2289687617219823E-6},"[g/PKM]",null,">>>>>",null,"Percentage of Flight test campaign","pPKM,hard_coal",{"$f":"IF($D$944=0,0,D934/$D$944)","v":1.1008702983871591E-4}]
[]
[null,"Use of production facilities","xPKM,hard_coal",{"$f":"D440","v":1.1322461066961102E-2},"[g/PKM]",null,">>>>>",null,"Percentage of Use of production facilities","pPKM,hard_coal",{"$f":"IF($D$944=0,0,D936/$D$944)","v":0.55920752714510924}]
[]
[null,"Battery production","xPKM,hard_coal",{"$f":"D561","v":0},"[g/PKM]",null,">>>>>",null,"Percentage of battery production","pPKM,hard_coal",{"$f":"IF($D$944=0,0,D938/$D$944)","v":0}]
[]
[null,"Material production","xPKM,hard_coal",{"$f":"D526","v":8.9158750468879295E-3},"[g/PKM]",null,">>>>>",null,"Percentage of Material production","pPKM,hard_coal",{"$f":"IF($D$944=0,0,D940/$D$944)","v":0.44034811935486362}]
[]
[null,{"$f":"$B$709","v":"Kerosene production"},"xPKM,hard_coal",{"$f":"D745","v":0},"[g/PKM]",null,">>>>>",null,{"$f":"\"Percentage of \" & $B$709","v":"Percentage of Kerosene production"},"pPKM,hard_coal",{"$f":"IF($D$944=0,0,D942/$D$944)","v":0}]
[]
[null,"SUM","xPKM,hard_coal",{"$f":"SUM(D932:D942)","v":2.0247333087172532E-2},"[g/PKM]"]
[]
[null,"Natural gas"]
[]
[null,"Electric energy due to computer use during aircraft design","xPKM,natural_gas",{"$f":"D291","v":3.4257800868250536E-6},"[g/PKM]",null,">>>>>",null,"Percentage of Electric energy due to computer use during aircraft design","pPKM,natural_gas",{"$f":"IF($D$962=0,0,D948/$D$962)","v":1.9143094469942382E-6}]
[]
[null,"Flight test campaign","xPKM,natural_gas",{"$f":"D400","v":1.859827273699654E-6},"[g/PKM]",null,">>>>>",null,"Percentage of Flight test campaign","pPKM,natural_gas",{"$f":"IF($D$962=0,0,D950/$D$962)","v":1.0392625415487161E-6}]
[]
[null,"Use of production facilities","xPKM,natural_gas",{"$f":"D432","v":3.083122290535029E-2},"[g/PKM]",null,">>>>>",null,"Percentage of Use of production facilities","pPKM,natural_gas",{"$f":"IF($D$962=0,0,D952/$D$962)","v":1.7228339173632205E-2}]
[]
[null,"Battery production","xPKM,natural_gas",{"$f":"D563","v":0},"[g/PKM]",null,">>>>>",null,"Percentage of battery production","pPKM,natural_gas",{"$f":"IF($D$962=0,0,D954/$D$962)","v":0}]
[]
[null,"Material production","xPKM,natural_gas",{"$f":"D528","v":7.439309094798615E-3},"[g/PKM]",null,">>>>>",null,"Percentage of Material production","pPKM,natural_gas",{"$f":"IF($D$962=0,0,D956/$D$962)","v":4.1570501661948632E-3}]
[]
[null,"Ground handling","xPKM,natural_gas",{"$f":"D815","v":9.8156116318249678E-2},"[g/PKM]",null,">>>>>",null,"Percentage of Ground handling","pPKM,natural_gas",{"$f":"IF($D$962=0,0,D958/$D$962)","v":5.4849166025258154E-2}]
[]
[null,{"$f":"$B$709","v":"Kerosene production"},"xPKM,natural_gas",{"$f":"D737","v":1.6531324921413315},"[g/PKM]",null,">>>>>",null,{"$f":"\"Percentage of \" & $B$709","v":"Percentage of Kerosene production"},"pPKM,natural_gas",{"$f":"IF($D$962=0,0,D960/$D$962)","v":0.92376249106292618}]
[]
[null,"SUM","xPKM,natural_gas",{"$f":"SUM(D948:D960)","v":1.7895644260670907},"[g/PKM]"]
[]
[null,"Brown coal"]
[]
[null,"Electric energy due to computer use during aircraft design","xPKM,brown_coal",{"$f":"D293","v":1.0026673424853815E-5},"[g/PKM]",null,">>>>>",null,"Percentage of Electric energy due to computer use during aircraft design","pPKM,brown_coal",{"$f":"IF($D$976=0,0,D966/$D$976)","v":1.8541612366503919E-4}]
[]
[null,"Flight test campaign","xPKM,brown_coal",{"$f":"D402","v":2.9717142367020398E-6},"[g/PKM]",null,">>>>>",null,"Percentage of Flight test campaign","pPKM,brown_coal",{"$f":"IF($D$976=0,0,D968/$D$976)","v":5.4953792854536541E-5}]
[]
[null,"Use of production facilities","xPKM,brown_coal",{"$f":"D438","v":4.2176743974484433E-2},"[g/PKM]",null,">>>>>",null,"Percentage of Use of production facilities","pPKM,brown_coal",{"$f":"IF($D$976=0,0,D970/$D$976)","v":0.77994445866533435}]
[]
[null,"Material production","xPKM,brown_coal",{"$f":"D530","v":1.1886856946808157E-2},"[g/PKM]",null,">>>>>",null,"Percentage of Material production","pPKM,brown_coal",{"$f":"IF($D$976=0,0,D972/$D$976)","v":0.21981517141814613}]
[]
[null,"Kerosene production","xPKM,brown_coal",{"$f":"D747","v":0},"[g/PKM]",null,">>>>>",null,{"$f":"\"Percentage of \" & $B$709","v":"Percentage of Kerosene production"},"pPKM,brown_coal",{"$f":"IF($D$976=0,0,D974/$D$976)","v":0}]
[]
[null,"SUM","xPKM,brown_coal",{"$f":"SUM(D966:D974)","v":5.4076599308954143E-2},"[g/PKM]"]
[]
[null,"Copper Ore"]
[]
[null,"Battery production","xPKM,copper_ore",{"$f":"D559","v":0},"[g/PKM]",null,">>>>>",null,"Percentage of battery production","pPKM,copper_ore",{"$f":"IF($D$982=0,0,D980/$D$982)","v":0}]
[]
[null,"SUM","xPKM,copper_ore",{"$f":"SUM(D980)","v":0},"[g/PKM]"]
[]
[null,"CH4"]
[]
[null,"Ground handling","xPKM,CH4",{"$f":"D819","v":1.5666611399329754E-3},"[g/PKM]",null,">>>>>",null,"Percentage of Ground handling","pPKM,CH4",{"$f":"IF($D$990=0,0,D986/$D$990)","v":1.6355736179507557E-2}]
[]
[null,{"$f":"$B$709","v":"Kerosene production"},"xPKM,CH4",{"$f":"D741","v":9.4219986598728739E-2},"[g/PKM]",null,">>>>>",null,{"$f":"\"Percentage of \" & $B$709","v":"Percentage of Kerosene production"},"pPKM,CH4",{"$f":"IF($D$990=0,0,D988/$D$990)","v":0.98364426382049241}]
[]
[null,"SUM","xPKM,CH4",{"$f":"SUM(D986:D988)","v":9.5786647738661718E-2},"[g/PKM]"]
[]
[null,"Fe"]
[]
[null,"Flight test campaign","xPKM,Fe",{"$f":"D404","v":2.3776534182798566E-8},"[g/PKM]",null,">>>>>",null,"Percentage of Flight test campaign","pPKM,Fe",{"$f":"IF($D$998=0,0,D994/$D$998)","v":2.4993751562109475E-4}]
[]
[null,"Material production","xPKM,Fe",{"$f":"D536","v":9.5106136731194259E-5},"[g/PKM]",null,">>>>>",null,"Percentage of Material production","pPKM,Fe",{"$f":"IF($D$998=0,0,D996/$D$998)","v":0.99975006248437881}]
[]
[null,"SUM","xPKM,Fe",{"$f":"SUM(D994:D996)","v":9.5129913265377063E-5},"[g/PKM]"]
[]
[null,"Mn"]
[]
[null,"Flight test campaign","xPKM,Mn",{"$f":"D406","v":2.2458327975538682E-10},"[g/PKM]",null,">>>>>",null,"Percentage of Flight test campaign","pPKM,Mn",{"$f":"IF($D$1006=0,0,D1002/$D$1006)","v":2.4993751562109469E-4}]
[]
[null,"Material production","xPKM,Mn",{"$f":"D538","v":8.9833311902154736E-7},"[g/PKM]",null,">>>>>",null,"Percentage of Material production","pPKM,Mn",{"$f":"IF($D$1006=0,0,D1004/$D$1006)","v":0.99975006248437881}]
[]
[null,"SUM","xPKM,Mn",{"$f":"SUM(D1002:D1004)","v":8.985577023013028E-7},"[g/PKM]"]
[]
[null,"CO"]
[]
[null,"Flight test campaign","xPKM,CO",{"$f":"D388","v":1.3085353112270197E-7},"[g/PKM]",null,">>>>>",null,"Percentage of Flight test campaign","pPKM,CO",{"$f":"IF($D$1016=0,0,D1010/$D$1016)","v":2.1093656614556939E-6}]
[]
[null,"Cruise flight","xPKM,CO",{"$f":"D605","v":4.5141475599352388E-2},"[g/PKM]",null,">>>>>",null,"Percentage of Cruise flight","pPKM,CO",{"$f":"IF($D$1016=0,0,D1012/$D$1016)","v":0.72768291172384092}]
[]
[null,"LTO-cycle","xPKM,CO",{"$f":"D704","v":1.6892934790382334E-2},"[g/PKM]",null,">>>>>",null,"Percentage of LTO-cycle","pPKM,CO",{"$f":"IF($D$1016=0,0,D1014/$D$1016)","v":0.27231497891049766}]
[]
[null,"SUM","xPKM,CO",{"$f":"SUM(D1010:D1014)","v":6.2034541243265844E-2},"[g/PKM]"]
[]
[null,"SO2"]
[]
[null,"Electric energy due to computer use during aircraft design","xPKM,SO2",{"$f":"D297","v":2.7573351918347983E-7},"[g/PKM]",null,">>>>>",null,"Percentage of Electric energy due to computer use during aircraft design","pPKM,SO2",{"$f":"IF($D$1036=0,0,D1020/$D$1036)","v":2.5278297288974759E-6}]
[]
[null,"Flight test campaign","xPKM,SO2",{"$f":"D392","v":1.4976950469335158E-7},"[g/PKM]",null,">>>>>",null,"Percentage of Flight test campaign","pPKM,SO2",{"$f":"IF($D$1036=0,0,D1022/$D$1036)","v":1.373035123068153E-6}]
[]
[null,"Use of production facilities","xPKM,SO2",{"$f":"D442","v":1.5680801477665071E-3},"[g/PKM]",null,">>>>>",null,"Percentage of Use of production facilities","pPKM,SO2",{"$f":"IF($D$1036=0,0,D1024/$D$1036)","v":1.4375617540283476E-2}]
[]
[null,"Material production","xPKM,SO2",{"$f":"D532","v":3.4106426645973131E-4},"[g/PKM]",null,">>>>>",null,"Percentage of Material production","pPKM,SO2",{"$f":"IF($D$1036=0,0,D1026/$D$1036)","v":3.1267594697031438E-3}]
[]
[null,"Cruise flight","xPKM,SO2",{"$f":"D603","v":2.2252210934689157E-2},"[g/PKM]",null,">>>>>",null,"Percentage of Cruise flight","pPKM,SO2",{"$f":"IF($D$1036=0,0,D1028/$D$1036)","v":0.20400058905052723}]
[]
[null,"Ground handling","xPKM,SO2",{"$f":"D821","v":7.9931690812906902E-4},"[g/PKM]",null,">>>>>",null,"Percentage of Ground handling","pPKM,SO2",{"$f":"IF($D$1036=0,0,D1030/$D$1036)","v":7.3278615134004009E-3}]
[]
[null,"Energy generation and consumption at airports","xPKM,SO2",{"$f":"D791","v":3.900666511669857E-2},"[g/PKM]",null,">>>>>",null,"Percentage of Energy generation and consumption at airports","pPKM,SO2",{"$f":"IF($D$1036=0,0,D1032/$D$1036)","v":0.35759964185393961}]
[]
[null,{"$f":"$B$709","v":"Kerosene production"},"xPKM,SO2",{"$f":"D743","v":4.5111387523027707E-2},"[g/PKM]",null,">>>>>",null,{"$f":"\"Percentage of \" & $B$709","v":"Percentage of Kerosene production"},"pPKM,SO2",{"$f":"IF($D$1036=0,0,D1034/$D$1036)","v":0.4135656297072941}]
[]
[null,"SUM","xPKM,SO2",{"$f":"SUM(D1020:D1034)","v":0.10907915039979463},"[g/PKM]"]
[]
[null,"PM10"]
[]
[null,"Material production","xPKM,PM10",{"$f":"D534","v":7.3926069320271215E-6},"[g/PKM]",null,">>>>>",null,"Percentage of Material production","pPKM,PM10",{"$f":"IF($D$1046=0,0,D1040/$D$1046)","v":4.7164758012040035E-4}]
[]
[null,"Flight test campaign","xPKM,PM10",{"$f":"D396","v":1.8481517330067806E-9},"[g/PKM]",null,">>>>>",null,"Percentage of Flight test campaign","pPKM,PM10",{"$f":"IF($D$1046=0,0,D1042/$D$1046)","v":1.1791189503010009E-7}]
[]
[null,"Energy generation and consumption at airports","xPKM,PM10",{"$f":"D789","v":1.5666611399329754E-2},"[g/PKM]",null,">>>>>",null,"Percentage of Energy generation and consumption at airports","pPKM,PM10",{"$f":"IF($D$1046=0,0,D1044/$D$1046)","v":0.99952823450798456}]
[]
[null,"SUM","xPKM,PM10",{"$f":"SUM(D1040:D1044)","v":1.5674005854413513E-2},"[g/PKM]"]
[]
[null,"HC"]
[]
[null,"Flight test campaign","xPKM,HC",{"$f":"D390","v":5.5292958913379039E-9},"[g/PKM]",null,">>>>>",null,"Percentage of Flight test campaign","pPKM,HC",{"$f":"IF($D$1056=0,0,D1050/$D$1056)","v":1.6230472531049149E-6}]
[]
[null,"Cruise flight","xPKM,HC",{"$f":"D601","v":1.9074806267656448E-3},"[g/PKM]",null,">>>>>",null,"Percentage of Cruise flight","pPKM,HC",{"$f":"IF($D$1056=0,0,D1052/$D$1056)","v":0.55991418301068896}]
[]
[null,"LTO-cycle","xPKM,HC",{"$f":"D706","v":1.4992513130788559E-3},"[g/PKM]",null,">>>>>",null,"Percentage of LTO-cycle","pPKM,HC",{"$f":"IF($D$1056=0,0,D1054/$D$1056)","v":0.44008419394205789}]
[]
[null,"SUM","xPKM,HC",{"$f":"SUM(D1050:D1054)","v":3.4067374691403923E-3},"[g/PKM]"]
[]
[null,"O2"]
[]
[null,"Flight test campaign","xPKM,O2",{"$f":"D380","v":2.6108534460312342E-4},"[g/PKM]",null,">>>>>",null,"Percentage of Flight test campaign","pPKM,O2",{"$f":"IF($D$1066=0,0,D1060/$D$1066)","v":2.6895109147016125E-6}]
[]
[null,"Cruise flight","xPKM,O2",{"$f":"D595","v":90.068472830884687},"[g/PKM]",null,">>>>>",null,"Percentage of Cruise flight","pPKM,O2",{"$f":"IF($D$1066=0,0,D1062/$D$1066)","v":0.92781975609316536}]
[]
[null,"LTO-cycle","xPKM,O2",{"$f":"D698","v":7.0066648768964503},"[g/PKM]",null,">>>>>",null,"Percentage of LTO-cycle","pPKM,O2",{"$f":"IF($D$1066=0,0,D1064/$D$1066)","v":7.2177554395919899E-2}]
[]
[null,"SUM","xPKM,O2",{"$f":"SUM(D1060:D1064)","v":97.075398793125743},"[g/PKM]"]
[]
[null,"H20"]
[]
[null,"Flight test campaign","xPKM,H2O",{"$f":"D384","v":9.4451462900541704E-5},"[g/PKM]",null,">>>>>",null,"Percentage of Flight test campaign","pPKM,H2O",{"$f":"IF($D$1076=0,0,D1070/$D$1076)","v":2.689510914701612E-6}]
[]
[null,"Cruise flight","xPKM,H2O",{"$f":"D597","v":32.5835945829377},"[g/PKM]",null,">>>>>",null,"Percentage of Cruise flight","pPKM,H2O",{"$f":"IF($D$1076=0,0,D1072/$D$1076)","v":0.92781975609316536}]
[]
[null,"LTO-cycle","xPKM,H2O",{"$f":"D700","v":2.5347640584066569},"[g/PKM]",null,">>>>>",null,"Percentage of LTO-cycle","pPKM,H2O",{"$f":"IF($D$1076=0,0,D1074/$D$1076)","v":7.2177554395919885E-2}]
[]
[null,"SUM","xPKM,H2O",{"$f":"SUM(D1070:D1074)","v":35.118453092807258},"[g/PKM]"]
[]
[]
[null,"Selected results of the inventory analysis",null,null,null,null,null,null,null,null,null,null,null,null,null,null,null,null,null,null,null,null,null,null,null,null,null,null,null,null,"For the graphical representation:"]
[]
[null,null,null,null,null,null,null,null,null,null,null,null,null,null,null,null,null,null,null,null,null,null,null,null,null,null,null,null,null,null,null,null,{"$f":"B906","v":"Cruise flight"},{"$f":"D906","v":83.445791005084345},{"$f":"K906","v":0.79652030578733501}]
[null,null,null,null,null,null,null,null,null,null,null,null,null,null,null,null,null,null,null,null,null,null,null,null,null,null,null,null,null,null,null,null,{"$f":"B908","v":"LTO-cycle"},{"$f":"D908","v":6.4914689300658299},{"$f":"K908","v":6.1963422659268408E-2}]
[null,null,null,null,null,null,null,null,null,null,null,null,null,null,null,null,null,null,null,null,null,null,null,null,null,null,null,null,null,null,null,null,{"$f":"B914","v":"Kerosene production"},{"$f":"D914","v":7.3948413724456801},{"$f":"K914","v":7.058643989449849E-2}]
[null,null,null,null,null,null,null,null,null,null,null,null,null,null,null,null,null,null,null,null,null,null,null,null,null,null,null,null,null,null,null,null,"Energy gen. and cons. at airport",{"$f":"D910","v":7.065961467860971},{"$f":"K910","v":6.744716205900933E-2}]
[null,null,null,null,null,null,null,null,null,null,null,null,null,null,null,null,null,null,null,null,null,null,null,null,null,null,null,null,null,null,null,null,{"$f":"B912","v":"Ground handling"},{"$f":"D912","v":0.16306064925833008},{"$f":"K912","v":1.556472970592523E-3}]
[null,null,null,null,null,null,null,null,null,null,null,null,null,null,null,null,null,null,null,null,null,null,null,null,null,null,null,null,null,null,null,null,{"$f":"B904","v":"Use of production facilities"},{"$f":"D904","v":0.13208769244715518},{"$f":"K904","v":1.2608248769832027E-3}]
[null,null,null,null,null,null,null,null,null,null,null,null,null,null,null,null,null,null,null,null,null,null,null,null,null,null,null,null,null,null,null,null,{"$f":"B902","v":"Material production"},{"$f":"D902","v":6.8746461135660034E-2},{"$f":"K902","v":6.5620987692760534E-4}]
[null,null,null,null,null,null,null,null,null,null,null,null,null,null,null,null,null,null,null,null,null,null,null,null,null,null,null,null,null,null,null,null,{"$f":"B898","v":"Wind tunnel tests"},{"$f":"D898","v":6.5395914353257305E-4},{"$f":"K898","v":6.2422769405739217E-6}]
[null,null,null,null,null,null,null,null,null,null,null,null,null,null,null,null,null,null,null,null,null,null,null,null,null,null,null,null,null,null,null,null,{"$f":"B900","v":"Flight test campaign"},{"$f":"D900","v":2.5907450807798526E-4},{"$f":"K900","v":2.4729600368148806E-6}]
[null,null,null,null,null,null,null,null,null,null,null,null,null,null,null,null,null,null,null,null,null,null,null,null,null,null,null,null,null,null,null,null,"Computer use during aircraft design",{"$f":"D896","v":4.6791142649317807E-5},{"$f":"K896","v":4.466384080283039E-7}]
[]
[]
[]
[]
[null,null,null,null,null,null,null,null,null,null,null,null,null,null,null,null,null,null,null,null,null,null,null,null,null,null,null,null,null,null,null,null,"CO2",{"$f":"D1105","v":104.76291740309223}]
[null,null,null,null,null,null,null,null,null,null,null,null,null,null,null,null,null,null,null,null,null,null,null,null,null,null,null,null,null,null,null,null,"Crude oil",{"$f":"D1107","v":32.080459851552291}]
[null,null,null,null,null,null,null,null,null,null,null,null,null,null,null,null,null,null,null,null,null,null,null,null,null,null,null,null,null,null,null,null,"O2",{"$f":"D1109","v":97.075398793125743}]
[null,null,null,null,null,null,null,null,null,null,null,null,null,null,null,null,null,null,null,null,null,null,null,null,null,null,null,null,null,null,null,null,"H2O",{"$f":"D1111","v":35.118453092807258}]
[null,null,null,null,null,null,null,null,null,null,null,null,null,null,null,null,null,null,null,null,null,null,null,null,null,null,null,null,null,null,null,null,"NOx",{"$f":"D1113","v":0.45590659334055855}]
[null,null,null,null,null,null,null,null,null,null,null,null,null,null,null,null,null,null,null,null,null,null,null,null,null,null,null,null,null,null,null,null,"Hard coal",{"$f":"D1115","v":2.0247333087172532E-2}]
[null,null,null,null,null,null,null,null,null,null,null,null,null,null,null,null,null,null,null,null,null,null,null,null,null,null,null,null,null,null,null,null,"Natural gas",{"$f":"D1117","v":1.7895644260670907}]
[null,null,null,null,null,null,null,null,null,null,null,null,null,null,null,null,null,null,null,null,null,null,null,null,null,null,null,null,null,null,null,null,"Brown coal",{"$f":"D1119","v":5.4076599308954143E-2}]
[null,"Summarized results of the inventory analysis",null,null,null,null,null,null,null,null,null,null,null,null,null,null,null,null,null,null,null,null,null,null,null,null,null,null,null,null,null,null,"CO",{"$f":"D1121","v":6.2034541243265844E-2}]
[null,null,null,null,null,null,null,null,null,null,null,null,null,null,null,null,null,null,null,null,null,null,null,null,null,null,null,null,null,null,null,null,"SO2",{"$f":"D1123","v":0.10907915039979463}]
[null,"CO2 emissions per PKM","xPKM,CO2",{"$f":"D$916","v":104.76291740309223},"[g/PKM]",null,null,null,null,null,null,null,null,null,null,null,null,null,null,null,null,null,null,null,null,null,null,null,null,null,null,null,"HC",{"$f":"D1125","v":3.4067374691403923E-3}]
[null,null,null,null,null,null,null,null,null,null,null,null,null,null,null,null,null,null,null,null,null,null,null,null,null,null,null,null,null,null,null,null,"PM10",{"$f":"D1127","v":1.5674005854413513E-2}]
[null,"Crude oil per PKM","xPKM,crude_oil",{"$f":"D892","v":32.080459851552291},"[g/PKM]",null,null,null,null,null,null,null,null,null,null,null,null,null,null,null,null,null,null,null,null,null,null,null,null,null,null,null,"CH4",{"$f":"D1129","v":9.5786647738661718E-2}]
[null,null,null,null,null,null,null,null,null,null,null,null,null,null,null,null,null,null,null,null,null,null,null,null,null,null,null,null,null,null,null,null,"Fe",{"$f":"D1131","v":9.5129913265377063E-5}]
[null,"O2 emissions per PKM","xPKM,O2",{"$f":"D$1066","v":97.075398793125743},"[g/PKM]",null,null,null,null,null,null,null,null,null,null,null,null,null,null,null,null,null,null,null,null,null,null,null,null,null,null,null,"Mn",{"$f":"D1133","v":8.985577023013028E-7}]
[]
[null,"H2O emissions per PKM","xPKM,H2O",{"$f":"D$1076","v":35.118453092807258},"[g/PKM]"]
[]
[null,"NOx emissions per PKM","xPKM,NOx",{"$f":"D$928","v":0.45590659334055855},"[g/PKM]"]
[]
[null,"Hard coal per PKM","xPKM,hard_coal",{"$f":"D944","v":2.0247333087172532E-2},"[g/PKM]"]
[]
[null,"Natural gas per PKM","xPKM,natural_gas",{"$f":"D962","v":1.7895644260670907},"[g/PKM]"]
[]
[null,"Brown coal per PKM","xPKM,brown_coal",{"$f":"D976","v":5.4076599308954143E-2},"[g/PKM]"]
[]
[null,"CO emissions per PKM","xPKM,CO",{"$f":"D$1016","v":6.2034541243265844E-2},"[g/PKM]"]
[]
[null,"SO2 emissions per PKM","xPKM,SO2",{"$f":"D$1036","v":0.10907915039979463},"[g/PKM]"]
[]
[null,"HC emissions per PKM","xPKM,HC",{"$f":"D$1056","v":3.4067374691403923E-3},"[g/PKM]"]
[]
[null,"PM10 emissions per PKM","xPKM,PM10",{"$f":"D$1046","v":1.5674005854413513E-2},"[g/PKM]"]
[]
[null,"CH4 per PKM","xPKM,CH4",{"$f":"D990","v":9.5786647738661718E-2},"[g/PKM]"]
[]
[null,"Fe per PKM","xPKM,Fe",{"$f":"D998","v":9.5129913265377063E-5},"[g/PKM]"]
[]
[null,"Mn per PKM","xPKM,Mn",{"$f":"D1006","v":8.985577023013028E-7},"[g/PKM]"]
[]
[]
[{"$f":"A64+1","v":3},"Life Cycle Impact Assessment"]
[]
[{"$f":"$A$1136 & \".1\"","v":"3.1"},"Inputs for the impact assessment"]
[]
[null,"Inputs for Impact assessment"]
[]
[null,"Choose perspective and region",null,{"$f":"IF(D170=\"Own settings\",D172,IF(D170=\"Use suggested settings\",J172,\"?\"))","v":"Hierarchist, World"}]
[]
[null,"Choose weighting:",null,{"$f":"IF(D170=\"Own settings\",D174,IF(D170=\"Use suggested settings\",J174,\"?\"))","v":"Average"},null,null,">>>>>",null,"Ecosystems weighting","WECO",{"$f":"OFFSET(AF$1247,IF($D$1144=$AE$1247,0,IF($D$1144=$AE$1248,1,IF($D$1144=$AE$1249,2,IF($D$1144=$AE$1250,3,\"?\")))),0)","v":400},"[-]",null,null,null,null,null,null,null,null,null,null,null,null,null,null,null,null,null,null,null,null,null,null,null,"From AERO2k for the year 2002:"]
[null,null,null,null,null,null,null,null,null,null,null,null,null,null,null,null,null,null,null,null,null,null,null,null,null,null,null,null,null,null,null,null,null,null,null,"Total distance traveled in 2002 (civil aviation)",17.899999999999999,"*10^9 NM"]
[null,null,null,null,null,null,">>>>>",null,"Human health weighting","WHH",{"$f":"OFFSET(AG$1247,IF($D$1144=$AE$1247,0,IF($D$1144=$AE$1248,1,IF($D$1144=$AE$1249,2,IF($D$1144=$AE$1250,3,\"?\")))),0)","v":400},"[-]",null,null,null,null,null,null,null,null,null,null,null,null,null,null,null,null,null,null,null,null,null,null,null,"Total water emissions in 2002 (civil aviation)",193,"Terragramm (equals 10^9 kg)"]
[null,null,null,null,null,null,null,null,null,null,null,null,null,null,null,null,null,null,null,null,null,null,null,null,null,null,null,null,null,null,null,null,null,null,null,"Average water emissions per NM in 2002",{"$f":"AK1146/AK1145","v":10.782122905027935},"kg/NM"]
[null,null,null,null,null,null,">>>>>",null,"Resources weighting","WRES",{"$f":"OFFSET(AH$1247,IF($D$1144=$AE$1247,0,IF($D$1144=$AE$1248,1,IF($D$1144=$AE$1249,2,IF($D$1144=$AE$1250,3,\"?\")))),0)","v":200},"[-]"]
[]
[null,"Adaption due to contrails and NOx emissions?",null,{"$f":"IF(D170=\"Own settings\",D176,IF(D170=\"Use suggested settings\",J176,\"?\"))","v":"Yes"}]
[]
[]
[{"$f":"$A$1136 & \".\" & RIGHT(A1138,1)+1","v":"3.2"},"Calculation of the impact assessment"]
[]
[null,"Midpoint categories",null,null,null,null,null,null,null,null,null,null,null,null,null,null,"Climate change - Human health",null,null,null,null,null,null,"Climate change - Ecosystem diversity",null,null,null,null,null,null,null,null,null,"Adaption due to contrails and NOx emissions (altitude dependant):"]
[]
[null,"Climate change - Human health",null,null,null,null,null,null,null,null,null,null,null,null,null,null,"Mid to End",null,"EP Normalized",null,"EP Normalized, weighted",null,null,"Mid to End",null,"EP Normalized",null,"EP Normalized, weighted",null,null,null,null,null,null,null,"Sustained global temperature potential",null,null,null,"Characterization factor"]
[null,null,null,null,null,null,null,null,null,null,null,null,null,null,null,null,null,null,null,null,null,null,null,null,null,null,null,null,null,null,null,null,null,"CO2",null,"SGTPCO2,100",3.5800000000000003E-14,"[K/kg CO2]","CFmidpoint,CO2,CC",{"$f":"AK1158*AI1186/$AK$1158","v":1}]
[null,"Characterization factor CO2","CFmidpoint,CO2,CC",1,"[-]",null,">>>>>",null,"Absolute share of CO2 on midpoint category","MPCC,CO2",{"$f":"D1159*D$916","v":104.76291740309223},"[g CO2 eq]",null,null,null,null,{"$f":"K1159*$D1172","v":1.4666808436432911E-7},null,{"$f":"Q1159/$D1174","v":1.086430254550586E-5},null,{"$f":"S1159*$D1176","v":4.3457210182023436E-3},null,null,{"$f":"K1159*$D$1182","v":8.3065762915906543E-10},null,{"$f":"X1159/$D$1184","v":9.058425617874214E-7},null,{"$f":"Z1159*$D$1186","v":3.6233702471496858E-4},null,null,null,null,null,"Short O3",null,"SGTPShort O3,100",7.9699999999999994E-12,"[K/kg NOx]","CFmidpoint,NOx,CC",{"$f":"AK1159*AJ1187/$AK$1158","v":358.98393854748593}]
[null,null,null,null,null,null,null,null,null,null,null,null,null,null,null,null,null,null,null,null,null,null,null,null,null,null,null,null,null,null,null,null,null,"CH4",null,"SGTPCH4,100",-3.8999999999999999E-12,"[K/kg NOx]",null,{"$f":"AK1160*AL1188/$AK$1158","v":-120.37709497206703}]
[null,"Characterization factor Contrails/Cirrus","CFmidpoint,CC,CC",{"$f":"IF(D1150=\"Yes\",SUM(AN1163,AN1162),IF(D1150=\"No\",0,\"?\"))","v":2.3185492227979263},"[-]",null,">>>>>",null,"Absolute share of Contrails/Cirrus on midpoint category","MPCC,CC",{"$f":"D1161*(D1070+D1072)","v":75.546886886598827},"[g CO2 eq]",null,null,null,null,{"$f":"K1161*$D1172","v":1.0576564164123836E-7},null,{"$f":"Q1161/$D1174","v":7.8344919734250637E-6},null,{"$f":"S1161*$D1176","v":3.1337967893700254E-3},null,null,{"$f":"K1161*$D$1182","v":5.9900582674798638E-10},null,{"$f":"X1161/$D$1184","v":6.5322336613738981E-7},null,{"$f":"Z1161*$D$1186","v":2.6128934645495592E-4},null,null,null,null,null,"Long O3",null,"SGTPLong O3,100",-9.1399999999999994E-13,"[K/kg NOx]",null,{"$f":"AK1161*AL1188/$AK$1158","v":-28.211452513966478}]
[null,null,null,null,null,null,null,null,null,null,null,null,null,null,null,null,null,null,null,null,null,null,null,null,null,null,null,null,null,null,null,null,null,"Contrails",null,"SGTPContrails,100",{"$f":"0.000000000000254/AK1147","v":2.3557512953367869E-14},"[K/kg H2O]","CFmidpoint,CC,CC",{"$f":"AK1162*AN1189/$AK$1158","v":0.57906735751295313}]
[null,"Characterization factor CH4","CFmidpoint,CH4,CC",25,"[-]",null,">>>>>",null,"Absolute share of CH4 on midpoint category","MPCC,CH4",{"$f":"D1163*D990","v":2.3946661934665427},"[g CO2 eq]",null,null,null,null,{"$f":"K1163*$D1172","v":3.3525326708531598E-9},null,{"$f":"Q1163/$D1174","v":2.4833575339653033E-7},null,{"$f":"S1163*$D1176","v":9.9334301358612132E-5},null,null,{"$f":"K1163*$D$1182","v":1.8987135832030293E-11},null,{"$f":"X1163/$D$1184","v":2.0705709740491052E-8},null,{"$f":"Z1163*$D$1186","v":8.2822838961964205E-6},null,null,null,null,null,"Cirrus",null,"SGTPCirrus,100",{"$f":"0.000000000000763/AK1147","v":7.0765284974093247E-14},"[K/kg H2O]",null,{"$f":"AK1163*AN1189/$AK$1158","v":1.7394818652849733}]
[]
[null,"Characterization factor NOx","CFmidpoint,NOx,CC",{"$f":"IF(D1150=\"Yes\",SUM(AN1159:AN1161),IF(D1150=\"No\",0,\"?\"))","v":210.39539106145241},"[-]",null,">>>>>",null,"Absolute share of NOx on midpoint category","MPCC,NOx",{"$f":"D1165*(D920+D922)","v":89.607725933436839},"[g CO2 eq]",null,null,null,null,{"$f":"K1165*$D1172","v":1.2545081630681156E-7},null,{"$f":"Q1165/$D1174","v":9.2926530597638188E-6},null,{"$f":"S1165*$D1176","v":3.7170612239055276E-3},null,null,{"$f":"K1165*$D$1182","v":7.1049320716995366E-10},null,{"$f":"X1165/$D$1184","v":7.7480175263898988E-7},null,{"$f":"Z1165*$D$1186","v":3.0992070105559594E-4},null,null,"Altitude"," a",{"$f":"D98*100","v":39000},"[ft]","Forcing factor si"]
[null,null,null,null,null,null,null,null,null,null,null,null,null,null,null,null,null,null,null,null,null,null,null,null,null,null,null,null,null,null,null,null,null,"Altitude a [ft]",null,"NOx: Short O3",null,"Nox: CH4, Long O3",null,"Contrails, Cirrus"]
[null,null,null,null,null,null,null,null,null,null,null,null,null,null,null,null,null,null,null,null,null,null,null,null,null,null,null,null,null,null,null,null,null,0,null,{"$f":"AJ1168","v":0.43},null,{"$f":"AL1168","v":0.79},null,{"$f":"AN1168","v":0.02}]
[null,"Result for climate change","MPCC",{"$f":"SUM(K1159:K1165)","v":272.31219641659442},"[g CO2 eq]",null,null,null,null,null,null,null,null,null,null,null,null,null,null,null,null,null,null,null,null,null,null,null,null,null,null,null,null,17500,null,0.43,null,0.79,null,0.02]
[null,null,null,null,null,null,null,null,null,null,null,null,null,null,null,null,null,null,null,null,null,null,null,null,null,null,null,null,null,null,null,null,null,19500,null,0.52,null,0.84,null,0]
[null,"Normalization factor midpoint category","NFCC",{"$f":"OFFSET(AI1196,0,IF($D$1142=$AI$1194,0,IF($D$1142=$AJ$1194,1,IF($D$1142=$AK$1194,2,IF($D$1142=$AL$1194,3,IF($D$1142=$AM$1194,4,IF($D$1142=$AN$1194,5,\"?\")))))))","v":6891.0281999999997},"[kg CO2 eq/p/yr]",null,">>>>>",null,"Normalized result for climate change","NMPCC",{"$f":"D1168/D1170/1000","v":3.9516918014730286E-5},"[p*yr]",null,null,null,null,null,null,null,null,null,null,null,null,null,null,null,null,null,null,null,null,null,21500,null,0.56999999999999995,null,0.89,null,0]
[null,null,null,null,null,null,null,null,null,null,null,null,null,null,null,null,null,null,null,null,null,null,null,null,null,null,null,null,null,null,null,null,null,23500,null,0.64,null,0.89,null,0.14000000000000001]
[null,"Mid to end factor","CFendpoint,CC,HH",{"$f":"10^-3*OFFSET(AI1225,0,IF($AG$1220=$AI$1223,0,IF($AG$1220=$AJ$1223,1,IF($AG$1220=$AK$1223,2,\"?\"))))","v":1.3999999999999999E-9},"[-]",null,">>>>>",null,"Absolute share of climate change on endpoint category human health","EPHH,CC",{"$f":"SUM(Q1159:Q1165)","v":3.8123707498323221E-7},"[DALY]",null,null,null,null,null,null,null,null,null,null,null,null,null,null,null,null,null,null,null,null,null,25500,null,0.65,null,0.86,null,0.32]
[null,null,null,null,null,null,null,null,null,null,null,null,null,null,null,null,null,null,null,null,null,null,null,null,null,null,null,null,null,null,null,null,null,27500,null,0.75,null,0.84,null,0.62]
[null,"Normalization factor endpoint category","NFHH",{"$f":"OFFSET(AI1216,0,IF($D$1142=$AI$1194,0,IF($D$1142=$AJ$1194,1,IF($D$1142=$AK$1194,2,IF($D$1142=$AL$1194,3,IF($D$1142=$AM$1194,4,IF($D$1142=$AN$1194,5,\"?\")))))))","v":1.35E-2},"[DALY/p/yr]",null,null,null,null,null,null,null,null,null,null,null,null,null,null,null,null,null,null,null,null,null,null,null,null,null,null,null,null,29500,null,0.87,null,0.83,null,0.99]
[null,null,null,null,null,null,null,null,null,null,null,null,null,null,null,null,null,null,null,null,null,null,null,null,null,null,null,null,null,null,null,null,null,31500,null,0.93,null,0.84,null,1.36]
[null,"Weighting factor endpoint category","WHH",{"$f":"K1146","v":400},"[-]",null,">>>>>",null,"Absolute share of climate change on single score","SSCC,HH",{"$f":"SUM(U1159:U1165)","v":1.129591333283651E-2},"[points]",null,null,null,null,null,null,null,null,null,null,null,null,null,null,null,null,null,null,null,null,null,33500,null,1.03,null,0.9,null,1.66]
[null,null,null,null,null,null,null,null,null,null,null,null,null,null,null,null,null,null,null,null,null,null,null,null,null,null,null,null,null,null,null,null,null,35500,null,1.32,null,1.03,null,1.44]
[null,null,null,null,null,null,null,null,"Relative share of climate change on single score","pSS,CC,HH",{"$f":"K1176/$D$1519","v":0.63226059165650705},null,null,null,null,null,null,null,null,null,null,null,null,null,null,null,null,null,null,null,null,null,null,37500,null,1.5,null,1.1200000000000001,null,1.21]
[null,null,null,null,null,null,null,null,null,null,null,null,null,null,null,null,null,null,null,null,null,null,null,null,null,null,null,null,null,null,null,null,null,39500,null,1.65,null,1.1000000000000001,null,0.77]
[null,"Climate change - Ecosystem diversity",null,null,null,null,null,null,null,null,null,null,null,null,null,null,null,null,null,null,null,null,null,null,null,null,null,null,null,null,null,null,null,41500,null,1.78,null,1.0900000000000001,null,0.63]
[]
[null,"Mid to end factor","CFendpoint,CC,ECO",{"$f":"10^-3*OFFSET(AL1225,0,IF($AG$1220=$AI$1223,0,IF($AG$1220=$AJ$1223,1,IF($AG$1220=$AK$1223,2,\"?\"))))","v":7.9289280000000019E-12},"[-]",null,">>>>>",null,"Absolute share of climate change on endpoint category ecosystem diversity","EPECO,CC",{"$f":"SUM(X1159:X1165)","v":2.1591437989090356E-9},"[species.yr]",null,null,null,null,null,null,null,null,null,null,null,null,null,null,null,null,null,null,null,null,null,"Interpolation of the forcing factor"]
[null,null,null,null,null,null,null,null,null,null,null,null,null,null,null,null,null,null,null,null,null,null,null,null,null,null,null,null,null,null,null,null,null,"x",null,"y1",null,"y2",null,"y2"]
[null,"Normalization factor endpoint category","NFECO",{"$f":"OFFSET(AI1215,0,IF($D$1142=$AI$1194,0,IF($D$1142=$AJ$1194,1,IF($D$1142=$AK$1194,2,IF($D$1142=$AL$1194,3,IF($D$1142=$AM$1194,4,IF($D$1142=$AN$1194,5,\"?\")))))))","v":9.1699999999999995E-4},"[species.yr/p/yr]",null,null,null,null,null,null,null,null,null,null,null,null,null,null,null,null,null,null,null,null,null,null,null,null,null,null,null,null,{"$f":"INDEX(AH1167:AH1180,MATCH(AG1165,AH1167:AH1180,1))","v":37500},null,{"$f":"INDEX(AJ1167:AJ1180,MATCH(AG1165,AH1167:AH1180,1))","v":1.5},null,{"$f":"INDEX(AL1167:AL1180,MATCH(AG1165,AH1167:AH1180,1))","v":1.1200000000000001},null,{"$f":"INDEX(AN1167:AN1180,MATCH(AG1165,AH1167:AH1180,1))","v":1.21}]
[null,null,null,null,null,null,null,null,null,null,null,null,null,null,null,null,null,null,null,null,null,null,null,null,null,null,null,null,null,null,null,null,null,{"$f":"INDEX(AH1167:AH1180,MATCH(AG1165,AH1167:AH1180,1)+1)","v":39500},null,{"$f":"INDEX(AJ1167:AJ1180,MATCH(AG1165,AH1167:AH1180,1)+1)","v":1.65},null,{"$f":"INDEX(AL1167:AL1180,MATCH(AG1165,AH1167:AH1180,1)+1)","v":1.1000000000000001},null,{"$f":"INDEX(AN1167:AN1180,MATCH(AG1165,AH1167:AH1180,1)+1)","v":0.77}]
[null,"Weighting factor endpoint category","WECO",{"$f":"K1144","v":400},"[-]",null,">>>>>",null,"Absolute share of climate change on single score","SSCC.ECO",{"$f":"SUM(AB1159:AB1165)","v":9.418293561217169E-4},"[points]",null,null,null,null,null,null,null,null,null,null,null,null,null,null,null,null,null,null,"Forcing factor CO2:",null,null,"sCO2",1]
[null,null,null,null,null,null,null,null,null,null,null,null,null,null,null,null,null,null,null,null,null,null,null,null,null,null,null,null,null,null,"Forcing factor Short O3 (interpolated):",null,null,"sShortO3",null,{"$f":"IF(AG1165>=AH1180,AJ1180,AJ1184+(AG1165-AH1184)*(AJ1185-AJ1184)/(AH1185-AH1184))","v":1.6124999999999998}]
[null,null,null,null,null,null,null,null,"Relative share of climate change on single score","pSS,CC,ECO",{"$f":"K1186/$D$1519","v":5.2716550525397213E-2},null,null,null,null,null,null,null,null,null,null,null,null,null,null,null,null,null,null,null,"Forcing factor CH4, Long O3 (interpolated):",null,null,"sCH4 / sShortO3",null,null,null,{"$f":"IF(AG1165>=AH1180,AL1180,AL1184+(AG1165-AH1184)*(AL1185-AL1184)/(AH1185-AH1184))","v":1.105}]
[null,null,null,null,null,null,null,null,null,null,null,null,null,null,null,null,null,null,null,null,null,null,null,null,null,null,null,null,null,null,"Forcing factor Contrails/Cirrus (interpolated):",null,null,"sCC",null,null,null,null,null,{"$f":"IF(AG1165>=AH1180,AN1180,AN1184+(AG1165-AH1184)*(AN1185-AN1184)/(AH1185-AH1184))","v":0.88}]
[null,"Ozone depletion"]
[null,null,null,null,null,null,null,null,null,null,null,null,null,null,null,null,null,null,null,null,null,null,null,null,null,null,null,null,null,null,"Normalisation"]
[null,"Result for ozone depletion","MPOD",0,"[g CFC-11 eq]",null,null,null,null,null,null,null,null,null,null,null,null,null,null,null,null,null,null,null,null,null,null,null,null,null,null,null,null,null,"Method/Perspective/Region"]
[null,null,null,null,null,null,null,null,null,null,null,null,null,null,null,null,null,null,null,null,null,null,null,null,null,null,null,null,null,null,null,null,null,null,"ReCiPe Midpoint (I)","ReCiPe Midpoint (H)","ReCiPe Midpoint (E)","ReCiPe Midpoint (I)","ReCiPe Midpoint (H)","ReCiPe Midpoint (E)"]
[null,"Normalization factor midpoint category","NFOD",{"$f":"OFFSET(AI1197,0,IF($D$1142=$AI$1194,0,IF($D$1142=$AJ$1194,1,IF($D$1142=$AK$1194,2,IF($D$1142=$AL$1194,3,IF($D$1142=$AM$1194,4,IF($D$1142=$AN$1194,5,\"?\")))))))","v":3.7630018000000001E-2},"[kg CFC-11 eq/p/yr]",null,">>>>>",null,"Normalized result for ozone depletion","NMPOD",{"$f":"D1192/D1194/1000","v":0},"[p*yr]",null,null,null,null,null,null,null,null,null,null,null,null,null,null,null,null,null,null,null,null,null,null,"Individualist, Europe","Hierarchist, Europe","Egalitarian, Europe","Individualist, World","Hierarchist, World","Egalitarian, World"]
[null,null,null,null,null,null,null,null,null,null,null,null,null,null,null,null,null,null,null,null,null,null,null,null,null,null,null,null,null,null,null,"Impact category","Unit","Acronym"]
[null,"Mid to end factor","CFendpoint,OD,HH",{"$f":"OFFSET(AI1226,0,IF($AG$1220=$AI$1223,0,IF($AG$1220=$AJ$1223,1,IF($AG$1220=$AK$1223,2,\"?\"))))","v":"individual factors"},"[-]",null,">>>>>",null,"Absolute share of ozone depletion on endpoint category human health","EPHH,OD",0,"[DALY]",null,null,null,null,null,null,null,null,null,null,null,null,null,null,null,null,null,null,null,"Climate change","kg CO2 eq/p/yr","CC",14139.679,11215.118,9662.7369999999992,9487.0619000000006,6891.0281999999997,5533.4624000000003]
[null,null,null,null,null,null,null,null,null,null,null,null,null,null,null,null,null,null,null,null,null,null,null,null,null,null,null,null,null,null,null,"Ozone depletion","kg CFC-11 eq/p/yr","OD",2.2006916000000001E-2,2.2006916000000001E-2,2.2006916000000001E-2,3.7630018000000001E-2,3.7630018000000001E-2,3.7630018000000001E-2]
[null,"Normalization factor endpoint category","NFHH",{"$f":"D1174","v":1.35E-2},"[DALY/p/yr]",null,null,null,null,null,null,null,null,null,null,null,null,null,null,null,null,null,null,null,null,null,null,null,null,null,null,"Terrestrial acidification","kg SO2 eq/p/yr","TA ",32.347183000000001,34.374611999999999,38.422068000000003,35.701321999999998,38.186574,42.147978999999999]
[null,null,null,null,null,null,null,null,null,null,null,null,null,null,null,null,null,null,null,null,null,null,null,null,null,null,null,null,null,null,null,"Freshwater eutrophication","kg P eq/p/yr","FE",0.41479905,0.41479905,0.41479905,0.28985286999999998,0.28985286999999998,0.28985286999999998]
[null,"Weighting factor endpoint category","WHH",{"$f":"K1146","v":400},"[-]",null,">>>>>",null,"Absolute share of ozone depletion on single score","SSOD",0,"[points]",null,null,null,null,null,null,null,null,null,null,null,null,null,null,null,null,null,null,null,"Marine eutrophication","kg N eq/p/yr","MEP",10.116657,10.116657,10.116657,7.3390614000000003,7.3390614000000003,7.3390614000000003]
[null,null,null,null,null,null,null,null,null,null,null,null,null,null,null,null,null,null,null,null,null,null,null,null,null,null,null,null,null,null,null,"Human toxicity","kg 1,4-DB eq/p/yr","HT",315.37785000000002,592.35506999999996,4399.0225,82.862683000000004,117.38723,986.16972999999996]
[null,null,null,null,null,null,null,null,"Relative share of ozone depletion on single score","pSS,OD",{"$f":"K1200/$D$1519","v":0},null,null,null,null,null,"Terrestrial acidification",null,null,null,null,null,null,null,null,null,null,null,null,null,null,"Photochemical oxidant formation","kg NMVOC/p/yr","POF",53.147711999999999,53.147711999999999,53.147711999999999,48.937432999999999,48.937432999999999,48.937432999999999]
[null,null,null,null,null,null,null,null,null,null,null,null,null,null,null,null,null,null,null,null,null,null,null,null,null,null,null,null,null,null,null,"Particulate matter formation","kg PM10 eq/p/yr","PMF",14.902602999999999,14.902602999999999,14.902602999999999,14.058316,14.058316,14.058316]
[null,"Terrestrial acidification",null,null,null,null,null,null,null,null,null,null,null,null,null,null,"Mid to End",null,"EP Normalized",null,"EP Normalized, weighted",null,null,null,null,null,null,null,null,null,null,"Terrestrial ecotoxicity","kg 1,4-DB eq/p/yr","TET",8.1847034000000001,8.2032624999999992,13.948751,6.4938205,6.4989879000000004,39.722740000000002]
[null,null,null,null,null,null,null,null,null,null,null,null,null,null,null,null,null,null,null,null,null,null,null,null,null,null,null,null,null,null,null,"Freshwater ecotoxicity","kg 1,4-DB eq/p/yr","FET",10.862437999999999,10.875612,11.546666999999999,4.3293759999999999,4.3330431999999997,8.2788482999999999]
[null,"Characterization factor NOx","CFmidpoint,NOx,TA",0.56000000000000005,"[-]",null,">>>>>",null,"Absolute share of NOx on midpoint category","MPTA,NOx",{"$f":"D1206*D$928","v":0.25530769227071282},"[g SO2 eq]",null,null,null,null,{"$f":"K1206*$D1215","v":1.4807846151701345E-12},null,{"$f":"Q1206/$D1217","v":1.6148141932062536E-9},null,{"$f":"S1206*$D1219","v":6.4592567728250148E-7},null,null,null,null,null,null,null,null,null,null,"Marine ecotoxicity","kg 1,4-DB eq/p/yr","MET",7.4411633999999998,8.4988959000000008,2379.8478,2.0647649000000001,2.4132104999999999,1973.7963999999999]
[null,null,null,null,null,null,null,null,null,null,null,null,null,null,null,null,null,null,null,null,null,null,null,null,null,null,null,null,null,null,null,"Ionising radiation","kg U235 eq/p/yr","IR",2062.337,6260.0059000000001,6260.0059000000001,433.47883000000002,1317.4087999999999,1317.4087999999999]
[null,"Characterization factor SO2","CFmidpoint,SO2,TA",1,"[-]",null,">>>>>",null,"Absolute share of SO2 on midpoint category","MPTA,SO2",{"$f":"D1208*D$1036","v":0.10907915039979463},"[g SO2 eq]",null,null,null,null,{"$f":"K1208*$D1215","v":6.3265907231880888E-13},null,{"$f":"Q1208/$D1217","v":6.8992265247416457E-10},null,{"$f":"S1208*$D1219","v":2.7596906098966581E-7},null,null,null,null,null,null,null,null,null,null,"Agricultural land occupation","m2a/p/yr","ALO",4517.9223000000002,4517.9223000000002,4517.9223000000002,5423.7433000000001,5423.7433000000001,5423.7433000000001]
[null,null,null,null,null,null,null,null,null,null,null,null,null,null,null,null,null,null,null,null,null,null,null,null,null,null,null,null,null,null,null,"Urban land occupation","m2a/p/yr","ULO",406.78512000000001,406.78512000000001,406.78512000000001,775.02957000000004,775.02957000000004,775.02957000000004]
[null,null,null,null,null,null,null,null,null,null,null,null,null,null,null,null,null,null,null,null,null,null,null,null,null,null,null,null,null,null,null,"Natural land transformation","m2/p/yr","NLT",0.16143182,0.16143182,0.16143182,12.026633,12.026633,12.026633]
[null,"Result for terrestrial acidification","MPTA",{"$f":"SUM(K1206:K1208)","v":0.36438684267050747},"[g SO2 eq]",null,null,null,null,null,null,null,null,null,null,null,null,null,null,null,null,null,null,null,null,null,null,null,null,null,null,"Water depletion","m3/p/yr","WPD",0,0,0,0,0,0]
[null,null,null,null,null,null,null,null,null,null,null,null,null,null,null,null,null,null,null,null,null,null,null,null,null,null,null,null,null,null,null,"Metal depletion","kg oil eq/p/yr","FRD",713.30271000000005,713.30271000000005,713.30271000000005,445.18723999999997,445.18723999999997,445.18723999999997]
[null,"Normalization factor midpoint category","NFTA",{"$f":"OFFSET(AI1198,0,IF($D$1142=$AI$1194,0,IF($D$1142=$AJ$1194,1,IF($D$1142=$AK$1194,2,IF($D$1142=$AL$1194,3,IF($D$1142=$AM$1194,4,IF($D$1142=$AN$1194,5,\"?\")))))))","v":38.186574},"[kg SO2 eq/p/yr]",null,">>>>>",null,"Normalized result for terrestrial acidification","NMPTA",{"$f":"D1211/D1213/1000","v":9.5422763684039169E-6},"[p*yr]",null,null,null,null,null,null,null,null,null,null,null,null,null,null,null,null,null,null,null,"Fossil depletion","kg Fe eq/p/yr","MRD",1556.0886,1556.0886,1556.0886,1289.6011000000001,1289.6011000000001,1289.6011000000001]
[]
[null,"Mid to end factor","CFendpoint,TA,ECO",{"$f":"10^-3*OFFSET(AI1227,0,IF($AG$1220=$AI$1223,0,IF($AG$1220=$AJ$1223,1,IF($AG$1220=$AK$1223,2,\"?\"))))","v":5.8000000000000003E-12},"[-]",null,">>>>>",null,"Absolute share of terrestrial acidification on endpoint category ecosystem diversity","EPECO,TA",{"$f":"SUM(Q1206:Q1208)","v":2.1134436874889434E-12},"[species.yr]",null,null,null,null,null,null,null,null,null,null,null,null,null,null,null,null,null,null,"Endpoint","Ecosystems","species.yr/p/yr",null,1.8599999999999999E-4,1.8100000000000001E-4,2.7500000000000002E-4,8.0000000000000004E-4,9.1699999999999995E-4,2.48E-3]
[null,null,null,null,null,null,null,null,null,null,null,null,null,null,null,null,null,null,null,null,null,null,null,null,null,null,null,null,null,null,null,"Human health","DALY/p/yr",null,2.1000000000000001E-2,2.0199999999999999E-2,4.1000000000000002E-2,1.4999999999999999E-2,1.35E-2,2.3900000000000001E-2]
[null,"Normalization factor endpoint category","NFECO",{"$f":"D1184","v":9.1699999999999995E-4},"[species.yr/p/yr]",null,null,null,null,null,null,null,null,null,null,null,null,null,null,null,null,null,null,null,null,null,null,null,null,null,null,"Resources","$/p/yr",null,131,308,308,98.5,245,245]
[]
[null,"Weighting factor endpoint category","WECO",{"$f":"K1144","v":400},"[-]",null,">>>>>",null,"Absolute share of terrestrial acidification on single score","SSTA",{"$f":"SUM(U1206:U1208)","v":9.2189473827216734E-7},"[points]"]
[null,null,null,null,null,null,null,null,null,null,null,null,null,null,null,null,null,null,null,null,null,null,null,null,null,null,null,null,null,null,null,"Selected Mid to End:",{"$f":"IF(OR(AJ1194=D1142,AM1194=D1142),AJ1223,IF(OR(AI1194=D1142,AL1194=D1142),AI1223,IF(OR(AK1194=D1142,AN1194=D1142),AK1223,\"?\")))","v":"Hierarchical"}]
[null,null,null,null,null,null,null,null,"Relative share of terrestrial acidification on single score","pSS,TA",{"$f":"K1219/$D$1519","v":5.1600759981983256E-5},null,null,null,null,null,null,null,null,null,null,null,null,null,null,null,null,null,null,null,"Mid to end factors"]
[null,null,null,null,null,null,null,null,null,null,null,null,null,null,null,null,null,null,null,null,null,null,null,null,null,null,null,null,null,null,null,null,null,null,"Human health (DALY)",null,null,"Ecosystems (species.yr)",null,null,"Resources ($)"]
[null,"Freshwater eutrophication",null,null,null,null,null,null,null,null,null,null,null,null,null,null,null,null,null,null,null,null,null,null,null,null,null,null,null,null,null,null,null,"Perspective","Individualist","Hierarchical","Egalitarian","Individualist","Hierarchical","Egalitarian","Individualist","Hierarchical","Egalitarian"]
[null,null,null,null,null,null,null,null,null,null,null,null,null,null,null,null,null,null,null,null,null,null,null,null,null,null,null,null,null,null,null,"Midpoint impact category","Unit","Code","HH_I","HH_H","HH_E","ED_I","ED_H","ED_E","RA_I","RA_H","RA_E"]
[null,"Result for freshwater eutrophication","MPFE",0,"[g P eq]",null,null,null,null,null,null,null,null,null,null,null,null,null,null,null,null,null,null,null,null,null,null,null,null,null,null,"Climate change","kg CO2 eq","CC",1.19E-6,1.3999999999999999E-6,3.5099999999999999E-6,7.9289280000000013E-9,7.9289280000000013E-9,1.8712270080000001E-8]
[null,null,null,null,null,null,null,null,null,null,null,null,null,null,null,null,null,null,null,null,null,null,null,null,null,null,null,null,null,null,null,"Ozone depletion","kg CFC-11 eq","OD","individual factors","individual factors","individual factors"]
[null,"Normalization factor midpoint category","NFFE",{"$f":"OFFSET(AI1199,0,IF($D$1142=$AI$1194,0,IF($D$1142=$AJ$1194,1,IF($D$1142=$AK$1194,2,IF($D$1142=$AL$1194,3,IF($D$1142=$AM$1194,4,IF($D$1142=$AN$1194,5,\"?\")))))))","v":0.28985286999999998},"[kg P eq/p/yr]",null,">>>>>",null,"Normalized result for freshwater eutrophication","NMPFE",{"$f":"D1225/D1227/1000","v":0},"[p*yr]",null,null,null,null,null,null,null,null,null,null,null,null,null,null,null,null,null,null,null,"Terrestrial acidification","kg SO2 eq","TA ",1.5179999999999999E-9,5.7999999999999998E-9,1.4213999999999999E-8]
[null,null,null,null,null,null,null,null,null,null,null,null,null,null,null,null,null,null,null,null,null,null,null,null,null,null,null,null,null,null,null,"Freshwater eutrophication","kg P eq","FE",4.4420699999999995E-8,4.4400000000000001E-8,4.4420699999999995E-8]
[null,"Mid to end factor","CFendpoint,FE,ECO",{"$f":"10^-3*OFFSET(AI1228,0,IF($AG$1220=$AI$1223,0,IF($AG$1220=$AJ$1223,1,IF($AG$1220=$AK$1223,2,\"?\"))))","v":4.4400000000000003E-11},"[-]",null,">>>>>",null,"Absolute share of freshwater eutrophication on endpoint category ecosystem diversity","EPECO,FE",0,"[species.yr]",null,null,null,null,null,null,null,null,null,null,null,null,null,null,null,null,null,null,null,"Marine eutrophication"]
[null,null,null,null,null,null,null,null,null,null,null,null,null,null,null,null,null,null,null,null,null,null,null,null,null,null,null,null,null,null,null,"Human toxicity","kg 1,4-DB eq","HT",6.9999999999999997E-7,6.9999999999999997E-7,6.9999999999999997E-7]
[null,"Normalization factor endpoint category","NFECO",{"$f":"D1217","v":9.1699999999999995E-4},"[species.yr/p/yr]",null,null,null,null,null,null,null,null,null,null,null,null,null,null,null,null,null,null,null,null,null,null,null,null,null,null,"Photochemical oxidant formation","kg NMVOC","POF",3.8999999999999998E-8,3.8999999999999998E-8,3.8999999999999998E-8]
[null,null,null,null,null,null,null,null,null,null,null,null,null,null,null,null,null,null,null,null,null,null,null,null,null,null,null,null,null,null,null,"Particulate matter formation","kg PM10 eq","PMF",2.5999999999999998E-4,2.5999999999999998E-4,2.5999999999999998E-4]
[null,"Weighting factor endpoint category","WECO",{"$f":"K1144","v":400},"[-]",null,">>>>>",null,"Absolute share of freshwater eutrophication on single score","SSFE",0,"[points]",null,null,null,null,null,null,null,null,null,null,null,null,null,null,null,null,null,null,null,"Terrestrial ecotoxicity","kg 1,4-DB eq","TET",1.5058694676315068E-7,1.5058694676315068E-7,1.5058694676315068E-7]
[null,null,null,null,null,null,null,null,null,null,null,null,null,null,null,null,null,null,null,null,null,null,null,null,null,null,null,null,null,null,null,"Freshwater ecotoxicity","kg 1,4-DB eq","FET",8.6084688594713551E-10,8.6084688594713551E-10,8.6084688594713551E-10]
[null,null,null,null,null,null,null,null,"Relative share of freshwater eutrophication on single score","pSS,FE",{"$f":"K1233/$D$1519","v":0},null,null,null,null,null,null,null,null,null,null,null,null,null,null,null,null,null,null,null,null,"Marine ecotoxicity","kg 1,4-DB eq","MET",1.7610602228761431E-10,1.7610602228761431E-10,1.7610602228761431E-10]
[null,null,null,null,null,null,null,null,null,null,null,null,null,null,null,null,null,null,null,null,null,null,null,null,null,null,null,null,null,null,null,"Ionising radiation","kg U235 eq","IR",1.6400000000000001E-8,1.6400000000000001E-8,1.6400000000000001E-8]
[null,"Marine eutrophication",null,null,null,null,null,null,null,null,null,null,null,null,null,null,null,null,null,null,null,null,null,null,null,null,null,null,null,null,null,"Agricultural land occupation","m2a","ALO","individual factors","individual factors","individual factors"]
[null,null,null,null,null,null,null,null,null,null,null,null,null,null,null,null,null,null,null,null,null,null,null,null,null,null,null,null,null,null,null,"Urban land occupation","m2a","ULO","individual factors","individual factors","individual factors"]
[null,"Characterization factor NOx","CFmidpoint,NOx,MEP",3.9E-2,"[-]",null,">>>>>",null,"Absolute share of NOx on midpoint category","MPMEP,NOx",{"$f":"D1239*D$928","v":1.7780357140281783E-2},"[g N eq]",null,null,null,null,null,null,null,null,null,null,null,null,null,null,null,null,null,null,null,"Natural land transformation","m2","NLT","individual factors","individual factors","individual factors"]
[null,null,null,null,null,null,null,null,null,null,null,null,null,null,null,null,null,null,null,null,null,null,null,null,null,null,null,null,null,null,null,"Water depletion"]
[null,null,null,null,null,null,null,null,null,null,null,null,null,null,null,null,null,null,null,null,null,null,null,null,null,null,null,null,null,null,null,"Metal depletion","kg Fe eq","MRD",7.1499999999999994E-2,7.1499999999999994E-2,7.1499999999999994E-2]
[null,"Result for marine eutrophication","MPMEP",{"$f":"K1239","v":1.7780357140281783E-2},"[g N eq]",null,null,null,null,null,null,null,null,null,null,null,null,null,null,null,null,null,null,null,null,null,null,null,null,null,null,"Fossil depletion","kg oil eq","FRD",5.1706396573106508E-2,0.16546046903394085,0.16546046903394085]
[]
[null,"Normalization factor midpoint category","NFMEP",{"$f":"OFFSET(AI1200,0,IF($D$1142=$AI$1194,0,IF($D$1142=$AJ$1194,1,IF($D$1142=$AK$1194,2,IF($D$1142=$AL$1194,3,IF($D$1142=$AM$1194,4,IF($D$1142=$AN$1194,5,\"?\")))))))","v":7.3390614000000003},"[kg N eq/p/yr]",null,">>>>>",null,"Normalized result for marine eutrophication","NMPMEP",{"$f":"D1242/D1244/1000","v":2.4227017831301673E-6},"[p*yr]"]
[null,null,null,null,null,null,null,null,null,null,null,null,null,null,null,null,null,null,null,null,null,null,null,null,null,null,null,null,null,null,"Weighting"]
[null,"Mid to end factor",null,"---","[-]",null,">>>>>",null,"Absolute share of marine eutrophication on endpoint category",null,"---","[-]",null,null,null,null,null,null,null,null,null,null,null,null,null,null,null,null,null,null,"Perspective:","Ecosystems","Human health","Resources","Total"]
[null,null,null,null,null,null,null,null,null,null,null,null,null,null,null,null,null,null,null,null,null,null,null,null,null,null,null,null,null,null,"Average",400,400,200,1000]
[null,"Normalization factor endpoint category",null,"---","[-]",null,null,null,null,null,null,null,null,null,null,null,null,null,null,null,null,null,null,null,null,null,null,null,null,null,"Individualist",250,550,200,1000]
[null,null,null,null,null,null,null,null,null,null,null,null,null,null,null,null,null,null,null,null,null,null,null,null,null,null,null,null,null,null,"Hierarchist",400,300,300,1000]
[null,"Weighting factor endpoint category",null,"---","[-]",null,">>>>>",null,"Absolute share of marine eutrophication on single score",null,"---","[-]",null,null,null,null,null,null,null,null,null,null,null,null,null,null,null,null,null,null,"Egalitarian",500,300,200,1000]
[null,null,null,null,null,null,null,null,null,null,null,null,null,null,null,null,null,null,null,null,null,null,null,null,null,null,null,null,null,null,"Note: we recommend to always use the average weighting."]
[null,null,null,null,null,null,null,null,"Relative share of marine eutrophication on single score",null,"---","[-]",null,null,null,null,"Human toxicity"]
[]
[null,"Human toxicity",null,null,null,null,null,null,null,null,null,null,null,null,null,null,"Mid to End",null,"EP Normalized",null,"EP Normalized, weighted"]
[]
[null,"Characterization factor HC","CFmidpoint,HC,HT",0.11526136140622401,"[-]",null,">>>>>",null,"Absolute share of HC on midpoint category","MPHT,HC",{"$f":"D1256*D$1056","v":3.9266519864671566E-4},"[g 1,4-DB eq]",null,null,null,null,{"$f":"K1256*$D1263","v":2.7486563905270093E-13},null,{"$f":"Q1256/$D1265","v":2.0360417707607477E-11},null,{"$f":"S1256*$D1267","v":8.1441670830429913E-9}]
[]
[]
[null,"Result for human toxicity","MPHT",{"$f":"SUM(K1256:K1256)","v":3.9266519864671566E-4},"[g 1,4-DB eq]"]
[]
[null,"Normalization factor midpoint category","NFHT",{"$f":"OFFSET(AI1201,0,IF($D$1142=$AI$1194,0,IF($D$1142=$AJ$1194,1,IF($D$1142=$AK$1194,2,IF($D$1142=$AL$1194,3,IF($D$1142=$AM$1194,4,IF($D$1142=$AN$1194,5,\"?\")))))))","v":117.38723},"[kg 1,4-DB eq/p/yr]",null,">>>>>",null,"Normalized result for human toxicity","NMPHT",{"$f":"D1259/D1261/1000","v":3.3450418639805683E-9},"[p*yr]"]
[]
[null,"Mid to end factor","CFendpoint,HT,HH",{"$f":"10^-3*OFFSET(AI1230,0,IF($AG$1220=$AI$1223,0,IF($AG$1220=$AJ$1223,1,IF($AG$1220=$AK$1223,2,\"?\"))))","v":6.9999999999999996E-10},"[-]",null,">>>>>",null,"Absolute share of human toxicity on endpoint category human health","EPHH,HT",{"$f":"SUM(Q1256:Q1256)","v":2.7486563905270093E-13},"[DALY]"]
[]
[null,"Normalization factor endpoint category","NFHH",{"$f":"D1174","v":1.35E-2},"[DALY/p/yr]"]
[]
[null,"Weighting factor endpoint category","WHH",{"$f":"K1146","v":400},"[-]",null,">>>>>",null,"Absolute share of human toxicity on single score","SSHT",{"$f":"SUM(U1256:U1256)","v":8.1441670830429913E-9},"[points]"]
[]
[null,null,null,null,null,null,null,null,"Relative share of human toxicity on single score","pSS,HT",{"$f":"K1267/$D$1519","v":4.5584945163360152E-7},null,null,null,null,null,"Photochemical oxidant formation"]
[]
[null,"Photochemical oxidant formation",null,null,null,null,null,null,null,null,null,null,null,null,null,null,"Mid to End",null,"EP Normalized",null,"EP Normalized, weighted"]
[]
[null,"Characterization factor NOx","CFmidpoint,NOx,POF",1,"[-]",null,">>>>>",null,"Absolute share of NOx on midpoint category","MPPOF,NOx",{"$f":"D1273*D$928","v":0.45590659334055855},"[g NMVOC]",null,null,null,null,{"$f":"K1273*$D1288","v":1.7780357140281785E-11},null,{"$f":"Q1273/$D1290","v":1.3170634918727247E-9},null,{"$f":"S1273*$D1292","v":5.2682539674908988E-7}]
[]
[null,"Characterization factor SO2","CFmidpoint,SO2,POF",8.1000000000000003E-2,"[-]",null,">>>>>",null,"Absolute share of SO2 on midpoint category","MPPOF,SO2",{"$f":"D1275*D$1036","v":8.835411182383365E-3},"[g NMVOC]",null,null,null,null,{"$f":"K1275*$D1288","v":3.4458103611295122E-13},null,{"$f":"Q1275/$D1290","v":2.5524521193551942E-11},null,{"$f":"S1275*$D1292","v":1.0209808477420777E-8}]
[]
[null,"Characterization factor CO","CFmidpoint,CO,POF",4.5999999999999999E-2,"[-]",null,">>>>>",null,"Absolute share of CO on midpoint category","MPPOF,CO",{"$f":"D1277*D$1016","v":2.8535888971902286E-3},"[g NMVOC]",null,null,null,null,{"$f":"K1277*$D1288","v":1.1128996699041892E-13},null,{"$f":"Q1277/$D1290","v":8.2437012585495494E-12},null,{"$f":"S1277*$D1292","v":3.2974805034198197E-9}]
[]
[null,"Characterization factor CH4","CFmidpoint,CH4,POF",1.01E-2,"[-]",null,">>>>>",null,"Absolute share of CH4 on midpoint category","MPCH4,CO",{"$f":"D1279*D990","v":9.674451421604833E-4},"[g NMVOC]",null,null,null,null,{"$f":"K1279*$D1288","v":3.7730360544258847E-14},null,{"$f":"Q1279/$D1290","v":2.7948415217969518E-12},null,{"$f":"S1279*$D1292","v":1.1179366087187807E-9}]
[]
[null,"Characterization factor HC","CFmidpoint,HC,POF",0.47599999999999998,"[-]",null,">>>>>",null,"Absolute share of HC on midpoint category","MPPOF,HC",{"$f":"D1281*D$1056","v":1.6216070353108267E-3},"[g NMVOC]",null,null,null,null,{"$f":"K1281*$D1288","v":6.324267437712224E-14},null,{"$f":"Q1281/$D1290","v":4.6846425464534995E-12},null,{"$f":"S1281*$D1292","v":1.8738570185813997E-9}]
[]
[]
[null,"Result for photochemical oxidant formation","MPPOF",{"$f":"SUM(K1273:K1281)","v":0.47018464559760342},"[g NMVOC]"]
[]
[null,"Normalization factor midpoint category","NFPOF",{"$f":"OFFSET(AI1202,0,IF($D$1142=$AI$1194,0,IF($D$1142=$AJ$1194,1,IF($D$1142=$AK$1194,2,IF($D$1142=$AL$1194,3,IF($D$1142=$AM$1194,4,IF($D$1142=$AN$1194,5,\"?\")))))))","v":48.937432999999999},"[kg NMVOC/p/yr]",null,">>>>>",null,"Normalized result for photochemical oxidant formation","NMPPOF",{"$f":"D1284/D1286/1000","v":9.6078730896572256E-6},"[p*yr]"]
[]
[null,"Mid to end factor","CFendpoint,POF,HH",{"$f":"10^-3*OFFSET(AI1231,0,IF($AG$1220=$AI$1223,0,IF($AG$1220=$AJ$1223,1,IF($AG$1220=$AK$1223,2,\"?\"))))","v":3.9000000000000001E-11},"[-]",null,">>>>>",null,"Absolute share of photochemical oxidant formation on endpoint category human health","EPHH,POF",{"$f":"SUM(Q1273:Q1281)","v":1.8337201178306537E-11},"[DALY]"]
[]
[null,"Normalization factor endpoint category","NFHH",{"$f":"D1174","v":1.35E-2},"[DALY/p/yr]"]
[]
[null,"Weighting factor endpoint category","WHH",{"$f":"K1146","v":400},"[-]",null,">>>>>",null,"Absolute share of photochemical oxidant formation on single score","SSPOF",{"$f":"SUM(U1273:U1281)","v":5.4332447935723066E-7},"[points]"]
[]
[null,null,null,null,null,null,null,null,"Relative share of photochemical oxidant formation on single score","pSS,POF",{"$f":"K1292/$D$1519","v":3.0411233395467684E-5},null,null,null,null,null,"Particulate matter formation"]
[]
[null,"Particulate matter formation",null,null,null,null,null,null,null,null,null,null,null,null,null,null,"Mid to End",null,"EP Normalized",null,"EP Normalized, weighted"]
[]
[null,"Characterization factor NOx","CFmidpoint,NOx,PMF",0.22,"[-]",null,">>>>>",null,"Absolute share of NOx on midpoint category","MPTET,NOx",{"$f":"D1298*D$928","v":0.10029945053492288},"[g PM10 eq]",null,null,null,null,{"$f":"K1298*$D1309","v":2.6077857139079949E-8},null,{"$f":"Q1298/$D1311","v":1.9316931214133296E-6},null,{"$f":"S1298*$D1313","v":7.7267724856533188E-4}]
[]
[null,"Characterization factor SO2","CFmidpoint,SO2,PMF",0.2,"[-]",null,">>>>>",null,"Absolute share of SO2 on midpoint category","MPTET,SO2",{"$f":"D1300*D$1036","v":2.1815830079958926E-2},"[g PM10 eq]",null,null,null,null,{"$f":"K1300*$D1309","v":5.672115820789321E-9},null,{"$f":"Q1300/$D1311","v":4.2015672746587565E-7},null,{"$f":"S1300*$D1313","v":1.6806269098635027E-4}]
[]
[null,"Characterization factor PM10","CFmidpoint,PM10,PMF",1,"[-]",null,">>>>>",null,"Absolute share of PM10 on midpoint category","MPTET,PM10",{"$f":"D1302*D$1046","v":1.5674005854413513E-2},"[g PM10 eq]",null,null,null,null,{"$f":"K1302*$D1309","v":4.0752415221475137E-9},null,{"$f":"Q1302/$D1311","v":3.0186974238129734E-7},null,{"$f":"S1302*$D1313","v":1.2074789695251893E-4}]
[]
[]
[null,"Result for particulate matter formation","MPPMF",{"$f":"SUM(K1298:K1302)","v":0.13778928646929531},"[g PM10 eq]"]
[]
[null,"Normalization factor midpoint category","NFPMF",{"$f":"OFFSET(AI1203,0,IF($D$1142=$AI$1194,0,IF($D$1142=$AJ$1194,1,IF($D$1142=$AK$1194,2,IF($D$1142=$AL$1194,3,IF($D$1142=$AM$1194,4,IF($D$1142=$AN$1194,5,\"?\")))))))","v":14.058316},"[kg PM10 eq/p/yr]",null,">>>>>",null,"Normalized result for particulate matter formation","NMPPMF",{"$f":"D1305/D1307/1000","v":9.8012654196487922E-6},"[p*yr]"]
[]
[null,"Mid to end factor","CFendpoint,PMF,HH",{"$f":"10^-3*OFFSET(AI1232,0,IF($AG$1220=$AI$1223,0,IF($AG$1220=$AJ$1223,1,IF($AG$1220=$AK$1223,2,\"?\"))))","v":2.6E-7},"[-]",null,">>>>>",null,"Absolute share of particulate matter formation on endpoint category human health","EPHH,PMF",{"$f":"SUM(Q1298:Q1302)","v":3.5825214482016785E-8},"[DALY]"]
[]
[null,"Normalization factor endpoint category","NFHH",{"$f":"D1174","v":1.35E-2},"[DALY/p/yr]"]
[]
[null,"Weighting factor endpoint category","WHH",{"$f":"K1146","v":400},"[-]",null,">>>>>",null,"Absolute share of particulate matter formation on single score","SSPMF",{"$f":"SUM(U1298:U1302)","v":1.061487836504201E-3},"[points]"]
[]
[null,null,null,null,null,null,null,null,"Relative share of particulate matter formation on single score","pSS,PMF",{"$f":"K1313/$D$1519","v":5.9414135693957475E-2},null,null,null,null,null,"Terrestrial ecotoxicity"]
[]
[null,"Terrestrial ecotoxicity",null,null,null,null,null,null,null,null,null,null,null,null,null,null,"Mid to End",null,"EP Normalized",null,"EP Normalized, weighted"]
[]
[null,"Characterization factor HC","CFmidpoint,HC,TET",3.8526274068422799E-5,"[-]",null,">>>>>",null,"Absolute share of HC on midpoint category","MPTET,HC",{"$f":"D1319*D$1056","v":1.312489014152678E-7},"[g 1,4-DB eq]",null,null,null,null,{"$f":"K1319*$D1326","v":1.9764371330142945E-17},null,{"$f":"Q1319/$D1328","v":2.1553294798411064E-14},null,{"$f":"S1319*$D1330","v":8.6213179193644256E-12}]
[]
[]
[null,"Result for terrestrial ecotoxicity","MPTET",{"$f":"SUM(K1319:K1319)","v":1.312489014152678E-7},"[g 1,4-DB eq]"]
[]
[null,"Normalization factor midpoint category","NFTET",{"$f":"OFFSET(AI1204,0,IF($D$1142=$AI$1194,0,IF($D$1142=$AJ$1194,1,IF($D$1142=$AK$1194,2,IF($D$1142=$AL$1194,3,IF($D$1142=$AM$1194,4,IF($D$1142=$AN$1194,5,\"?\")))))))","v":6.4989879000000004},"[kg 1,4-DB eq/p/yr]",null,">>>>>",null,"Normalized result for terrestrial ecotoxicity","NMPTET",{"$f":"D1322/D1324/1000","v":2.0195283240220804E-11},"[p*yr]"]
[]
[null,"Mid to end factor","CFendpoint,TET,ECO",{"$f":"10^-3*OFFSET(AI1233,0,IF($AG$1220=$AI$1223,0,IF($AG$1220=$AJ$1223,1,IF($AG$1220=$AK$1223,2,\"?\"))))","v":1.5058694676315068E-10},"[-]",null,">>>>>",null,"Absolute share of terrestrial ecotoxicity on endpoint category ecosystem diversity","EPECO,TET",{"$f":"SUM(Q1319:Q1319)","v":1.9764371330142945E-17},"[species.yr]"]
[]
[null,"Normalization factor endpoint category","NFECO",{"$f":"D1184","v":9.1699999999999995E-4},"[species.yr/p/yr]"]
[]
[null,"Weighting factor endpoint category","WECO",{"$f":"K1144","v":400},"[-]",null,">>>>>",null,"Absolute share of terrestrial ecotoxicity on single score","SSTET",{"$f":"SUM(U1319:U1319)","v":8.6213179193644256E-12},"[points]"]
[]
[null,null,null,null,null,null,null,null,"Relative share of terrestrial ecotoxicity on single score","pSS,TET",{"$f":"K1330/$D$1519","v":4.8255678031016033E-10},null,null,null,null,null,"Freshwater ecotoxicity"]
[]
[null,"Freshwater ecotoxicity",null,null,null,null,null,null,null,null,null,null,null,null,null,null,"Mid to End",null,"EP Normalized",null,"EP Normalized, weighted"]
[]
[null,"Characterization factor HC","CFmidpoint,HC,FET",3.4352372953473903E-5,"[-]",null,">>>>>",null,"Absolute share of HC on midpoint category","MPFET,HC",{"$f":"D1336*D$1056","v":1.1702951609448454E-7},"[g 1,4-DB eq]",null,null,null,null,{"$f":"K1336*$D1343","v":1.007444944938372E-19},null,{"$f":"Q1336/$D1345","v":1.0986313467157819E-16},null,{"$f":"S1336*$D1347","v":4.3945253868631278E-14}]
[]
[]
[null,"Result for freshwater ecotoxicity","MPFET",{"$f":"SUM(K1336:K1336)","v":1.1702951609448454E-7},"[g 1,4-DB eq]"]
[]
[null,"Normalization factor midpoint category","NFFET",{"$f":"OFFSET(AI1205,0,IF($D$1142=$AI$1194,0,IF($D$1142=$AJ$1194,1,IF($D$1142=$AK$1194,2,IF($D$1142=$AL$1194,3,IF($D$1142=$AM$1194,4,IF($D$1142=$AN$1194,5,\"?\")))))))","v":4.3330431999999997},"[kg 1,4-DB eq/p/yr]",null,">>>>>",null,"Normalized result for freshwater ecotoxicity","NMPFET",{"$f":"D1339/D1341/1000","v":2.7008619737390238E-11},"[p*yr]"]
[]
[null,"Mid to end factor","CFendpoint,FET,ECO",{"$f":"10^-3*OFFSET(AI1234,0,IF($AG$1220=$AI$1223,0,IF($AG$1220=$AJ$1223,1,IF($AG$1220=$AK$1223,2,\"?\"))))","v":8.6084688594713555E-13},"[-]",null,">>>>>",null,"Absolute share of freshwater ecotoxicity on endpoint category ecosystem diversity","EPECO,FET",{"$f":"SUM(Q1336:Q1336)","v":1.007444944938372E-19},"[species.yr]"]
[]
[null,"Normalization factor endpoint category","NFECO",{"$f":"D1217","v":9.1699999999999995E-4},"[species.yr/p/yr]"]
[]
[null,"Weighting factor endpoint category","WECO",{"$f":"K1144","v":400},"[-]",null,">>>>>",null,"Absolute share of freshwater ecotoxicity on single score","SSFET",{"$f":"SUM(U1336:U1336)","v":4.3945253868631278E-14},"[points]"]
[]
[null,null,null,null,null,null,null,null,"Relative share of freshwater ecotoxicity on single score","pSS,FET",{"$f":"K1347/$D$1519","v":2.4597260436398182E-12},null,null,null,null,null,"Marine ecotoxicity"]
[]
[null,"Marine ecotoxicity",null,null,null,null,null,null,null,null,null,null,null,null,null,null,"Mid to End",null,"EP Normalized",null,"EP Normalized, weighted"]
[]
[null,"Characterization factor HC","CFmidpoint,HC,MET",7.6734236705014002E-4,"[-]",null,">>>>>",null,"Absolute share of HC on midpoint category","MPMET,HC",{"$f":"D1353*D$1056","v":2.614133993488592E-6},"[g 1,4-DB eq]",null,null,null,null,{"$f":"K1353*$D1360","v":4.6036473932011222E-19},null,{"$f":"Q1353/$D1362","v":5.0203352161408095E-16},null,{"$f":"S1353*$D1364","v":2.0081340864563239E-13}]
[]
[]
[null,"Result for marine ecotoxicity","MPMET",{"$f":"SUM(K1353:K1353)","v":2.614133993488592E-6},"[g 1,4-DB eq]"]
[]
[null,"Normalization factor midpoint category","NFMET",{"$f":"OFFSET(AI1206,0,IF($D$1142=$AI$1194,0,IF($D$1142=$AJ$1194,1,IF($D$1142=$AK$1194,2,IF($D$1142=$AL$1194,3,IF($D$1142=$AM$1194,4,IF($D$1142=$AN$1194,5,\"?\")))))))","v":2.4132104999999999},"[kg 1,4-DB eq/p/yr]",null,">>>>>",null,"Normalized result for marine ecotoxicity","NMPMET",{"$f":"D1356/D1358/1000","v":1.0832598289658494E-9},"[p*yr]"]
[]
[null,"Mid to end factor","CFendpoint,MET,ECO",{"$f":"10^-3*OFFSET(AI1235,0,IF($AG$1220=$AI$1223,0,IF($AG$1220=$AJ$1223,1,IF($AG$1220=$AK$1223,2,\"?\"))))","v":1.7610602228761431E-13},"[-]",null,">>>>>",null,"Absolute share of marine ecotoxicity on endpoint category ecosystem diversity","EPECO,MET",{"$f":"SUM(Q1353:Q1353)","v":4.6036473932011222E-19},"[species.yr]"]
[]
[null,"Normalization factor endpoint category","NFECO",{"$f":"D1184","v":9.1699999999999995E-4},"[species.yr/p/yr]"]
[]
[null,"Weighting factor endpoint category","WECO",{"$f":"K1144","v":400},"[-]",null,">>>>>",null,"Absolute share of marine ecotoxicity on single score","SSMET",{"$f":"SUM(U1353:U1353)","v":2.0081340864563239E-13},"[points]"]
[]
[null,null,null,null,null,null,null,null,"Relative share of marine ecotoxicity on single score","pSS,MET",{"$f":"K1364/$D$1519","v":1.1240029984451468E-11}]
[]
[null,"Ionising radiation"]
[]
[null,"Result for ionising radiation","MPIR",0,"[g U235 eq]"]
[]
[null,"Normalization factor midpoint category","NFIR",{"$f":"OFFSET(AI1207,0,IF($D$1142=$AI$1194,0,IF($D$1142=$AJ$1194,1,IF($D$1142=$AK$1194,2,IF($D$1142=$AL$1194,3,IF($D$1142=$AM$1194,4,IF($D$1142=$AN$1194,5,\"?\")))))))","v":1317.4087999999999},"[kg U235 eq/p/yr]",null,">>>>>",null,"Normalized result for ionising radiation","NMPIR",{"$f":"D1370/D1372/1000","v":0},"[p*yr]"]
[]
[null,"Mid to end factor","CFendpoint,IR,HH",{"$f":"10^-3*OFFSET(AI1236,0,IF($AG$1220=$AI$1223,0,IF($AG$1220=$AJ$1223,1,IF($AG$1220=$AK$1223,2,\"?\"))))","v":1.6400000000000003E-11},"[-]",null,">>>>>",null,"Absolute share of ionising radiation on endpoint category human health","EPHH,IR",0,"[DALY]"]
[]
[null,"Normalization factor endpoint category","NFHH",{"$f":"D1174","v":1.35E-2},"[DALY/p/yr]"]
[]
[null,"Weighting factor endpoint category","WHH",{"$f":"K1146","v":400},"[-]",null,">>>>>",null,"Absolute share of ionising radiation on single score","SSIR",0,"[points]"]
[]
[null,null,null,null,null,null,null,null,"Relative share of ionising radiation on single score","pSS,IR",{"$f":"K1378/$D$1519","v":0}]
[]
[null,"Agricultural land occupation"]
[]
[null,"Result for agricultural land occupation","MPALO",0,"m2a"]
[]
[null,"Normalization factor midpoint category","NFALO",{"$f":"OFFSET(AI1208,0,IF($D$1142=$AI$1194,0,IF($D$1142=$AJ$1194,1,IF($D$1142=$AK$1194,2,IF($D$1142=$AL$1194,3,IF($D$1142=$AM$1194,4,IF($D$1142=$AN$1194,5,\"?\")))))))","v":5423.7433000000001},"[m2a/p/yr]",null,">>>>>",null,"Normalized result for agricultural land occupation","NMPALO",{"$f":"D1384/D1386/1000","v":0},"[p*yr]"]
[]
[null,"Mid to end factor",null,{"$f":"OFFSET(AI1237,0,IF($AG$1220=$AI$1223,0,IF($AG$1220=$AJ$1223,1,IF($AG$1220=$AK$1223,2,\"?\"))))","v":"individual factors"},"[-]",null,">>>>>",null,"Absolute share of agricultural land occupation on endpoint category",null,"---","[-]"]
[]
[null,"Normalization factor endpoint category",null,"---","[-]"]
[]
[null,"Weighting factor endpoint category",null,"---","[-]",null,">>>>>",null,"Absolute share of agricultural land occupation on single score",null,"---","[-]"]
[]
[null,null,null,null,null,null,null,null,"Relative share of agricultural land occupation on single score",null,"---","[-]"]
[]
[null,"Urban land occupation"]
[]
[null,"Result for urban land occupation","MPULO",0,"m2a"]
[]
[null,"Normalization factor midpoint category","NFULO",{"$f":"OFFSET(AI1209,0,IF($D$1142=$AI$1194,0,IF($D$1142=$AJ$1194,1,IF($D$1142=$AK$1194,2,IF($D$1142=$AL$1194,3,IF($D$1142=$AM$1194,4,IF($D$1142=$AN$1194,5,\"?\")))))))","v":775.02957000000004},"[m2a/p/yr]",null,">>>>>",null,"Normalized result for urban land occupation","NMPULO",{"$f":"D1398/D1400/1000","v":0},"[p*yr]"]
[]
[null,"Mid to end factor",null,{"$f":"OFFSET(AI1238,0,IF($AG$1220=$AI$1223,0,IF($AG$1220=$AJ$1223,1,IF($AG$1220=$AK$1223,2,\"?\"))))","v":"individual factors"},"[-]",null,">>>>>",null,"Absolute share of urban land occupation on endpoint category",null,"---","[-]"]
[]
[null,"Normalization factor endpoint category",null,"---","[-]"]
[]
[null,"Weighting factor endpoint category",null,"---","[-]",null,">>>>>",null,"Absolute share of urban land occupation on single score",null,0,"[points]"]
[]
[null,null,null,null,null,null,null,null,"Relative share of urban land occupation on single score",null,{"$f":"K1406/$D$1519","v":0}]
[]
[null,"Natural land transformation"]
[]
[null,"Result for natural land transformation","MPNLT",0,"m2"]
[]
[null,"Normalization factor midpoint category","NFNLT",{"$f":"OFFSET(AI1210,0,IF($D$1142=$AI$1194,0,IF($D$1142=$AJ$1194,1,IF($D$1142=$AK$1194,2,IF($D$1142=$AL$1194,3,IF($D$1142=$AM$1194,4,IF($D$1142=$AN$1194,5,\"?\")))))))","v":12.026633},"[m2/p/yr]",null,">>>>>",null,"Normalized result for natural land transformation","NMPNLT",{"$f":"D1412/D1414/1000","v":0},"[p*yr]"]
[]
[null,"Mid to end factor",null,{"$f":"OFFSET(AI1239,0,IF($AG$1220=$AI$1223,0,IF($AG$1220=$AJ$1223,1,IF($AG$1220=$AK$1223,2,\"?\"))))","v":"individual factors"},"[-]",null,">>>>>",null,"Absolute share of natural land transformation on endpoint category",null,"---","[-]"]
[]
[null,"Normalization factor endpoint category",null,"---","[-]"]
[]
[null,"Weighting factor endpoint category",null,"---","[-]",null,">>>>>",null,"Absolute share of natural land transformation on single score",null,"---","[-]"]
[]
[null,null,null,null,null,null,null,null,"Relative share of natural land transformation on single score",null,"---","[-]"]
[]
[null,"Water depletion"]
[]
[null,"Result for water depletion","MPWDP",0,"[m3]"]
[]
[null,"Normalization factor midpoint category","NFWDP",{"$f":"OFFSET(AI1211,0,IF($D$1142=$AI$1194,0,IF($D$1142=$AJ$1194,1,IF($D$1142=$AK$1194,2,IF($D$1142=$AL$1194,3,IF($D$1142=$AM$1194,4,IF($D$1142=$AN$1194,5,\"?\")))))))","v":0},"[m3/p/yr]",null,">>>>>",null,"Normalized result for water depletion","NMPWDP",0,"[p*yr]"]
[]
[null,"Mid to end factor",null,"---","[-]",null,">>>>>",null,"Absolute share of water depletion on endpoint category",null,"---","[-]"]
[]
[null,"Normalization factor endpoint category",null,"---","[-]"]
[]
[null,"Weighting factor endpoint category",null,"---","[-]",null,">>>>>",null,"Absolute share of water depletion on single score",null,"---","[-]"]
[]
[null,null,null,null,null,null,null,null,"Relative share of water depletion on single score",null,"---","[-]",null,null,null,null,"Metal depletion"]
[]
[null,"Metal depletion",null,null,null,null,null,null,null,null,null,null,null,null,null,null,"Mid to End",null,"EP Normalized",null,"EP Normalized, weighted"]
[]
[null,"Characterization factor Fe","CFmidpoint,Fe,MRD",1,"[-]",null,">>>>>",null,"Absolute share of Fe on midpoint category","MPMRD,Fe",{"$f":"D1440*D$998","v":9.5129913265377063E-5},"[g Fe eq]",null,null,null,null,{"$f":"K1440*$D1451","v":6.8017887984744589E-9},null,{"$f":"Q1440/$D1453","v":2.7762403259079424E-11},null,{"$f":"S1440*$D1455","v":5.5524806518158848E-9}]
[]
[null,"Characterization factor Mn","CFmidpoint,Mn,MRD",76.599999999999994,"[-]",null,">>>>>",null,"Absolute share of Mn on midpoint category","MPMRD,Mn",{"$f":"D1442*D$1006","v":6.8829519996279788E-5},"[g Fe eq]",null,null,null,null,{"$f":"K1442*$D1451","v":4.9213106797340043E-9},null,{"$f":"Q1442/$D1453","v":2.0086982366261243E-11},null,{"$f":"S1442*$D1455","v":4.0173964732522483E-9}]
[]
[null,"Characterization factor Copper Ore","CFmidpoint,copper_ore,MRD",42.7,"[-]",null,">>>>>",null,"Absolute share of copper ore on midpoint category","MPMRD,copper_ore",{"$f":"D1444*D$982","v":0},"[g Fe eq]",null,null,null,null,{"$f":"K1444*$D1451","v":0},null,{"$f":"Q1444/$D1453","v":0},null,{"$f":"S1444*$D1455","v":0}]
[]
[]
[null,"Result for metal depletion","MPMRD",{"$f":"SUM(K1440:K1444)","v":1.6395943326165684E-4},"[g Fe eq]"]
[]
[null,"Normalization factor midpoint category","NFMRD",{"$f":"OFFSET(AI1212,0,IF($D$1142=$AI$1194,0,IF($D$1142=$AJ$1194,1,IF($D$1142=$AK$1194,2,IF($D$1142=$AL$1194,3,IF($D$1142=$AM$1194,4,IF($D$1142=$AN$1194,5,\"?\")))))))","v":445.18723999999997},"[kg Fe eq/p/yr]",null,">>>>>",null,"Normalized result for metal depletion","NMPMRD",{"$f":"D1447/D1449/1000","v":3.682932000963389E-10},"[p*yr]"]
[]
[null,"Mid to end factor","CFendpoint,MRD,RES",{"$f":"10^-3*OFFSET(AI1241,0,IF($AG$1220=$AI$1223,0,IF($AG$1220=$AJ$1223,1,IF($AG$1220=$AK$1223,2,\"?\"))))","v":7.149999999999999E-5},"[-]",null,">>>>>",null," Absolute share of metal depletion on endpoint category resource availability","EPRES,MRD",{"$f":"SUM(Q1440:Q1444)","v":1.1723099478208463E-8},"[$]"]
[]
[null,"Normalization factor endpoint category","NFRES",{"$f":"OFFSET(AI1217,0,IF($D$1142=$AI$1194,0,IF($D$1142=$AJ$1194,1,IF($D$1142=$AK$1194,2,IF($D$1142=$AL$1194,3,IF($D$1142=$AM$1194,4,IF($D$1142=$AN$1194,5,\"?\")))))))","v":245},"[$/p/yr]"]
[]
[null,"Weighting factor endpoint category","WRES",{"$f":"K1148","v":200},"[-]",null,">>>>>",null,"Absolute share of metal depletion on single score","SSMRD",{"$f":"SUM(U1440:U1444)","v":9.5698771250681332E-9},"[points]"]
[]
[null,null,null,null,null,null,null,null,"Relative share of metal depletion on single score","pSS,MRD",{"$f":"K1455/$D$1519","v":5.356500173905172E-7},null,null,null,null,null,"Fossil depletion"]
[]
[null,"Fossil depletion",null,null,null,null,null,null,null,null,null,null,null,null,null,null,"Mid to End",null,"EP Normalized",null,"EP Normalized, weighted"]
[]
[null,"Characterization factor crude oil","CFmidpoint,crude_oil,FRD",1,"[-]",null,">>>>>",null,"Absolute share of crude oil on midpoint category","MPFRD,crude_oil",{"$f":"D1461*D892","v":32.080459851552291},"[g oil eq]",null,null,null,null,{"$f":"K1461*$D$1474","v":5.3080479338623501E-3},null,{"$f":"Q1461/$D$1476","v":2.1665501770866736E-5},null,{"$f":"S1461*$D$1478","v":4.3331003541733472E-3}]
[]
[null,"Characterization factor natural gas; 44.1 MJ/kg","CFmidpoint,natural_gas,FRD",{"$f":"0.0214961306964746*44.1","v":0.94797936371452984},"[-]",null,">>>>>",null,"Absolute share of natural gas on midpoint category","MPFRD,natural_gas",{"$f":"D1463*D962","v":1.6964701459492384},"[g oil eq]",null,null,null,null,{"$f":"K1463*$D$1474","v":2.8069874605083907E-4},null,{"$f":"Q1463/$D$1476","v":1.1457091675544451E-6},null,{"$f":"S1463*$D$1478","v":2.2914183351088903E-4}]
[]
[null,"Characterization factor brown coal; 11.9 MJ/kg","CFmidpoint,brown_coal,FRD",{"$f":"0.0226903601796121*11.9","v":0.27001528613738401},"[-]",null,">>>>>",null,"Absolute share of brown coal on midpoint category","MPFRD,brown_coal",{"$f":"D1465*D976","v":1.4601508435743916E-2},"[g oil eq]",null,null,null,null,{"$f":"K1465*$D$1474","v":2.4159724343812322E-6},null,{"$f":"Q1465/$D$1476","v":9.8611119770662545E-9},null,{"$f":"S1465*$D$1478","v":1.9722223954132508E-6}]
[]
[null,"Characterization factor hard coal; 26.3 MJ/kg per PKM","CFmidpoint,hard_coal,FRD",{"$f":"0.0226903601796121*26.3","v":0.59675647272379817},"[-]",null,">>>>>",null,"Absolute share of hard coal on midpoint category","MPFRD,hard_coal",{"$f":"D1467*D944","v":1.2082727075164931E-2},"[g oil eq]",null,null,null,null,{"$f":"K1467*$D$1474","v":1.9992136890658859E-6},null,{"$f":"Q1467/$D$1476","v":8.1600558737383105E-9},null,{"$f":"S1467*$D$1478","v":1.6320111747476621E-6}]
[]
[]
[null,"Result for fossil depletion","MPFRD",{"$f":"SUM(K1461:K1467)","v":33.803614233012446},"[g oil eq]"]
[]
[null,"Normalization factor midpoint category","NFFRD",{"$f":"OFFSET(AI1213,0,IF($D$1142=$AI$1194,0,IF($D$1142=$AJ$1194,1,IF($D$1142=$AK$1194,2,IF($D$1142=$AL$1194,3,IF($D$1142=$AM$1194,4,IF($D$1142=$AN$1194,5,\"?\")))))))","v":1289.6011000000001},"[kg Fe eq/p/yr]",null,">>>>>",null,"Normalized result for fossil depletion","NMPFRD",{"$f":"D1470/D1472/1000","v":2.6212457660754511E-5},"[p*yr]"]
[]
[null,"Mid to end factor","CFendpoint,FRD,RES",{"$f":"10^-3*OFFSET(AI1242,0,IF($AG$1220=$AI$1223,0,IF($AG$1220=$AJ$1223,1,IF($AG$1220=$AK$1223,2,\"?\"))))","v":1.6546046903394084E-4},"[-]",null,">>>>>",null," Absolute share of fossil depletion on endpoint category resource availability","EPRES,FRD",{"$f":"SUM(Q1461:Q1467)","v":5.5931618660366358E-3},"[$]"]
[]
[null,"Normalization factor endpoint category","NFRES",{"$f":"D1453","v":245},"[$/p/yr]"]
[]
[null,"Weighting factor endpoint category","WRES",{"$f":"K1148","v":200},"[-]",null,">>>>>",null,"Absolute share of fossil depletion on single score","SSFRD",{"$f":"SUM(U1461:U1467)","v":4.565846421254397E-3},"[points]"]
[]
[null,null,null,null,null,null,null,null,"Relative share of fossil depletion on single score","pSS,FRD",{"$f":"K1478/$D$1519","v":0.25556187221473192}]
[]
[]
[{"$f":"$A$1136 & \".\" & RIGHT(A1153,1)+1","v":"3.3"},"Summary of the Impact Assessment Results"]
[]
[null,"Contribution of the inputs/outputs on the single score"]
[]
[null,"Absolute share of Crude oil","SScrude_oil",{"$f":"SUM(U1461)","v":4.3331003541733472E-3},"[points]",null,">>>>>",null,"Relative share of Crude oil","pSS,crude_oil",{"$f":"D1487/$D$1519","v":0.24253449127240334}]
[]
[null,"Absolute share of CO2","SSCO2",{"$f":"SUM(U1159,AB1159)","v":4.7080580429173123E-3},"[points]",null,">>>>>",null,"Relative share of CO2","pSS,CO2",{"$f":"D1489/$D$1519","v":0.26352181324859675}]
[]
[null,"Absolute share of Copper ore","SScopper_ore",{"$f":"U1444","v":0},"[points]",null,">>>>>",null,"Relative share of Copper","pSS,copper_ore",{"$f":"D1491/D1519","v":0}]
[]
[null,"Absolute share of Contrails/Cirrus","SSCC",{"$f":"SUM(U1161,AB1161)","v":3.3950861358249813E-3},"[points]",null,">>>>>",null,"Relative share of Contrails/Cirrus","pSS,CC",{"$f":"D1493/$D$1519","v":0.19003148357393435}]
[null,null,null,null,null,null,null,null,null,null,null,null,null,"If the calculation considers the altitude dependant impact of contrails and NOx emissions, the contribution of the processes cruise flight and flight test campaign has to be neglected here:"]
[null,"Absolute share of NOx","SSNOx",{"$f":"SUM(U1165,AB1165,U1273,U1298)","v":4.8001859989232048E-3},"[points]",null,">>>>>",null,"Relative share of NOx","pSS,NOx",{"$f":"D1495/$D$1519","v":0.26867844594009099},null,null,{"$f":"(D1495-U1165-AB1165)/D1519","v":4.3278170686152757E-2},null,{"$f":"K1495-N1495","v":0.22540027525393824}]
[]
[null,"Absolute share of Hard coal","SShard_coal",{"$f":"SUM(U1467)","v":1.6320111747476621E-6},"[points]",null,">>>>>",null,"Relative share of Hard coal","pSS,hard_coal",{"$f":"D1497/$D$1519","v":9.1347757417405682E-5}]
[]
[null,"Absolute share of Natural gas","SSnatural_gas",{"$f":"SUM(U1463)","v":2.2914183351088903E-4},"[points]",null,">>>>>",null,"Relative share of Natural gas","pSS,natural_gas",{"$f":"D1499/$D$1519","v":1.2825642952456284E-2}]
[]
[null,"Absolute share of Brown coal","SSbrown_coal",{"$f":"SUM(U1465)","v":1.9722223954132508E-6},"[points]",null,">>>>>",null,"Relative share of Brown coal","pSS,brown_coal",{"$f":"D1501/$D$1519","v":1.1039023245489727E-4}]
[]
[null,"Absolute share of SO2","SSSO2",{"$f":"SUM(U1208,U1275,U1300)","v":1.6834886985581736E-4},"[points]",null,">>>>>",null,"Relative share of SO2","pSS,SO2",{"$f":"D1503/$D$1519","v":9.4229083495469095E-3}]
[]
[null,"Absolute share of PM10","SSPM10",{"$f":"SUM(U1302)","v":1.2074789695251893E-4},"[points]",null,">>>>>",null,"Relative share of PM10","pSS,PM10",{"$f":"D1505/$D$1519","v":6.7585625454960746E-3}]
[]
[null,"Absolute share of CH4","SSCH4",{"$f":"SUM(U1163,AB1163,U1279)","v":1.0761770319141728E-4},"[points]",null,">>>>>",null,"Relative share of CH4","pSS,CH4",{"$f":"D1507/$D$1519","v":6.0236326791499708E-3}]
[]
[null,"Absolute share of CO","SSCO",{"$f":"SUM(U1277)","v":3.2974805034198197E-9},"[points]",null,">>>>>",null,"Relative share of CO","pSS,CO",{"$f":"D1509/$D$1519","v":1.8456825160011053E-7}]
[]
[null,"Absolute share of HC","SSHC",{"$f":"SUM(U1256,U1281,U1319,U1336,U1353)","v":1.002689017820627E-8},"[points]",null,">>>>>",null,"Relative share of HC","pSS,HC",{"$f":"D1511/$D$1519","v":5.612301838505325E-7}]
[]
[null,"Absolute share of Fe","SSFe",{"$f":"U1440","v":5.5524806518158848E-9},"[points]",null,">>>>>",null,"Relative share of Fe","pSS,Fe",{"$f":"D1513/$D$1519","v":3.1078626390247553E-7}]
[]
[null,"Absolute share of Mn","SSMn",{"$f":"U1442","v":4.0173964732522483E-9},"[points]",null,">>>>>",null,"Relative share of Mn","pSS,Mn",{"$f":"D1515/$D$1519","v":2.2486375348804162E-7}]
[]
[null,"Absolute share of O2","SSO2",0,"[points]",null,">>>>>",null,"Relative share of O2","pSS,O2",{"$f":"D1517/$D$1519","v":0}]
[]
[null,"Single Score","SS",{"$f":"SUM(D1487:D1517)","v":1.786591396316746E-2},"[points]"]
[]
[]
[]
[]
[]
[]
[]
[]
[]
[]
[]
[]
[]
[]
[]
[]
[]
[]
[]
[]
[]
[]
[]
[null,"Contribution of the considered processes on the single score"]
[]
[null,"Absolute share of Electric energy due to computer use during aircraft design","SSCU",{"$f":"K1545*$D$1567","v":4.0700728847214731E-9},"[points]",null,"<<<<<",null,"Relative share of Electric energy due to computer use during aircraft design","pSS,CU",{"$f":"SUM(K878*K1487,K896*K1489,K932*K1497,K948*K1499,K966*K1501,K1020*K1503)","v":2.278121843143527E-7}]
[]
[null,"Absolute share of Wind tunnel tests","SSWT",{"$f":"K1547*$D$1567","v":2.9389002156186324E-8},"[points]",null,"<<<<<",null,"Relative share of Wind tunnel tests","pSS,WT",{"$f":"SUM(K898*K1489)","v":1.6449761381799428E-6}]
[]
[null,"Absolute share of Flight test campaign","SSFT",{"$f":"K1549*$D$1567","v":3.5395515483482173E-8},"[points]",null,"<<<<<",null,"Relative share of Flight test campaign","pSS,FT",{"$f":"SUM(K880*K1487,K900*K1489,K920*N1495,N920*P1495,K934*K1497,K950*K1499,K968*K1501,K994*K1513,K1002*K1515,K1010*K1509,K1022*K1503,K1042*K1505,K1050*K1511,K1060*K1517,K1070*K1493)","v":1.9811757493321591E-6}]
[]
[null,"Absolute share of Battery production","SSBP",{"$f":"K1551*$D$1567","v":0},"[points]",null,"<<<<<",null,"Relative share of Battery production","pSS,BP",{"$f":"SUM(K1487*K884,K1497*K938,K1499*K954,K1491*K980)","v":0}]
[]
[null,"Absolute share of Material production","SSMP",{"$f":"K1553*$D$1567","v":6.109571926292865E-6},"[points]",null,"<<<<<",null,"Relative share of Material production","pSS,MP",{"$f":"SUM(K886*K1487,K902*K1489,K940*K1497,K956*K1499,K972*K1501,K996*K1513,K1004*K1515,K1026*K1503,K1040*K1505)","v":3.4196805933849327E-4}]
[]
[null,"Absolute share of Use of production facilities","SSPF",{"$f":"K1555*$D$1567","v":1.8034534549938538E-5},"[points]",null,"<<<<<",null,"Relative share of Use of production facilities","pSS,PF",{"$f":"SUM(K882*K1487,K904*K1489,K936*K1497,K952*K1499,K970*K1501,K1024*K1503)","v":1.0094381170265741E-3}]
[]
[null,"Absolute share of Cruise flight","SSCF",{"$f":"K1557*$D$1567","v":1.1683727694609819E-2},"[points]",null,"<<<<<",null,"Relative share of Cruise flight","pSS,CF",{"$f":"SUM(K906*K1489,K922*N1495,N922*P1495,K1012*K1509,K1028*K1503,K1052*K1511,K1062*K1517,K1072*K1493)","v":0.65396753385788742}]
[]
[null,"Absolute share of LTO-cycle","SSLTO",{"$f":"K1559*$D$1567","v":3.3464931058439481E-4},"[points]",null,"<<<<<",null,"Relative share of LTO-cycle","pSS,LTO",{"$f":"SUM(K908*K1489,K924*N1495,K1014*K1509,K1054*K1511,K1064*K1517)","v":1.8731160984784268E-2}]
[]
[null,"Absolute share of Energy generation and consumption at airports","SSEA",{"$f":"K1561*$D$1567","v":5.0640861425353635E-4},"[points]",null,"<<<<<",null,"Relative share of Energy generation and consumption at airports","pSS,EA",{"$f":"SUM(K910*K1489,K926*N1495,K1032*K1503,K1044*K1505)","v":2.8344959865896208E-2}]
[]
[null,"Absolute share of Ground handling","SSGH",{"$f":"K1563*$D$1567","v":7.1732718199048637E-5},"[points]",null,"<<<<<",null,"Relative share of Ground handling","pSS,GH",{"$f":"SUM(K888*K1487,K912*K1489,K958*K1499,K986*K1507,K1030*K1503)","v":4.0150600941509908E-3}]
[]
[null,{"$f":"\"Absolute share of \" & $B$709","v":"Absolute share of Kerosene production"},"SSFP",{"$f":"K1565*$D$1567","v":5.00013365020656E-3},"[points]",null,"<<<<<",null,{"$f":"\"Relative share of \" & $B$709","v":"Relative share of Kerosene production"},"pSS,FP",{"$f":"SUM(K890*K1487,K960*K1499,K988*K1507,K914*K1489,K942*K1497,K974*K1501,K1034*K1503)","v":0.27987001731424899}]
[]
[null,"Single Score","SS",{"$f":"D1519","v":1.786591396316746E-2},"[points]"]
[]
[]
[]
[]
[]
[]
[]
[]
[]
[]
[]
[]
[]
[]
[]
[]
[]
[]
[]
[null,null,null,null,null,null,null,null,null,null,null,null,null,null,null,null,null,null,null,null,null,null,null,null,null,null,null,null,null,null,"For the graphical representation:"]
[]
[null,null,null,null,null,null,null,null,null,null,null,null,null,null,null,null,null,null,null,null,null,null,null,null,null,null,null,null,null,null,null,null,"Crude oil",{"$f":"K1487","v":0.24253449127240334}]
[null,null,null,null,null,null,null,null,null,null,null,null,null,null,null,null,null,null,null,null,null,null,null,null,null,null,null,null,null,null,null,null,"CO2",{"$f":"K1489","v":0.26352181324859675}]
[null,"Contribution of life cycle phases to the single score",null,null,null,null,null,null,null,null,null,null,null,null,null,null,null,null,null,null,null,null,null,null,null,null,null,null,null,null,null,null,"Copper ore",{"$f":"K1491","v":0}]
[null,null,null,null,null,null,null,null,null,null,null,null,null,null,null,null,null,null,null,null,null,null,null,null,null,null,null,null,null,null,null,null,"Contrails/Cirrus",{"$f":"K1493","v":0.19003148357393435}]
[null,"Contribution of operation to the single score","pSS,OP",{"$f":"K1557+K1559+K1561+K1563+K1565","v":0.98492873211696785},null,null,null,null,null,null,null,null,null,null,null,null,null,null,null,null,null,null,null,null,null,null,null,null,null,null,null,null,"NOx",{"$f":"K1495","v":0.26867844594009099}]
[null,null,null,null,null,null,null,null,null,null,null,null,null,null,null,null,null,null,null,null,null,null,null,null,null,null,null,null,null,null,null,null,"Natural gas",{"$f":"K1499","v":1.2825642952456284E-2}]
[null,"Contribution of production to the single score","pSS,PRO",{"$f":"K1553+K1555","v":1.3514061763650674E-3},null,null,null,null,null,null,null,null,null,null,null,null,null,null,null,null,null,null,null,null,null,null,null,null,null,null,null,null,"SO2",{"$f":"K1503","v":9.4229083495469095E-3}]
[null,null,null,null,null,null,null,null,null,null,null,null,null,null,null,null,null,null,null,null,null,null,null,null,null,null,null,null,null,null,null,null,"CH4",{"$f":"K1507","v":6.0236326791499708E-3}]
[null,"Contribution of design & development to the single score","pSS,DD",{"$f":"K1545+K1547+K1549","v":3.8539640718264548E-6},null,null,null,null,null,null,null,null,null,null,null,null,null,null,null,null,null,null,null,null,null,null,null,null,null,null,null,null,"PM10",{"$f":"K1505","v":6.7585625454960746E-3}]
[null,null,null,null,null,null,null,null,null,null,null,null,null,null,null,null,null,null,null,null,null,null,null,null,null,null,null,null,null,null,null,null,"Brown coal",{"$f":"K1501","v":1.1039023245489727E-4}]
[null,null,null,null,null,null,null,null,null,null,null,null,null,null,null,null,null,null,null,null,null,null,null,null,null,null,null,null,null,null,null,null,"Hard coal",{"$f":"K1497","v":9.1347757417405682E-5}]
[null,null,null,null,null,null,null,null,null,null,null,null,null,null,null,null,null,null,null,null,null,null,null,null,null,null,null,null,null,null,null,null,"CO",{"$f":"K1509","v":1.8456825160011053E-7}]
[null,null,null,null,null,null,null,null,null,null,null,null,null,null,null,null,null,null,null,null,null,null,null,null,null,null,null,null,null,null,null,null,"HC",{"$f":"K1511","v":5.612301838505325E-7}]
[null,null,null,null,null,null,null,null,null,null,null,null,null,null,null,null,null,null,null,null,null,null,null,null,null,null,null,null,null,null,null,null,"Fe",{"$f":"K1513","v":3.1078626390247553E-7}]
[null,null,null,null,null,null,null,null,null,null,null,null,null,null,null,null,null,null,null,null,null,null,null,null,null,null,null,null,null,null,null,null,"Mn",{"$f":"K1515","v":2.2486375348804162E-7}]
[null,null,null,null,null,null,null,null,null,null,null,null,null,null,null,null,null,null,null,null,null,null,null,null,null,null,null,null,null,null,null,null,"O2",{"$f":"K1517","v":0}]
[]
[]
[]
[null,null,null,null,null,null,null,null,null,null,null,null,null,null,null,null,null,null,null,null,null,null,null,null,null,null,null,null,null,null,null,null,"Cruise flight",{"$f":"K1557","v":0.65396753385788742}]
[null,null,null,null,null,null,null,null,null,null,null,null,null,null,null,null,null,null,null,null,null,null,null,null,null,null,null,null,null,null,null,null,{"$f":"$B$709","v":"Kerosene production"},{"$f":"K1565","v":0.27987001731424899}]
[null,null,null,null,null,null,null,null,null,null,null,null,null,null,null,null,null,null,null,null,null,null,null,null,null,null,null,null,null,null,null,null,"Battery production",{"$f":"K1551","v":0}]
[null,null,null,null,null,null,null,null,null,null,null,null,null,null,null,null,null,null,null,null,null,null,null,null,null,null,null,null,null,null,null,null,"LTO-cycle",{"$f":"K1559","v":1.8731160984784268E-2}]
[null,null,null,null,null,null,null,null,null,null,null,null,null,null,null,null,null,null,null,null,null,null,null,null,null,null,null,null,null,null,null,null,"Energy gen. and cons. at airports",{"$f":"K1561","v":2.8344959865896208E-2}]
[null,null,null,null,null,null,null,null,null,null,null,null,null,null,null,null,null,null,null,null,null,null,null,null,null,null,null,null,null,null,null,null,"Ground handling",{"$f":"K1563","v":4.0150600941509908E-3}]
[null,null,null,null,null,null,null,null,null,null,null,null,null,null,null,null,null,null,null,null,null,null,null,null,null,null,null,null,null,null,null,null,"Use of production facilities",{"$f":"K1555","v":1.0094381170265741E-3}]
[null,null,null,null,null,null,null,null,null,null,null,null,null,null,null,null,null,null,null,null,null,null,null,null,null,null,null,null,null,null,null,null,"Material production",{"$f":"K1553","v":3.4196805933849327E-4}]
[null,null,null,null,null,null,null,null,null,null,null,null,null,null,null,null,null,null,null,null,null,null,null,null,null,null,null,null,null,null,null,null,"Flight test campaign",{"$f":"K1549","v":1.9811757493321591E-6}]
[null,null,null,null,null,null,null,null,null,null,null,null,null,null,null,null,null,null,null,null,null,null,null,null,null,null,null,null,null,null,null,null,"Wind tunnel tests",{"$f":"K1547","v":1.6449761381799428E-6}]
[null,null,null,null,null,null,null,null,null,null,null,null,null,null,null,null,null,null,null,null,null,null,null,null,null,null,null,null,null,null,null,null,"Computer use during aircraft design",{"$f":"K1545","v":2.278121843143527E-7}]
[]
[]
[null,"Summarized results of the impact assessment"]
[null,null,null,null,null,null,null,null,null,null,null,null,null,null,null,null,null,null,null,null,null,null,null,null,null,null,null,null,null,null,null,null,"Operation",{"$f":"D1593","v":0.98492873211696785}]
[null,"Midpoint categories",null,null,null,null,null,null,null,null,null,null,null,null,null,null,null,null,null,null,null,null,null,null,null,null,null,null,null,null,null,null,"Production",{"$f":"D1595","v":1.3514061763650674E-3}]
[null,null,null,null,null,null,null,null,null,null,null,null,null,null,null,null,null,null,null,null,null,null,null,null,null,null,null,null,null,null,null,null,"Design & Development",{"$f":"D1597","v":3.8539640718264548E-6}]
[null,"Climate change","MPCC",{"$f":"$D1168","v":272.31219641659442},"[g CO2 eq]"]
[]
[null,"Ozone depletion","MPOD",{"$f":"$D1192","v":0},"[g CFC-11 eq]",null,null,null,null,null,null,null,null,null,null,null,null,null,null,null,null,null,null,null,null,null,null,null,null,null,null,null,"Fossil depletion",{"$f":"K1478","v":4.565846421254397E-3},{"$f":"AH1627/$AH$1641*100","v":25.555263294447368},"%",{"$f":"AH1627/$AH$1641","v":0.25555263294447367}]
[null,null,null,null,null,null,null,null,null,null,null,null,null,null,null,null,null,null,null,null,null,null,null,null,null,null,null,null,null,null,null,null,"Climate change",{"$f":"K1176+K1186","v":1.2237742688958227E-2},68.495237835902856,"%",{"$f":"AH1628/$AH$1641","v":0.68495237835902856}]
[null,"Terrestrial acidification","MPTA",{"$f":"$D1211","v":0.36438684267050747},"[g SO2 eq]",null,null,null,null,null,null,null,null,null,null,null,null,null,null,null,null,null,null,null,null,null,null,null,null,null,null,null,"Particulate matter formation",{"$f":"K1313","v":1.061487836504201E-3},5.9411987708218916,"%",{"$f":"AH1629/$AH$1641","v":5.941198770821892E-2}]
[null,null,null,null,null,null,null,null,null,null,null,null,null,null,null,null,null,null,null,null,null,null,null,null,null,null,null,null,null,null,null,null,"Terrestrial acidification",{"$f":"K1219","v":9.2189473827216734E-7},5.1598894471440266E-3,"%",{"$f":"AH1630/$AH$1641","v":5.1598894471440265E-5}]
[null,"Freshwater eutrophication","MPFE",{"$f":"$D1225","v":0},"[g P eq]",null,null,null,null,null,null,null,null,null,null,null,null,null,null,null,null,null,null,null,null,null,null,null,null,null,null,null,"Photochemical oxidant formation",{"$f":"K1292","v":5.4332447935723066E-7},3.0410133945061443E-3,"%",3.0410133945061441E-5]
[null,null,null,null,null,null,null,null,null,null,null,null,null,null,null,null,null,null,null,null,null,null,null,null,null,null,null,null,null,null,null,null,"Human toxicity",{"$f":"K1267","v":8.1441670830429913E-9},4.5583297141202465E-5,"%",4.5583297141202468E-7]
[null,"Marine eutrophication","MPMEP",{"$f":"$D1242","v":1.7780357140281783E-2},"[g N eq]",null,null,null,null,null,null,null,null,null,null,null,null,null,null,null,null,null,null,null,null,null,null,null,null,null,null,null,"Terrestrial ecotoxicity",{"$f":"K1330","v":8.6213179193644256E-12},4.8253933454460233E-8,"%",4.8253933454460234E-10]
[null,null,null,null,null,null,null,null,null,null,null,null,null,null,null,null,null,null,null,null,null,null,null,null,null,null,null,null,null,null,null,null,"Marine ecotoxicity",{"$f":"K1364","v":2.0081340864563239E-13},1.1239623626203122E-9,"%",1.1239623626203123E-11]
[null,"Human toxicity","MPHT",{"$f":"$D1259","v":3.9266519864671566E-4},"[g 1,4-DB eq]",null,null,null,null,null,null,null,null,null,null,null,null,null,null,null,null,null,null,null,null,null,null,null,null,null,null,null,"Metal depletion",{"$f":"K1455","v":9.5698771250681332E-9},5.3563065215723096E-5,"%",5.3563065215723094E-7]
[null,null,null,null,null,null,null,null,null,null,null,null,null,null,null,null,null,null,null,null,null,null,null,null,null,null,null,null,null,null,null,null,"Freshwater ecotoxicity",{"$f":"K1347","v":4.3945253868631278E-14},2.4596371177234384E-10,"%",2.4596371177234385E-12]
[null,"Photochemical oxidant formation","MPPOF",{"$f":"$D1284","v":0.47018464559760342},"[g NMVOC]",null,null,null,null,null,null,null,null,null,null,null,null,null,null,null,null,null,null,null,null,null,null,null,null,null,null,null,"Ionising radiation",{"$f":"K1378","v":0},0,"%",0]
[null,null,null,null,null,null,null,null,null,null,null,null,null,null,null,null,null,null,null,null,null,null,null,null,null,null,null,null,null,null,null,null,"Freshwater eutrophication",{"$f":"K1233","v":0},0,"%",0]
[null,"Particulate matter formation","MPPMF",{"$f":"$D1305","v":0.13778928646929531},"[g PM10 eq]",null,null,null,null,null,null,null,null,null,null,null,null,null,null,null,null,null,null,null,null,null,null,null,null,null,null,null,"Urban land occupation",{"$f":"K1406","v":0},0,"%",0]
[null,null,null,null,null,null,null,null,null,null,null,null,null,null,null,null,null,null,null,null,null,null,null,null,null,null,null,null,null,null,null,null,"Ozone depletion",{"$f":"K1200","v":0},0,"%",0]
[null,"Terrestrial ecotoxicity","MPTET",{"$f":"$D1322","v":1.312489014152678E-7},"[g 1,4-DB eq]",null,null,null,null,null,null,null,null,null,null,null,null,null,null,null,null,null,null,null,null,null,null,null,null,null,null,null,"Single Score",{"$f":"SUM(AH1627:AH1640)","v":1.7866559888844741E-2}]
[]
[null,"Freshwater ecotoxicity","MPFET",{"$f":"$D1339","v":1.1702951609448454E-7},"[g 1,4-DB eq]"]
[]
[null,"Marine ecotoxicity","MPMET",{"$f":"$D1356","v":2.614133993488592E-6},"[g 1,4-DB eq]"]
[null,null,null,null,null,null,null,null,null,null,null,null,null,null,null,null,null,null,null,null,null,null,null,null,null,null,null,null,null,null,null,null,"Contribution of life cycle phases to Single Score"]
[null,"Ionising radiation","MPIR",{"$f":"$D1370","v":0},"[g U235 eq]",null,null,null,null,null,null,null,null,null,null,null,null,null,null,null,null,null,null,null,null,null,null,null,null,null,null,null,{"$f":"B1673","v":"Damage to resource availability"},null,{"$f":"K1455+K1478","v":4.5658559911315221E-3},"[points]",{"$f":"AI1647/SUM($AI$1647:$AI$1649)","v":0.25555316857512589}]
[null,null,null,null,null,null,null,null,null,null,null,null,null,null,null,null,null,null,null,null,null,null,null,null,null,null,null,null,null,null,null,null,{"$f":"B1669","v":"Damage to human health"},null,{"$f":"K1176+K1200+K1267+K1292+K1313+K1378","v":1.2357952637987151E-2},"[points]",{"$f":"AI1648/SUM($AI$1647:$AI$1649)","v":0.69168058735823168}]
[null,"Agricultural land occupation","MPALO",{"$f":"$D1384","v":0},"[m2a]",null,null,null,null,null,null,null,null,null,null,null,null,null,null,null,null,null,null,null,null,null,null,null,null,null,null,null,{"$f":"B1671","v":"Damage to ecosystem diversity"},null,{"$f":"K1186+K1219+K1233+K1330+K1347+K1364","v":9.4275125972606566E-4},"[points]",{"$f":"AI1649/SUM($AI$1647:$AI$1649)","v":5.2766244066642452E-2}]
[]
[null,"Urban land occupation","MPULO",{"$f":"$D1398","v":0},"[m2a]"]
[]
[null,"Natural land transformation","MPNLT",{"$f":"$D1412","v":0},"[m2]"]
[]
[null,"Water depletion","MPWPD",{"$f":"$D1426","v":0},"[m3]"]
[]
[null,"Metal depletion","MPMRD",{"$f":"$D1447","v":1.6395943326165684E-4},"[g Fe eq]"]
[]
[null,"Fossil depletion","MPFRD",{"$f":"$D1470","v":33.803614233012446},"[g oil eq]"]
[]
[]
[]
[]
[]
[]
[]
[null,"Endpoint categories"]
[]
[null,"Damage to human health","EPHH",{"$f":"K1172+K1196+K1263+K1288+K1309+K1374","v":4.1708090153206635E-7},"[DALY]"]
[]
[null,"Damage to ecosystem diversity","EPECO",{"$f":"K1182+K1215+K1229+K1326+K1343+K1360","v":2.1612572629220054E-9},"[species]"]
[]
[null,"Damage to resource availability","EPRES",{"$f":"K1474+K1451","v":5.5931735891361139E-3},"[$]"]
[]
[]
[]
[]
[]
[]
[]
[]
[]
[]
[]
[null,"Single score","SS",{"$f":"SUM(K1478,K1455,K1378,K1364,K1347,K1330,K1313,K1292,K1267,K1233,K1219,K1200,K1186,K1176)","v":1.7866559888844738E-2},"[points]"]
[]
[]
[{"$f":"$A$1136 & \".\" & RIGHT(A1483,1)+1","v":"3.4"},"Uncertainty analysis"]
[]
[]
[null,null,null,null,null,null,null,null,null,null,null,null,null,null,null,null,null,null,null,null,null,null,null,null,null,null,null,null,null,null,null,null,"World",null,null,null,"Europe"]
[null,null,null,null,null,null,null,null,null,null,null,null,null,null,null,null,null,null,null,null,null,null,null,null,null,null,null,null,null,null,null,null,"Hierarchist, World, Average","Individualist, World","Hierarchist, World","Egalitarian, World","Hierarchist, Europe, Average","Individualist, Europe","Hierarchist, Europe","Egalitarian, Europe","default","% above default","% below default"]
[null,null,null,null,null,null,null,null,null,null,null,null,null,null,null,null,null,null,null,null,null,null,null,null,null,null,null,null,null,null,{"$f":"AG1647","v":"Damage to resource availability"},{"$f":"AK1647","v":0.25555316857512589},0.25555316857512589,0.25555316857512589,0.25555316857512589,0.25555316857512589,0.25555316857512589,0.25555316857512589,0.25555316857512589,0.25555316857512589,{"$f":"AG1693","v":0.25555316857512589},{"$f":"MAX(AH1693:AJ1693)-AG1693","v":0},{"$f":"AG1693-MIN(AH1693:AJ1693)","v":0}]
[null,null,null,null,null,null,null,null,null,null,null,null,null,null,null,null,null,null,null,null,null,null,null,null,null,null,null,null,null,null,{"$f":"AG1648","v":"Damage to human health"},{"$f":"AK1648","v":0.69168058735823168},0.69168058735823168,0.69168058735823168,0.69168058735823168,0.69168058735823168,0.69168058735823168,0.69168058735823168,0.69168058735823168,0.69168058735823168,{"$f":"AG1694","v":0.69168058735823168},{"$f":"MAX(AH1694:AJ1694)-AG1694","v":0},{"$f":"AG1694-MIN(AH1694:AJ1694)","v":0}]
[null,null,null,null,null,null,null,null,null,null,null,null,null,null,null,null,null,null,null,null,null,null,null,null,null,null,null,null,null,null,{"$f":"AG1649","v":"Damage to ecosystem diversity"},{"$f":"AK1649","v":5.2766244066642452E-2},5.2766244066642452E-2,5.2766244066642452E-2,5.2766244066642452E-2,5.2766244066642452E-2,5.2766244066642452E-2,5.2766244066642452E-2,5.2766244066642452E-2,5.2766244066642452E-2,5.2766244066642452E-2,0,0]
[]
[]
[null,null,null,null,null,null,null,null,null,null,null,null,null,null,null,null,null,null,null,null,null,null,null,null,null,null,null,null,null,null,null,null,"World",null,null,null,"Europe"]
[null,null,null,null,null,null,null,null,null,null,null,null,null,null,null,null,null,null,null,null,null,null,null,null,null,null,null,null,null,null,null,null,"Hierarchist, World, Average","Individualist, World","Hierarchist, World","Egalitarian, World","Hierarchist, Europe, Average","Individualist, Europe","Hierarchist, Europe","Egalitarian, Europe","default","% above default","% below default"]
[null,null,null,null,null,null,null,null,null,null,null,null,null,null,null,null,null,null,null,null,null,null,null,null,null,null,null,null,null,null,{"$f":"AG1627","v":"Fossil depletion"},{"$f":"AK1627","v":0.25555263294447367},0.25555263294447367,0.25555263294447367,0.25555263294447367,0.25555263294447367,0.25555263294447367,0.25555263294447367,0.25555263294447367,0.25555263294447367,{"$f":"AG1700","v":0.25555263294447367},{"$f":"MAX(AH1700:AJ1700)-AG1700","v":0},{"$f":"AG1700-MIN(AH1700:AJ1700)","v":0}]
[null,null,null,null,null,null,null,null,null,null,null,null,null,null,null,null,null,null,null,null,null,null,null,null,null,null,null,null,null,null,"Climate change",0.68495237835902856,0.68495237835902856,0.68495237835902856,0.68495237835902856,0.68495237835902856,0.68495237835902856,0.68495237835902856,0.68495237835902856,0.68495237835902856,{"$f":"AG1701","v":0.68495237835902856},{"$f":"MAX(AH1701:AJ1701)-AG1701","v":0},{"$f":"AG1701-MIN(AH1701:AJ1701)","v":0}]
[null,null,null,null,null,null,null,null,null,null,null,null,null,null,null,null,null,null,null,null,null,null,null,null,null,null,null,null,null,null,"Particulate matter formation",5.941198770821892E-2,5.941198770821892E-2,5.941198770821892E-2,5.941198770821892E-2,5.941198770821892E-2,5.941198770821892E-2,5.941198770821892E-2,5.941198770821892E-2,5.941198770821892E-2,5.941198770821892E-2,0,0]
[null,null,null,null,null,null,null,null,null,null,null,null,null,null,null,null,null,null,null,null,null,null,null,null,null,null,null,null,null,null,"Terrestrial acidification",5.1598894471440265E-5,5.1598894471440265E-5,5.1598894471440265E-5,5.1598894471440265E-5,5.1598894471440265E-5,5.1598894471440265E-5,5.1598894471440265E-5,5.1598894471440265E-5,5.1598894471440265E-5,5.1598894471440265E-5,0,0]
[null,null,null,null,null,null,null,null,null,null,null,null,null,null,null,null,null,null,null,null,null,null,null,null,null,null,null,null,null,null,"Photochemical oxidant formation",3.0410133945061441E-5,3.0410133945061441E-5,3.0410133945061441E-5,3.0410133945061441E-5,3.0410133945061441E-5,3.0410133945061441E-5,3.0410133945061441E-5,3.0410133945061441E-5,3.0410133945061441E-5,3.0410133945061441E-5,0,0]
[null,null,null,null,null,null,null,null,null,null,null,null,null,null,null,null,null,null,null,null,null,null,null,null,null,null,null,null,null,null,"Human toxicity",4.5583297141202468E-7,4.5583297141202468E-7,4.5583297141202468E-7,4.5583297141202468E-7,4.5583297141202468E-7,4.5583297141202468E-7,4.5583297141202468E-7,4.5583297141202468E-7,4.5583297141202468E-7,4.5583297141202468E-7,0,0]
[null,null,null,null,null,null,null,null,null,null,null,null,null,null,null,null,null,null,null,null,null,null,null,null,null,null,null,null,null,null,"Terrestrial ecotoxicity",4.8253933454460234E-10,4.8253933454460234E-10,4.8253933454460234E-10,4.8253933454460234E-10,4.8253933454460234E-10,4.8253933454460234E-10,4.8253933454460234E-10,4.8253933454460234E-10,4.8253933454460234E-10,4.8253933454460234E-10,0,0]
[null,null,null,null,null,null,null,null,null,null,null,null,null,null,null,null,null,null,null,null,null,null,null,null,null,null,null,null,null,null,"Marine ecotoxicity",1.1239623626203123E-11,1.1239623626203123E-11,1.1239623626203123E-11,1.1239623626203123E-11,1.1239623626203123E-11,1.1239623626203123E-11,1.1239623626203123E-11,1.1239623626203123E-11,1.1239623626203123E-11,1.1239623626203123E-11,0,0]
[null,null,null,null,null,null,null,null,null,null,null,null,null,null,null,null,null,null,null,null,null,null,null,null,null,null,null,null,null,null,"Metal depletion",5.3563065215723094E-7,5.3563065215723094E-7,5.3563065215723094E-7,5.3563065215723094E-7,5.3563065215723094E-7,5.3563065215723094E-7,5.3563065215723094E-7,5.3563065215723094E-7,5.3563065215723094E-7,5.3563065215723094E-7,0,0]
[null,null,null,null,null,null,null,null,null,null,null,null,null,null,null,null,null,null,null,null,null,null,null,null,null,null,null,null,null,null,"Freshwater ecotoxicity",2.4596371177234385E-12,2.4596371177234385E-12,2.4596371177234385E-12,2.4596371177234385E-12,2.4596371177234385E-12,2.4596371177234385E-12,2.4596371177234385E-12,2.4596371177234385E-12,2.4596371177234385E-12,2.4596371177234385E-12,0,0]
[null,null,null,null,null,null,null,null,null,null,null,null,null,null,null,null,null,null,null,null,null,null,null,null,null,null,null,null,null,null,"Ionising radiation",0,0,0,0,0,0,0,0,0,0,0,0]
[null,null,null,null,null,null,null,null,null,null,null,null,null,null,null,null,null,null,null,null,null,null,null,null,null,null,null,null,null,null,"Freshwater eutrophication",0,0,0,0,0,0,0,0,0,0,0,0]
[null,null,null,null,null,null,null,null,null,null,null,null,null,null,null,null,null,null,null,null,null,null,null,null,null,null,null,null,null,null,"Urban land occupation",0,0,0,0,0,0,0,0,0,0,0,0]
[null,null,null,null,null,null,null,null,null,null,null,null,null,null,null,null,null,null,null,null,null,null,null,null,null,null,null,null,null,null,"Ozone depletion",0,0,0,0,0,0,0,0,0,0,0,0]
[]
[]
[null,null,null,null,null,null,null,null,null,null,null,null,null,null,null,null,null,null,null,null,null,null,null,null,null,null,null,null,null,null,null,null,"World",null,null,null,"Europe"]
[null,null,null,null,null,null,null,null,null,null,null,null,null,null,null,null,null,null,null,null,null,null,null,null,null,null,null,null,null,null,null,null,"Hierarchist, World, Average","Individualist, World","Hierarchist, World","Egalitarian, World","Hierarchist, Europe, Average","Individualist, Europe","Hierarchist, Europe","Egalitarian, Europe","default","% above default","% below default"]
[null,null,null,null,null,null,null,null,null,null,null,null,null,null,null,null,null,null,null,null,null,null,null,null,null,null,null,null,null,null,{"$f":"AG1589","v":"Crude oil"},{"$f":"AH1589","v":0.24253449127240334},0.24253449127240334,0.24253449127240334,0.24253449127240334,0.24253449127240334,0.24253449127240334,0.24253449127240334,0.24253449127240334,0.24253449127240334,{"$f":"AG1718","v":0.24253449127240334},{"$f":"MAX(AH1718:AJ1718)-AG1718","v":0},{"$f":"AG1718-MIN(AH1718:AJ1718)","v":0}]
[null,null,null,null,null,null,null,null,null,null,null,null,null,null,null,null,null,null,null,null,null,null,null,null,null,null,null,null,null,null,"CO2",0.26352181324859675,0.26352181324859675,0.26352181324859675,0.26352181324859675,0.26352181324859675,0.26352181324859675,0.26352181324859675,0.26352181324859675,0.26352181324859675,{"$f":"AG1719","v":0.26352181324859675},{"$f":"MAX(AH1719:AJ1719)-AG1719","v":0},{"$f":"AG1719-MIN(AH1719:AJ1719)","v":0}]
[null,null,null,null,null,null,null,null,null,null,null,null,null,null,null,null,null,null,null,null,null,null,null,null,null,null,null,null,null,null,"Copper ore",0,0,0,0,0,0,0,0,0,0,0,0]
[null,null,null,null,null,null,null,null,null,null,null,null,null,null,null,null,null,null,null,null,null,null,null,null,null,null,null,null,null,null,"Contrails/Cirrus",0.19003148357393435,0.19003148357393435,0.19003148357393435,0.19003148357393435,0.19003148357393435,0.19003148357393435,0.19003148357393435,0.19003148357393435,0.19003148357393435,0.19003148357393435,0,0]
[null,null,null,null,null,null,null,null,null,null,null,null,null,null,null,null,null,null,null,null,null,null,null,null,null,null,null,null,null,null,"NOx",0.26867844594009099,0.26867844594009099,0.26867844594009099,0.26867844594009099,0.26867844594009099,0.26867844594009099,0.26867844594009099,0.26867844594009099,0.26867844594009099,0.26867844594009099,0,0]
[null,null,null,null,null,null,null,null,null,null,null,null,null,null,null,null,null,null,null,null,null,null,null,null,null,null,null,null,null,null,"Natural gas",1.2825642952456284E-2,1.2825642952456284E-2,1.2825642952456284E-2,1.2825642952456284E-2,1.2825642952456284E-2,1.2825642952456284E-2,1.2825642952456284E-2,1.2825642952456284E-2,1.2825642952456284E-2,1.2825642952456284E-2,0,0]
[null,null,null,null,null,null,null,null,null,null,null,null,null,null,null,null,null,null,null,null,null,null,null,null,null,null,null,null,null,null,"SO2",9.4229083495469095E-3,9.4229083495469095E-3,9.4229083495469095E-3,9.4229083495469095E-3,9.4229083495469095E-3,9.4229083495469095E-3,9.4229083495469095E-3,9.4229083495469095E-3,9.4229083495469095E-3,9.4229083495469095E-3,0,0]
[null,null,null,null,null,null,null,null,null,null,null,null,null,null,null,null,null,null,null,null,null,null,null,null,null,null,null,null,null,null,"CH4",6.0236326791499708E-3,6.0236326791499708E-3,6.0236326791499708E-3,6.0236326791499708E-3,6.0236326791499708E-3,6.0236326791499708E-3,6.0236326791499708E-3,6.0236326791499708E-3,6.0236326791499708E-3,6.0236326791499708E-3,0,0]
[null,null,null,null,null,null,null,null,null,null,null,null,null,null,null,null,null,null,null,null,null,null,null,null,null,null,null,null,null,null,"PM10",6.7585625454960746E-3,6.7585625454960746E-3,6.7585625454960746E-3,6.7585625454960746E-3,6.7585625454960746E-3,6.7585625454960746E-3,6.7585625454960746E-3,6.7585625454960746E-3,6.7585625454960746E-3,6.7585625454960746E-3,0,0]
[null,null,null,null,null,null,null,null,null,null,null,null,null,null,null,null,null,null,null,null,null,null,null,null,null,null,null,null,null,null,"Brown coal",1.1039023245489727E-4,1.1039023245489727E-4,1.1039023245489727E-4,1.1039023245489727E-4,1.1039023245489727E-4,1.1039023245489727E-4,1.1039023245489727E-4,1.1039023245489727E-4,1.1039023245489727E-4,1.1039023245489727E-4,0,0]
[null,null,null,null,null,null,null,null,null,null,null,null,null,null,null,null,null,null,null,null,null,null,null,null,null,null,null,null,null,null,"Hard coal",9.1347757417405682E-5,9.1347757417405682E-5,9.1347757417405682E-5,9.1347757417405682E-5,9.1347757417405682E-5,9.1347757417405682E-5,9.1347757417405682E-5,9.1347757417405682E-5,9.1347757417405682E-5,9.1347757417405682E-5,0,0]
[null,null,null,null,null,null,null,null,null,null,null,null,null,null,null,null,null,null,null,null,null,null,null,null,null,null,null,null,null,null,"CO",1.8456825160011053E-7,1.8456825160011053E-7,1.8456825160011053E-7,1.8456825160011053E-7,1.8456825160011053E-7,1.8456825160011053E-7,1.8456825160011053E-7,1.8456825160011053E-7,1.8456825160011053E-7,1.8456825160011053E-7,0,0]
[null,null,null,null,null,null,null,null,null,null,null,null,null,null,null,null,null,null,null,null,null,null,null,null,null,null,null,null,null,null,"HC",5.612301838505325E-7,5.612301838505325E-7,5.612301838505325E-7,5.612301838505325E-7,5.612301838505325E-7,5.612301838505325E-7,5.612301838505325E-7,5.612301838505325E-7,5.612301838505325E-7,5.612301838505325E-7,{"$f":"MAX(AH1730:AJ1730)-AG1730","v":0},{"$f":"AG1730-MIN(AH1730:AJ1730)","v":0}]
[null,null,null,null,null,null,null,null,null,null,null,null,null,null,null,null,null,null,null,null,null,null,null,null,null,null,null,null,null,null,"Fe",3.1078626390247553E-7,3.1078626390247553E-7,3.1078626390247553E-7,3.1078626390247553E-7,3.1078626390247553E-7,3.1078626390247553E-7,3.1078626390247553E-7,3.1078626390247553E-7,3.1078626390247553E-7,3.1078626390247553E-7,0,0]
[null,null,null,null,null,null,null,null,null,null,null,null,null,null,null,null,null,null,null,null,null,null,null,null,null,null,null,null,null,null,"Mn",2.2486375348804162E-7,2.2486375348804162E-7,2.2486375348804162E-7,2.2486375348804162E-7,2.2486375348804162E-7,2.2486375348804162E-7,2.2486375348804162E-7,2.2486375348804162E-7,2.2486375348804162E-7,2.2486375348804162E-7,0,0]
[null,null,null,null,null,null,null,null,null,null,null,null,null,null,null,null,null,null,null,null,null,null,null,null,null,null,null,null,null,null,"O2",0,0,0,0,0,0,0,0,0,0,0,0]
[]
[]
[null,null,null,null,null,null,null,null,null,null,null,null,null,null,null,null,null,null,null,null,null,null,null,null,null,null,null,null,null,null,null,null,"World",null,null,null,"Europe"]
[null,null,null,null,null,null,null,null,null,null,null,null,null,null,null,null,null,null,null,null,null,null,null,null,null,null,null,null,null,null,null,null,"Hierarchist, World, Average","Individualist, World","Hierarchist, World","Egalitarian, World","Hierarchist, Europe, Average","Individualist, Europe","Hierarchist, Europe","Egalitarian, Europe","default","% above default","% below default"]
[null,null,null,null,null,null,null,null,null,null,null,null,null,null,null,null,null,null,null,null,null,null,null,null,null,null,null,null,null,null,{"$f":"AG1608","v":"Cruise flight"},{"$f":"AH1608","v":0.65396753385788742},0.65396753385788742,0.65396753385788742,0.65396753385788742,0.65396753385788742,0.65396753385788742,0.65396753385788742,0.65396753385788742,0.65396753385788742,{"$f":"AG1738","v":0.65396753385788742},{"$f":"MAX(AH1738:AJ1738)-AG1738","v":0},{"$f":"AG1738-MIN(AH1738:AJ1738)","v":0}]
[null,null,null,null,null,null,null,null,null,null,null,null,null,null,null,null,null,null,null,null,null,null,null,null,null,null,null,null,null,null,"Kerosene production",0.27987001731424899,0.27987001731424899,0.27987001731424899,0.27987001731424899,0.27987001731424899,0.27987001731424899,0.27987001731424899,0.27987001731424899,0.27987001731424899,{"$f":"AG1739","v":0.27987001731424899},{"$f":"MAX(AH1739:AJ1739)-AG1739","v":0},{"$f":"AG1739-MIN(AH1739:AJ1739)","v":0}]
[null,null,null,null,null,null,null,null,null,null,null,null,null,null,null,null,null,null,null,null,null,null,null,null,null,null,null,null,null,null,"Battery production",0,0,0,0,0,0,0,0,0,0,0,0]
[null,null,null,null,null,null,null,null,null,null,null,null,null,null,null,null,null,null,null,null,null,null,null,null,null,null,null,null,null,null,"LTO-cycle",1.8731160984784268E-2,1.8731160984784268E-2,1.8731160984784268E-2,1.8731160984784268E-2,1.8731160984784268E-2,1.8731160984784268E-2,1.8731160984784268E-2,1.8731160984784268E-2,1.8731160984784268E-2,1.8731160984784268E-2,0,0]
[null,null,null,null,null,null,null,null,null,null,null,null,null,null,null,null,null,null,null,null,null,null,null,null,null,null,null,null,null,null,"Energy gen. and cons. at airports",2.8344959865896208E-2,2.8344959865896208E-2,2.8344959865896208E-2,2.8344959865896208E-2,2.8344959865896208E-2,2.8344959865896208E-2,2.8344959865896208E-2,2.8344959865896208E-2,2.8344959865896208E-2,2.8344959865896208E-2,0,0]
[null,null,null,null,null,null,null,null,null,null,null,null,null,null,null,null,null,null,null,null,null,null,null,null,null,null,null,null,null,null,"Ground handling",4.0150600941509908E-3,4.0150600941509908E-3,4.0150600941509908E-3,4.0150600941509908E-3,4.0150600941509908E-3,4.0150600941509908E-3,4.0150600941509908E-3,4.0150600941509908E-3,4.0150600941509908E-3,4.0150600941509908E-3,0,0]
[null,null,null,null,null,null,null,null,null,null,null,null,null,null,null,null,null,null,null,null,null,null,null,null,null,null,null,null,null,null,"Use of production facilities",1.0094381170265741E-3,1.0094381170265741E-3,1.0094381170265741E-3,1.0094381170265741E-3,1.0094381170265741E-3,1.0094381170265741E-3,1.0094381170265741E-3,1.0094381170265741E-3,1.0094381170265741E-3,1.0094381170265741E-3,0,0]
[null,null,null,null,null,null,null,null,null,null,null,null,null,null,null,null,null,null,null,null,null,null,null,null,null,null,null,null,null,null,"Material production",3.4196805933849327E-4,3.4196805933849327E-4,3.4196805933849327E-4,3.4196805933849327E-4,3.4196805933849327E-4,3.4196805933849327E-4,3.4196805933849327E-4,3.4196805933849327E-4,3.4196805933849327E-4,3.4196805933849327E-4,0,0]
[null,null,null,null,null,null,null,null,null,null,null,null,null,null,null,null,null,null,null,null,null,null,null,null,null,null,null,null,null,null,"Flight test campaign",1.9811757493321591E-6,1.9811757493321591E-6,1.9811757493321591E-6,1.9811757493321591E-6,1.9811757493321591E-6,1.9811757493321591E-6,1.9811757493321591E-6,1.9811757493321591E-6,1.9811757493321591E-6,1.9811757493321591E-6,0,0]
[null,null,null,null,null,null,null,null,null,null,null,null,null,null,null,null,null,null,null,null,null,null,null,null,null,null,null,null,null,null,"Wind tunnel tests",1.6449761381799428E-6,1.6449761381799428E-6,1.6449761381799428E-6,1.6449761381799428E-6,1.6449761381799428E-6,1.6449761381799428E-6,1.6449761381799428E-6,1.6449761381799428E-6,1.6449761381799428E-6,1.6449761381799428E-6,0,0]
[null,null,null,null,null,null,null,null,null,null,null,null,null,null,null,null,null,null,null,null,null,null,null,null,null,null,null,null,null,null,"Computer use during aircraft design",2.278121843143527E-7,2.278121843143527E-7,2.278121843143527E-7,2.278121843143527E-7,2.278121843143527E-7,2.278121843143527E-7,2.278121843143527E-7,2.278121843143527E-7,2.278121843143527E-7,2.278121843143527E-7,0,0]
[]
[]
[null,null,null,null,null,null,null,null,null,null,null,null,null,null,null,null,null,null,null,null,null,null,null,null,null,null,null,null,null,null,null,null,"World",null,null,null,"Europe"]
[null,null,null,null,null,null,null,null,null,null,null,null,null,null,null,null,null,null,null,null,null,null,null,null,null,null,null,null,null,null,null,null,"Hierarchist, World, Average","Individualist, World","Hierarchist, World","Egalitarian, World","Hierarchist, Europe, Average","Individualist, Europe","Hierarchist, Europe","Egalitarian, Europe","default","% above default","% below default"]
[null,null,null,null,null,null,null,null,null,null,null,null,null,null,null,null,null,null,null,null,null,null,null,null,null,null,null,null,null,null,{"$f":"AG1622","v":"Operation"},0.98492873211696785,0.98492873211696785,0.98492873211696785,0.98492873211696785,0.98492873211696785,0.98492873211696785,0.98492873211696785,0.98492873211696785,0.98492873211696785,{"$f":"AG1753","v":0.98492873211696785},{"$f":"MAX(AH1753:AJ1753)-AG1753","v":0},{"$f":"AG1753-MIN(AH1753:AJ1753)","v":0}]
[null,null,null,null,null,null,null,null,null,null,null,null,null,null,null,null,null,null,null,null,null,null,null,null,null,null,null,null,null,null,"Production",1.3514061763650674E-3,1.3514061763650674E-3,1.3514061763650674E-3,1.3514061763650674E-3,1.3514061763650674E-3,1.3514061763650674E-3,1.3514061763650674E-3,1.3514061763650674E-3,1.3514061763650674E-3,{"$f":"AG1754","v":1.3514061763650674E-3},{"$f":"MAX(AH1754:AJ1754)-AG1754","v":0},{"$f":"AG1754-MIN(AH1754:AJ1754)","v":0}]
[null,null,null,null,null,null,null,null,null,null,null,null,null,null,null,null,null,null,null,null,null,null,null,null,null,null,null,null,null,null,"Design & Development",3.8539640718264548E-6,3.8539640718264548E-6,3.8539640718264548E-6,3.8539640718264548E-6,3.8539640718264548E-6,3.8539640718264548E-6,3.8539640718264548E-6,3.8539640718264548E-6,3.8539640718264548E-6,3.8539640718264548E-6,0,0]
[]
[]
[null,null,null,null,null,null,null,null,null,null,null,null,null,null,null,null,null,null,null,null,null,null,null,null,null,null,null,null,null,null,null,null,"World",null,null,null,"Europe"]
[null,null,null,null,null,null,null,null,null,null,null,null,null,null,null,null,null,null,null,null,null,null,null,null,null,null,null,null,null,null,null,null,"Hierarchist, World, Average","Individualist, World","Hierarchist, World","Egalitarian, World","Hierarchist, Europe, Average","Individualist, Europe","Hierarchist, Europe","Egalitarian, Europe","default","% above default","% below default"]
[null,null,null,null,null,null,null,null,null,null,null,null,null,null,null,null,null,null,null,null,null,null,null,null,null,null,null,null,null,null,"Single Score",{"$f":"D1685","v":1.7866559888844738E-2},1.7866559888844738E-2,1.7866559888844738E-2,1.7866559888844738E-2,1.7866559888844738E-2,1.7866559888844738E-2,1.7866559888844738E-2,1.7866559888844738E-2,1.7866559888844738E-2,{"$f":"AG1760","v":1.7866559888844738E-2},{"$f":"MAX(AH1760:AJ1760)-AG1760","v":0},{"$f":"AG1760-MIN(AH1760:AJ1760)","v":0}]
[]
[]
[]
[]
[]
[]
[]
[]
[]
[]
[]
[]
[]
[]
[]
[]
[]
[]
[]
[]
[]
[]
[]
[]
[]
[]
[]
[]
[]
[]
[]
[]
[]
[]
[]
[]
[]
[]
[]
[]
[]
[]
[]
[]
[]
[]
[{"$f":"A1136+1","v":4},"Interpretation"]
[]
[null,"This Section provides a short EXAMPLE for the interpretation of the LCA results. Obviously, the interpretation always depends on the analyzed aircraft."]
[]
[null,"The presented interpretation refers to the analysis of a standard medium range aircraft like the Airbus A320 using the suggested values and settings."]
[null,"Depending on the analyzed aircraft, the LCA results and therefore also the interpretation might be different."]
[]
[null,"The exctraction of crude oil, CO2 and NOx emissions as well as the formation of contrails and contrail-induced cirrus clouds together dominate the EI of aircraft."]
[null,"The amount of CO2, NOx and crude oil per PKM is mainly driven by the amount of fuel burned. Therefore saving fuel is identified as one crucial design criterion to reduce EI."]
[null,"The influence of NOx emissions and Contrails/Cirrus clouds on the climate is strongly dependant on the cruise altitude of aircraft. A reduction of the cruise altitude can drastically reduce their negative EI."]
[null,"Saving fuel and reducing cruise altitude have been identified as the two most import design criterions for low EI."]
[]
[]
[]
[]
[]
[]
[]
[]
[]
[]
[]
[]
[]
[]
[]
[]
[]
[]
[]
[]
[]
[null,"The most important of the considered processes is cruise flight. It has by far the highest contribution of all processes to the single score."]
[]
[]
[]
[]
[]
[]
[]
[]
[]
[]
[]
[]
[]
[]
[]
[]
[]
[]
[]
[]
[]
[]
[null,"The most important midpoint category is climate change. It has by far the highest contribution of all midpoint categories to the single score."]
[]
[]
[]
[]
[]
[]
[]
[]
[]
[]
[]
[]
[]
[]
[]
[]
[]
[]
[]
[]
[]
[]
[]
[null,"The most important endpoint category is human health. It has by far the highest contribution of all endpoint categories to the single score."]
[null,"This is because the most important midpoint category climate change directly influences the endpoint category human health."]
[]
[]
[]
[]
[]
[]
[]
[]
[]
[]
[]
[]
[]
[]
[]
[]
[]
[]
[]
[]
[]
[]
[null,"The operational phase completely dominates the EI of an aircraft. This is mainly because of the long operational life of aircraft."]
[null,"For instance, if the total number of aircraft built is 20000, the emission of a certain substance from a process occurring once in the life cycle of the entire aircraft fleet (e.g. the design process) would need"]
[null,"to be 20000 times higher than the emission of the same substance from a process occurring once in the life cycle of a single aircraft (e.g. production) to cause the same EI per PKM."]
[null,"Assuming 60000 flight cycles, an emission occurring once in the life cycle would even need to be 1.2 billion (20000*60000) times higher than the emission of a process occurring once per flight to cause "]
[null,"the same EI per PKM."]

{"sheet":"LCA_Stat","index":2,"n_rows":257,"n_cols":15,"rows_kept":257,"cut":false,"hidden":false,"merged":[[44,3,44,4],[44,5,44,6],[237,2,237,10]]}
["Statistics used in sheet \"LCA\""]
[]
[null,"Sold seats compared to max. number of seats"]
[]
[]
[]
[]
[null,"AIRBUS DELIVERIES: 2007 (Through December 31)"]
[]
[]
[null,null,"A318","A319","A320","A321","A300","A310","A330-200","A330-300","A340-200/300","A340-500","A340-600","A380","TOTAL"]
[null,"Typical seating (Source: Airbus Website)",107,124,150,185,266,220,246,300,295,313,380,525]
[null,"Maximum seating (Source: Airbus Website)",132,156,180,220,266,220,380,440,440,375,475,853]
[]
[null,"TOTAL",17,105,194,51,6,0,42,26,2,1,8,1,{"$f":"SUM(C15:N15)","v":453}]
[]
[null,"Total Typical Seats",{"$f":"C15*C12","v":1819},13020,29100,9435,1596,0,10332,7800,590,313,3040,525,{"$f":"SUM(C17:N17)","v":77570}]
[null,"Total Maximum Seats",{"$f":"C15*C13","v":2244},16380,34920,11220,1596,0,15960,11440,880,375,3800,853,{"$f":"SUM(C18:N18)","v":99668}]
[]
[]
[]
[null,"Actually sold seats","Reference"]
[]
[null,"Total energy consumption in 2007",1929752,"MWh"]
[null,"Energy consumption per seat in 2007",23.17,"MWh/seat"]
[null,"Number of seats sold",{"$f":"C24/C25","v":83286.663789382816}]
[]
[null,"Total CO2 emissions in 2007",219805,"t"]
[null,"CO2 emissions per seat in 2007",2.64,"t/seat"]
[null,"Number of seats sold",{"$f":"C28/C29","v":83259.469696969696}]
[]
[]
[null,"Check:"]
[null,"Total water consumption in 2007",1961038,"m³"]
[null,"Water consumption per seat in 2007",23.54,"t/seat"]
[null,"Number of seats sold",{"$f":"C34/C35","v":83306.62701784198}]
[]
[null,"Average number of seats sold",{"$f":"AVERAGE(C26,C30,C36)","v":83284.253501398154}]
[]
[null,"Ratio: Number of sold seats / Maximum possible number of seats",{"$f":"C38/O18","v":0.83561678273265394}]
[]
[]
[null,"Number of aircraft built"]
[]
[null,null,"Nr. of seats","Nr. of ordered aircraft",null,"Production finished?",null,"Comment"]
[null,"A300",{"$f":"G13","v":266},null,561,"yes",null,"First Airbus aircraft",null,null,null,"Source: Airbus-Website"]
[null,"A310",{"$f":"H13","v":220},null,255,"yes",null,"Shorter and further developed variant of the A300",null,null,null,"Source: Airbus-Website"]
[null,"A300-family",null,null,{"$f":"SUM(E46:E47)","v":816}]
[null,"A320-family",{"$f":"E13","v":180},null,{"$f":"9649+9760","v":19409},"no",null,"Status at 30.06.2013: 9649 + 19520:2=9760 single-aisle aircraft until 2031 (Airbus Global Market Forecast from 2013) - (Assumption: Airbus and Boeing each produce half of the aircraft)"]
[null,"A380-family",{"$f":"N13","v":853},null,{"$f":"262+1710","v":1972},"no",null,"Juley 2013: 262 orders (Airbus-Website) + 1710 very large aircraft until 2031 (from Reference: 3) - (Assumption: Airbus produces all very-large aircraft, because Boeing does not offer very-large aircraft)"]
[]
[]
[]
[]
[null,"Component weight breakdown [%]"]
[]
[]
[null,null,"Aluminum","Steel","Composites","Titanium","Misc.","Source","Comments"]
[null,"A330",72,7,12,6,3,"Lopes","Composites = CFRP + GFRP"]
[null,"A350",20,7,52,14,7,"5 material breakdown A350"]
[null,"A380",null,null,25,null,null,"Airbus - Environmental Innovations Brochure"]
[]
[]
[]
[null,"A330-200","Wing",null,null,null,null,null,null,null,"Sum"]
[null,null,"Aluminum","Steel","CFRP","Titanium"]
[null,null,36786,1237,3358,2341,null,null,null,null,{"$f":"SUM(C67:J67)","v":43722}]
[null,null,{"$f":"C67/$K$67","v":0.84136132839302868},{"$f":"D67/$K$67","v":2.8292392845706966E-2},{"$f":"E67/$K$67","v":7.6803439915831842E-2},{"$f":"F67/$K$67","v":5.3542838845432504E-2}]
[null,null,"Main landing gear"]
[null,null,"Aluminum","Steel","CFRP","Titanium"]
[null,null,601,10993,100,601,null,null,null,null,{"$f":"SUM(C71:J71)","v":12295}]
[null,null,{"$f":"C71/$K$71","v":4.8881659211061405E-2},{"$f":"D71/$K$71","v":0.89410329402196009},{"$f":"E71/$K$71","v":8.1333875559170387E-3},{"$f":"F71/$K$71","v":4.8881659211061405E-2}]
[null,null,"Nose landing gear"]
[null,null,"Aluminum","Steel","CFRP","Titanium"]
[null,null,55,1020,82,55,null,null,null,null,{"$f":"SUM(C75:J75)","v":1212}]
[null,null,{"$f":"C75/$K$75","v":4.5379537953795381E-2},{"$f":"D75/$K$75","v":0.84158415841584155},{"$f":"E75/$K$75","v":6.7656765676567657E-2},{"$f":"F75/$K$75","v":4.5379537953795381E-2}]
[null,null,"Fuselage"]
[null,null,"Aluminum","Steel","CFRP","Titanium","GFRP","Nickel","Misc."]
[null,null,23390,189,1760,1250,125,0,781,null,{"$f":"SUM(C79:J79)","v":27495}]
[null,null,{"$f":"C79/$K$79","v":0.85070012729587197},6.873977086743044E-3,6.401163847972359E-2,4.546281142025823E-2,4.5462811420258226E-3,0,2.840516457537734E-2]
[null,null,"Vertical Stabilizer"]
[null,null,"Aluminum","Steel","CFRP","Titanium","GFRP"]
[null,null,41,0,656,0,495,null,null,null,{"$f":"SUM(C83:J83)","v":1192}]
[null,null,{"$f":"C83/$K$83","v":3.4395973154362415E-2},{"$f":"D83/$K$83","v":0},{"$f":"E83/$K$83","v":0.55033557046979864},{"$f":"F83/$K$83","v":0},{"$f":"G83/$K$83","v":0.41526845637583892}]
[null,null,"Horizontal Stabilizer"]
[null,null,"Aluminum","Steel","CFRP","Titanium","GFRP"]
[null,null,101,0,1722,0,54,null,null,null,{"$f":"SUM(C87:J87)","v":1877}]
[null,null,{"$f":"C87/$K$87","v":5.3809270111880664E-2},{"$f":"D87/$K$87","v":0},{"$f":"E87/$K$87","v":0.91742141715503467},{"$f":"F87/$K$87","v":0},{"$f":"G87/$K$87","v":2.8769312733084709E-2}]
[null,null,"Engines"]
[null,null,"Aluminum","Steel","CFRP","GFRP","Titanium","Nickel","Misc."]
[null,null,929,6949,2065,384,3914,2948,1234,null,{"$f":"SUM(C91:J91)","v":18423}]
[null,null,{"$f":"C91/$K$91","v":5.042609781251696E-2},0.37719155403571625,0.11208815068121369,2.0843510828855237E-2,0.21245182652119632,0.16001736959235738,6.6981490528144172E-2]
[]
[null,null,{"$f":"C154+C161","v":1082},6274,2065,1278,3869,2948,912]
[]
[]
[null,"Development costs"]
[]
[null,null,"Development costs",null,null,null,"Source"]
[null,"B787",13.4,"bn USD","\"Launch investment costs\"",null,"Reference"]
[null,"A380",18,"bn USD","\"Total development budget\"",null,"Reference"]
[null,"E-jet series",0.85,"bn USD","\"Total development costs\"",null,"Reference"]
[null,"A350",10,"bn USD",null,null,"Wikipedia"]
[null,"B777",6.5,"bn USD","\"6-7 Mrd. USD\"",null,"Wikipedia"]
[null,"Cseries",3.9,"bn USD",null,null,"Reference"]
[]
[]
[null,"Recycling"]
[]
[null,"A330-200:"]
[null,"Wing","Aluminum","Steel","CFRP","Titanium"]
[null,null,36786,1237,3358,2341]
[null,"reused",0,0,0,0]
[null,"recycled",0.7,0.75,0,0.5]
[null,"incinerated",0,0,0.5,0]
[null,"landfill",0.3,0.25,0.5,0.5]
[]
[null,"Main landing gear","Aluminum","Steel","CFRP","Titanium"]
[null,null,601,10993,100,601]
[null,"reused",0.8,0.8,0.8,0.8]
[null,"recycled",0,0,0,0]
[null,"incinerated",0,0,0,0]
[null,"landfill",0.2,0.2,0.2,0.2]
[]
[null,"Nose landing gear","Aluminum","Steel","CFRP","Titanium"]
[null,null,55,1020,82,55]
[null,"reused",0.8,0.8,0.8,0.8]
[null,"recycled",0,0,0,0]
[null,"incinerated",0,0,0,0]
[null,"landfill",0.2,0.2,0.2,0.2]
[]
[null,"Fuselage","Aluminum","Steel","CFRP","Titanium","GFRP","Nickel","Misc."]
[null,null,23390,189,1760,1250,125,0,781]
[null,"reused",0,0,0,0,0,null,0]
[null,"recycled",0.85,0.85,0,0,0,null,0]
[null,"incinerated",0,0,0.5,0.5,0.5,null,0.5]
[null,"landfill",0.15,0.15,0.5,0.5,0.5,null,0.5]
[]
[null,"Vertical Stabilizer","Aluminum","Steel","CFRP","Titanium","GFRP"]
[null,null,41,0,656,0,495]
[null,"reused",0,null,0,null,0]
[null,"recycled",0.64,null,0,null,0]
[null,"incinerated",0,null,0.5,null,0.5]
[null,"landfill",0.36,null,0.5,null,0.5]
[]
[null,"Horizontal Stabilizer","Aluminum","Steel","CFRP","Titanium","GFRP"]
[null,null,101,0,1722,0,54]
[null,"reused",0,null,0,null,0]
[null,"recycled",0.64,null,0,null,0]
[null,"incinerated",0,null,0.5,null,0.5]
[null,"landfill",0.36,null,0.5,null,0.5]
[]
[null,"Engine itself","Aluminum","Steel","CFRP","GFRP","Titanium","Nickel","Misc."]
[null,null,{"$f":"2*(465+76)","v":1082},{"$f":"2*(94+864)","v":1916},{"$f":"2*216","v":432},{"$f":"2*447","v":894},{"$f":"2*1310","v":2620},{"$f":"2*1474","v":2948},{"$f":"2*456","v":912}]
[null,"reused",0.75,0.75,0.75,0.75,0.75,0.75,0.75]
[null,"recycled",0,0,0,0,0,0,0]
[null,"incinerated",0,0,0,0,0,0,0]
[null,"landfill",0.25,0.25,0.25,0.25,0.25,0.25,0.25]
[]
[null,"Engine structure","Aluminum","Steel","CFRP","GFRP","Titanium","Nickel","Misc."]
[null,null,0,{"$f":"2*2179","v":4358},{"$f":"2*(140.5+62.5+351.5+30.5+39.5+192)","v":1633},{"$f":"2*192","v":384},{"$f":"2*(140.5+62.5+351.5+30.5+39.5)","v":1249},0,0]
[null,"reused",null,0,0,0,0]
[null,"recycled",null,0.8,0,0,0]
[null,"incinerated",null,0,0.5,0.5,0.5]
[null,"landfill",null,0.2,0.5,0.5,0.5]
[]
[]
[]
[null,null,"Aluminum","Steel","CFRP","GFRP","Titanium","Nickel","Misc.","Total"]
[null,"Total mass",{"$f":"SUM(C161+C154+C147+C140+C133+C126+C119+C112)","v":62056},19713,9743,5525,4543,2948,1693,{"$f":"SUM(C170:I170)","v":106221}]
[null,"Reused mass",{"$f":"C162*C$161+C155*C$154+C148*C$147+C141*C$140+C134*C$133+C127*C$126+C120*C$119+C113*C$112","v":1336.3},11047.4,469.6,1195.3,1965,2211,684,{"$f":"SUM(C171:I171)","v":18908.599999999999}]
[null,"% of total mass",{"$f":"C171/C$170","v":2.1533775944308366E-2},0.56041191092172671,4.8198706763830444E-2,0.21634389140271493,0.43253356812678845,0.75,0.40401653868871823,0.17801188088984285]
[null,"Recycled mass",{"$f":"C163*C161+C156*C$154+C149*C$147+C142*C$140+C135*C$133+C128*C$126+C121*C$119+C114*C$112","v":45722.58},4574.8,0,1170.5,0,0,0,{"$f":"SUM(C173:I173)","v":51467.880000000005}]
[null,"% of total mass",{"$f":"C173/C$170","v":0.73679547505478926},0.23207020747729926,0,0.2118552036199095,0,0,0,0.48453582624904684]
[null,"Incinerated mass",{"$f":"C164*C161+C157*C$154+C150*C$147+C143*C$140+C136*C$133+C129*C$126+C122*C$119+C115*C$112","v":0},0,4564.5,817,961.5,0,390.5,{"$f":"SUM(C175:I175)","v":6733.5}]
[null,"% of total mass",{"$f":"C175/C$170","v":0},0,0.46849019809093706,0.14787330316742081,0.21164428791547435,0,0.23065564087418783,6.3391419775750552E-2]
[null,"Landfill mass",{"$f":"C165*C161+C158*C$154+C151*C$147+C144*C$140+C137*C$133+C130*C$126+C123*C$119+C116*C$112","v":14997.119999999999},4090.7999999999997,4708.8999999999996,2342.1999999999998,1616.5,737,618.5,{"$f":"SUM(C177:I177)","v":29111.02}]
[null,"% of total mass",{"$f":"C177/C$170","v":0.24167074900090241},0.20751788160097395,0.48331109514523246,0.4239276018099547,0.3558221439577372,0.25,0.36532782043709394,0.27406087308535976]
[]
[]
[null,"Testing"]
[]
[]
[]
[null,"Windtunnel test",null,"Wind tunnel testing days",null,"Source:",null,"Comment:"]
[null,null,"A380",2212,null,"Airbus presentation"]
[null,null,"B787",1800,null,"Airbus presentation",null,"15000 h according to http://www.boeing.com/boeing/companyoffices/gallery/images/commercial/787/k63038.page"]
[null,null,"A350",1000,null,"Airbus presentation",null,"Graphic not 100 % readable"]
[null,null,"Average",{"$f":"AVERAGE(D186:D188)","v":1670.6666666666667}]
[]
[]
[null,"Flight cycles/hours and years in the operational life"]
[]
[null,"For how many flight cycles/flight hours is an aircraft designed? (Design service goal)"]
[null,null,null,"Flight cycles","Flight hours","Years",null,null,"Source:"]
[null,null,"A380",{"$f":"47500/2.5","v":19000},null,25,null,null,"Reference"]
[]
[null,null,"A400M",{"$f":"25000/2.5","v":10000},null,null,null,null,"Aero-Aviation news","Flight hours"]
[null,"Design Service Goal","A320",48000,60000,25,null,null,"Reference"]
[null,"Extended Service Goal II","A320",90000,180000,null,null,null,"Reference"]
[]
[]
[null,"Flight testing - Number of flight test aircraft and flight test hours"]
[]
[null,null,"Number of flight test aircraft","Source",null,"Comments"]
[null,"Cseries",5,"Reference"]
[null,"A350",5,"Reference"]
[null,"B787",7,"Flugrevue - News (2)",null,"6 test aircraft + 1 production aircraft"]
[null,"A380",5,"Airbus presentation"]
[null,"ARJ21",4,"Reference"]
[null,"Average",{"$f":"MEDIAN(C206:C210)","v":5}]
[]
[]
[]
[]
[null,null,"Number of flight test hours","Source",null,"Comments"]
[null,"CSeries",2500,"Reference",null,"Planned test hours (not real test hours)"]
[null,"A350",2500,"Reference"]
[null,"B787",4911,"From Wikipedia: \"FliegerRevue Oktober 2011, S. 10–11, Der Traum wird endlich wahr\"",null,"Flugrevue - News (3) sagte voraus: 4794+24;"]
[null,"A380",2666,"Airbus presentation",null,"1846 take-offs -->  on average 2666/1846 h per test flight"]
[null,"ARJ21",{"$f":"ROUND(4000/0.7,0)","v":5714},"Reference",null,"Expected flight test hours (not actual flight test hours) \"In total, the four ARJ21 flight test aircraft have completed more than 2,000 flight totalling some 4,000h, and covered about 70% of the necessary test programme.\""]
[null,"Average",{"$f":"ROUND(AVERAGE(C217:C221),-2)","v":3700}]
[]
[]
[null,"Passenger load factor","Reference"]
[]
[null,"1. Average scheduled",81]
[null,"1.1 European Routes",76]
[null,"1.2 Long haul",83]
[null,"2. Regional scheduled",71]
[null,"3. Low cost airlines",86]
[]
[]
[null,"Passenger mass compared to cargo mass (in passenger aircraft and at airports; for allocation)"]
[]
[null,"Percentage of the freight in passenger aircraft",0.5,"Reference"]
[]
[null,null,"Year"]
[null,null,2003,2004,2005,2006,2007,2008,2009,2010,2011,null,"Mittelwert"]
[null,"Worldwide passenger and freight volume:"]
[null,"PAX: [106 PKM]",3130475,3571872,3857622,4098281,4434885,4523484,4475848,4831858,5149693,null,{"$f":"AVERAGE(C241:K241)","v":4230446.444444444}]
[null,"PAX: [106 TKM]",{"$f":"C247-C244-C245","v":291365},331244,357954,380131,408625,419415,409198,445208,475963,null,{"$f":"M247-M244-M245","v":391011.44444444444}]
[]
[null,"Freight: [106 TKM]",134379,148624,152339,162402,170205,168569,153606,183980,184532,null,{"$f":"AVERAGE(C244:K244)","v":162070.66666666666}]
[null,"Mail [106 TKM]",4177,4223,4295,4182,4156,4625,4372,4595,4737,null,{"$f":"AVERAGE(C245:K245)","v":4373.5555555555557}]
[]
[null,"Total [106 TKM]",429921,484091,514588,546715,582986,592609,567176,633783,665232,null,{"$f":"AVERAGE(C247:K247)","v":557455.66666666663}]
[]
[null,"Freight in PAX-aircraft: [106 TKM]",{"$f":"(C244+C245)*$C$236","v":69278},{"$f":"(D244+D245)*$C$236","v":76423.5},78317,83292,87180.5,86597,78989,94287.5,94634.5,null,83222.111111111109]
[]
[null,"Total payload in PAX-aircraft [106 TKM]",{"$f":"C249+C242","v":360643},407667.5,436271,463423,495805.5,506012,488187,539495.5,570597.5,null,{"$f":"M249+M242","v":474233.55555555556}]
[]
[null,"Percentage of freight on the payload mass of passenger aircraft",{"$f":"C249/C251","v":0.19209578447384254},0.18746527500965859,0.17951456778011832,0.17973212378323908,0.17583608895020325,0.17113625763815879,0.16180070341897673,0.1747697617496346,0.16585158539951542,null,{"$f":"M249/M251","v":0.17548760549771303}]
[]
[null,"Percentage of freight on total payload mass in aircraft (total)",{"$f":"(C244+C245)/C247","v":0.32228246584837678},0.31574022239620236,0.30438719907965206,0.30469988933905234,0.29908265378585419,0.29225678314031678,0.27853435265243948,0.29753874748928261,0.28451577795415733,null,{"$f":"(M244+M245)/M247","v":0.29857840214897013}]
[]
[null,"Percentage of passenger mass on total payload mass in aircraft (total)",{"$f":"C242/C247","v":0.67771753415162317},0.68425977760379764,0.69561280092034794,0.69530011066094766,0.70091734621414581,0.70774321685968322,0.72146564734756058,0.70246125251071734,0.71548422204584261,null,{"$f":"M242/M247","v":0.70142159785102998}]

{"sheet":"LCA_Lit","index":3,"n_rows":24,"n_cols":2,"rows_kept":24,"cut":false,"hidden":false,"merged":[]}
["References"]
[]
[1,"AIRBUS, Test Programme and Certification, URL: http://www.airbus.com/company/aircraft-manufacture/how-is-an-aircraft-built/test-programme-and-certification/ (2013-09-01)"]
[2,"Kingsley-jones, Max: Airbus begins tests to extend service life of A320 family, London, UK : Flight International, 2008. URL: http://www.flightglobal.com/news/articles/airbus-begins-tests-to-extend-service-life-of-a320-family-220962/ (2013-09-01)"]
[3,"AIRBUS S.A.S.: Navigating the Future – Global Market Forecast 2012-2031. Blagnac Cedex, France, 2012 (D:\\Sonstiges\\Kongresse\\DLRK 2013\\Paper\\Literature\\General considerations\\AIRBUS 2012 - Presentation - Global_Market_Forecast_2012.pdf)"]
[4,"International Civil Aviation Organization: Annual Report of the Council 2012. ICAO, Doc 10001, 2012. URL: http://www.icao.int/publications/Documents/10001_en.pdf (2013-09-01)"]
[5,"Bundesverband der Deutschen Luftverkehrswirtschaft, Luftfracht für Deutschland. Presentation, Frankfurt, BDL, August 2013. URL: http://www.bdl.aero/media/filer_public/b0/c4/b0c4465f-7da2-4e8f-9da2-fd50dd574c54/20130822_bl-ir_handout_fur_branchengesprach_luftfracht_21_08_2013_final.pdf (2013-09-01)"]
[6,"CHOI, B., SHIN, H., LEE, S., HUR, T., 2006. Life cycle assessment of a personal computer and its effective recycling rate. The International Journal of Life Cycle Assessment, Volume 11, pp.122-128."]
[7,"BEELAERTS VAN BLOKLAND, W. W. A., VERHAGEN, W. J. C., SANTEMA, S. C., 2008, THE EFFECTS OF CO-INNOVATION ON THE VALUE-TIME CURVE: A QUANTITATIVE STUDY ON PRODUCT LEVEL. Journal of Business Market Management, Volume 2, Issue 1, pp.5-24."]
[8,"EUROCONTROL, 2015. Standard Inputs for EUROCONTROL Cost-Benefit Analyses. Brüssel, Belgien: EUROCONTROL Headquarters, Edition Nr. 7.0."]
[9,"ELCD 3.0 database, European Commission, DG Joint Research Centre, Institute for Environment and Sustainability, 2013. URL: http://lca.jrc.ec.europa.eu/lcainfohub/datasetArea.vm (2013-10-02)"]
[10,"FLIGHT INTERNATIONAL, 24-30 September 2013, \"Worries ease as Cseries flies\""]
[11,"FLIGHT INTERNATIONAL, 24-30 September 2013, \"Fluctuating costs bedevil programme\""]
[12,"FLIGHT INTERNATIONAL, 29 October - 4 November 2013, \"Flutter trials near for MSN1 prototype as test fleet clears certification hurdles\""]
[13,"FLIGHT INTERNATIONAL, 1 - 7 October 2013, \"ARJ21 'will enter service next year'\""]
[14,"FLIGHT GLOBAL, 31.01.2014, \"Airlines begin push for discounted end-of-line 777s\""]
[15,"FLIGHT INTERNATIONAL, 2013-06-11, \"Maturity in the Making\" (p. 48-50)"]
[16,"FLIGHT GLOBAL, 14-02-18, \"Pratt plans performance upgrade for A320neo engine\""]
[17,"JOHANNING, A. and SCHOLZ, D., 2013. A First Step Towards the Integration of Life Cycle Assessment into Conceptual Aircraft Design. In: Publikationen zum DLRK 2013 (Deutscher Luft- und Raumfahrtkongress, Stuttgart, 10. - 12. September 2013). URL: http://nbn-resolving.org/urn:nbn:de:101:1-201407183813 (Aufruf: 2015-10-14)"]
[18,"JOHANNING, A. and SCHOLZ, D., 2014. Adapting Life Cycle Impact Assessment Methods for Application in Aircraft Design. In: Publikationen zum DLRK 2014 (Deutscher Luft- und Raumfahrtkongress, Augsburg, 16. - 18. September 2014). URL: http://nbn-resolving.org/urn:nbn:de:101:1-201507202456 (Aufruf: 2015-10-12)."]
[19,"JOHANNING, A. and SCHOLZ, D., 2015. Comparison of the Potential Environmental Impact Improvements of Future Aircraft Concepts Using Life Cycle Assessment. In: CEAS: 5th CEAS Air&Space Conference : Proceedings (CEAS2015, Delft, 07. - 11. September 2015). DocumentID: 80. Download: http://Airport2030.ProfScholz.de"]
[20,"AIRBUS, \"Towards Eco-Efficiency and Sustainable Development\""]
[21,"Flughafen Hamburg, Umwelterklärung 2011 - 2014"]
[22,"European EnvIronment Agency: EMEP/CORINAIR Emission Inventory Guidebook 2013, Technical report No 12/2013, 2013. URL: http://www.eea.europa.eu//publications/emep-eea-guidebook-2013 (2013-08-30)"]